{"text_format":"1","workbook":"xlsx","n_sheets":2,"sheets":["Отчет","Данные"],"not_rendered":{"charts":0,"images":1,"macros":1,"external_links":0,"defined_names":0,"comments":0,"pivot_tables":0},"unopened":[],"bounds":{"document_bytes":16777216,"sheet_cells":100000,"rows_first":2000,"rows_last":500,"rows_between":2000,"halvings":0,"cell_chars":16384,"cell_head_chars":4096},"cells_cut":0,"cells_raw":0,"read":"whole","date_system":"1900"}

{"sheet":"Отчет","index":0,"n_rows":110,"n_cols":49,"rows_kept":110,"cut":false,"hidden":false,"merged":[[68,0,69,0],[79,0,80,0],[49,0,50,0],[53,0,54,0],[61,0,62,0],[63,0,64,0],[66,0,67,0],[32,0,33,0],[34,0,36,0],[38,0,39,0],[43,0,45,0],[46,0,48,0],[14,0,16,0],[17,0,19,0],[21,0,22,0],[24,0,25,0],[30,0,31,0],[7,6,10,6],[7,47,10,47],[10,0,10,3],[7,13,10,13],[7,4,10,4],[7,7,10,7],[7,0,9,0],[7,3,9,3],[7,12,10,12],[7,5,10,5],[7,1,9,1],[8,14,8,16],[7,14,7,17],[0,10,0,13],[7,11,10,11],[7,9,10,9],[7,2,9,2],[7,10,10,10],[7,8,10,8],[1,10,2,13],[8,18,8,44],[7,18,7,46],[8,45,8,46]]}
["Текущий рейтинг студентов (до пересдач)",null,null,null,null,null,null,null,null,null,"Приложение 3"]
["Дата выгрузки: 18.01.2017",null,null,null,null,null,null,null,null,null,"к Положению о рейтинговой системе комплексной оценки знаний студентов "]
["Период: c 2016/2017 учебный год I семестр по 2016/2017 учебный год I семестр"]
["Факультет/отделение: Факультет коммуникаций, медиа и дизайна"]
["Направление подготовки: Реклама и связи с общественностью"]
["Уровень образования, номер курса: Бакалавриат 2 курс",null,null,null,null,null,null,null,null,null,null,null,null,null,null," - студенты имеющие задолженности"]
[null,null,null,null,null,null,null,null,null,null,null,null,null,null,"*"," - изучение по ИУП"]
["Место","Студент","Группа","Образовательная программа студента","Кредитно-рейтинговая оценка","Нормировочный коэффициент","Сумма всех кредитов ","Нормированная кредитно-рейтинговая оценка","Сумма всех оценок","Количество всех оценок","Средний балл","Минимальный балл","Наличие неудовлетворительных оценок и неявок","Количество удовлетворительных оценок","2016/2017 учебный год 1 модуль",null,null,null,"2016/2017 учебный год 2 модуль",null,null,null,null,null,null,null,null,null,null,null,null,null,null,null,null,null,null,null,null,null,null,null,null,null,null,null,null,"Номер места"]
[null,null,null,null,null,null,null,null,null,null,null,null,null,null,"Экзамен",null,null,"Зачет","Экзамен",null,null,null,null,null,null,null,null,null,null,null,null,null,null,null,null,null,null,null,null,null,null,null,null,null,null,"Зачет"]
[null,null,null,null,null,null,null,null,null,null,null,null,null,null,"Безопасность жизнедеятельности","Логика","Основы маркетинга","Основы маркетинга","Английский язык","Астрофизика","Введение в программирование","Введение в специальность","Введение в урбанистику","Великие книги западной литературы от Гомера до Ницше","История","История коммуникаций","История международных отношений","Культура современных обществ: социологический анализ.","Логика и основы критического мышления","Микроэкономика","Научно-исследовательский семинар","Научно-исследовательский семинар","Научно-исследовательский семинар","Основы права","Основы теории коммуникаций (Часть 1)","Основы теории организации и управление персоналом","Правовые основы бизнеса","Психология личности и индивидуальных различий","Современная российская политика","Современные информационные технологии","Современный культурный процесс","Социология массовых коммуникаций","Теория государства и права","Теория государства и права","Философия","Научно-исследовательский семинар","Физическая культура"]
["Число текущих кредитов:",null,null,null,null,null,null,null,null,null,null,null,null,null,1,3,3,3,4,5,5,5,5,5,4,4,5,5,5,5,1.33,2,2.08,5,3,5,5,5,5,5,5,3,3,4,4,2,0]
[1,"Мазур Екатерина Сергеевна","БРО151","Реклама и связи с общественностью",224,{"$f":"IF(G12 > 0, MAX(G$12:G$110) / G12, 0)","v":1.6556521739130434},23,{"$f":"E12*F12","v":370.86608695652171},78,8,{"$f":"IF(J12 > 0,I12/J12,0)","v":9.75},{"$f":"MIN($O12:AU12)","v":9},null,8,null,null,10,null,10,null,null,null,null,null,null,null,null,10,null,null,null,10,null,null,9,null,null,null,null,null,null,10,9,null,null,null,"+",1,"ОК"]
[2,"Бешанова Елизавета Вячеславовна","БРО152","Реклама и связи с общественностью",209,{"$f":"IF(G13 > 0, MAX(G$12:G$110) / G13, 0)","v":1.6556521739130434},23,{"$f":"E13*F13","v":346.03130434782605},63,7,{"$f":"IF(J13 > 0,I13/J13,0)","v":9},{"$f":"MIN($O13:AU13)","v":8},null,7,null,null,9,null,10,null,null,null,null,null,null,null,9,null,null,null,null,8,null,null,9,null,null,null,null,null,null,9,9,null,null,null,"+",2,"ОК"]
[3,"Щелкунов Игорь Владимирович","БРО153","Реклама и связи с общественностью",202,{"$f":"IF(G14 > 0, MAX(G$12:G$110) / G14, 0)","v":1.6556521739130434},23,{"$f":"E14*F14","v":334.44173913043477},61,7,{"$f":"IF(J14 > 0,I14/J14,0)","v":8.7142857142857135},{"$f":"MIN($O14:AU14)","v":7},null,7,null,null,9,null,10,null,null,null,9,null,null,null,null,null,null,null,null,9,null,null,9,null,null,null,null,null,null,8,7,null,null,null,"+",3,"ОК"]
["4 - 6","Калабаева Дарья Андреевна","БРО152","Реклама и связи с общественностью",201,{"$f":"IF(G15 > 0, MAX(G$12:G$110) / G15, 0)","v":1.6556521739130434},23,{"$f":"E15*F15","v":332.78608695652173},61,7,{"$f":"IF(J15 > 0,I15/J15,0)","v":8.7142857142857135},{"$f":"MIN($O15:AU15)","v":8},null,7,null,null,10,null,9,null,null,null,null,null,null,null,null,null,null,null,null,9,null,null,8,null,null,null,null,null,9,8,8,null,null,null,"+",4,"ОК"]
[null,"Кимлык Мария Андреевна","БРО153","Реклама и связи с общественностью",201,{"$f":"IF(G16 > 0, MAX(G$12:G$110) / G16, 0)","v":1.6556521739130434},23,{"$f":"E16*F16","v":332.78608695652173},61,7,{"$f":"IF(J16 > 0,I16/J16,0)","v":8.7142857142857135},{"$f":"MIN($O16:AU16)","v":8},null,7,null,null,10,null,8,null,null,null,null,null,null,null,null,null,null,null,null,8,null,null,9,null,9,null,null,null,null,9,8,null,null,null,"+",5,"ОК"]
[null,"Курганова Диана Андреевна","БРО153","Реклама и связи с общественностью",201,{"$f":"IF(G17 > 0, MAX(G$12:G$110) / G17, 0)","v":1.6556521739130434},23,{"$f":"E17*F17","v":332.78608695652173},60,7,{"$f":"IF(J17 > 0,I17/J17,0)","v":8.5714285714285712},{"$f":"MIN($O17:AU17)","v":7},null,7,null,null,10,null,10,null,null,null,null,null,null,null,null,null,null,null,null,7,null,null,9,null,null,null,null,null,null,8,7,null,null,null,"+",6,"ОК"]
["7 - 9","Попова Диана Александровна","БРО152","Реклама и связи с общественностью",200,{"$f":"IF(G18 > 0, MAX(G$12:G$110) / G18, 0)","v":1.6556521739130434},23,{"$f":"E18*F18","v":331.13043478260869},61,7,{"$f":"IF(J18 > 0,I18/J18,0)","v":8.7142857142857135},{"$f":"MIN($O18:AU18)","v":8},null,7,null,null,9,null,8,null,null,null,null,null,null,null,9,null,null,null,null,9,null,null,9,null,null,null,null,null,null,9,8,null,null,null,"+",7,"ОК"]
[null,"Мошева Анастасия Олеговна","БРО153","Реклама и связи с общественностью",200,{"$f":"IF(G19 > 0, MAX(G$12:G$110) / G19, 0)","v":1.6556521739130434},23,{"$f":"E19*F19","v":331.13043478260869},60,7,{"$f":"IF(J19 > 0,I19/J19,0)","v":8.5714285714285712},{"$f":"MIN($O19:AU19)","v":6},null,7,null,null,9,null,10,null,null,null,null,null,null,null,null,null,null,9,null,8,null,null,9,null,null,null,null,null,null,9,6,null,null,null,"+",8,"ОК"]
[null,"Гранина Дарья Константиновна","БРО153","Реклама и связи с общественностью",200,{"$f":"IF(G20 > 0, MAX(G$12:G$110) / G20, 0)","v":1.6556521739130434},23,{"$f":"E20*F20","v":331.13043478260869},59,7,{"$f":"IF(J20 > 0,I20/J20,0)","v":8.4285714285714288},{"$f":"MIN($O20:AU20)","v":6},null,7,null,null,8,null,10,null,null,null,10,null,null,null,null,null,null,null,null,7,null,null,9,null,null,null,null,null,null,9,6,null,null,null,"+",9,"ОК"]
[10,"Жарикова Анастасия Владимировна","БРО152","Реклама и связи с общественностью",318.64,{"$f":"IF(G21 > 0, MAX(G$12:G$110) / G21, 0)","v":1.0269687162891046},37.08,{"$f":"E21*F21","v":327.23331175836029},95,11,{"$f":"IF(J21 > 0,I21/J21,0)","v":8.6363636363636367},{"$f":"MIN($O21:AU21)","v":8},null,11,null,"7 *",10,null,8,null,null,"8 *",null,null,"7 *",null,null,10,null,null,null,10,"8 *",null,9,null,null,null,null,null,null,9,9,null,null,null,"+",10,"ОК"]
["11 - 12","Сковородина Елизавета Сергеевна","БРО153","Реклама и связи с общественностью",196,{"$f":"IF(G22 > 0, MAX(G$12:G$110) / G22, 0)","v":1.6556521739130434},23,{"$f":"E22*F22","v":324.50782608695653},59,7,{"$f":"IF(J22 > 0,I22/J22,0)","v":8.4285714285714288},{"$f":"MIN($O22:AU22)","v":8},null,7,null,null,8,null,9,null,null,null,null,null,null,null,null,null,9,null,null,8,null,null,8,null,null,null,null,null,null,9,8,null,null,null,"+",11,"ОК"]
[null,"Язькова Елизавета Алексеевна","БРО153","Реклама и связи с общественностью",196,{"$f":"IF(G23 > 0, MAX(G$12:G$110) / G23, 0)","v":1.6556521739130434},23,{"$f":"E23*F23","v":324.50782608695653},59,7,{"$f":"IF(J23 > 0,I23/J23,0)","v":8.4285714285714288},{"$f":"MIN($O23:AU23)","v":7},null,7,null,null,9,null,9,null,null,null,null,null,null,null,null,null,null,null,null,8,null,null,9,null,9,null,null,null,null,8,7,null,null,null,"+",12,"ОК"]
[13,"Казакова Виктория Владимировна","БРО151","Реклама и связи с общественностью",193,{"$f":"IF(G24 > 0, MAX(G$12:G$110) / G24, 0)","v":1.6556521739130434},23,{"$f":"E24*F24","v":319.54086956521741},59,7,{"$f":"IF(J24 > 0,I24/J24,0)","v":8.4285714285714288},{"$f":"MIN($O24:AU24)","v":7},null,7,null,null,7,null,9,null,null,null,null,null,null,null,null,8,null,null,null,9,null,null,9,null,null,null,null,null,null,9,8,null,null,null,"+",13,"ОК"]
["14 - 15","Криницкая Анастасия Сергеевна","БРО152","Реклама и связи с общественностью",190,{"$f":"IF(G25 > 0, MAX(G$12:G$110) / G25, 0)","v":1.6556521739130434},23,{"$f":"E25*F25","v":314.57391304347823},58,7,{"$f":"IF(J25 > 0,I25/J25,0)","v":8.2857142857142865},{"$f":"MIN($O25:AU25)","v":6},null,7,null,null,8,null,6,null,null,null,null,null,null,null,null,null,null,null,null,8,null,null,9,null,null,null,null,null,null,10,8,null,null,null,"+",14,"ОК"]
[null,"Никитина Валерия Дмитриевна","БРО152","Реклама и связи с общественностью",190,{"$f":"IF(G26 > 0, MAX(G$12:G$110) / G26, 0)","v":1.6556521739130434},23,{"$f":"E26*F26","v":314.57391304347823},58,7,{"$f":"IF(J26 > 0,I26/J26,0)","v":8.2857142857142865},{"$f":"MIN($O26:AU26)","v":6},null,7,null,null,9,null,9,null,null,null,null,null,null,null,8,null,null,null,null,9,null,null,8,null,null,null,null,null,null,9,6,null,null,null,"+",15,"ОК"]
[16,"Колганова Полина Олеговна","БРО151","Реклама и связи с общественностью",188,{"$f":"IF(G27 > 0, MAX(G$12:G$110) / G27, 0)","v":1.6556521739130434},23,{"$f":"E27*F27","v":311.26260869565215},57,7,{"$f":"IF(J27 > 0,I27/J27,0)","v":8.1428571428571423},{"$f":"MIN($O27:AU27)","v":7},null,7,null,null,9,null,9,null,null,null,null,null,null,null,null,8,null,null,null,8,null,null,8,null,null,null,null,null,null,8,7,null,null,null,"+",16,"ОК"]
[17,"Садова Анастасия Романовна","БРО151","Реклама и связи с общественностью",187,{"$f":"IF(G28 > 0, MAX(G$12:G$110) / G28, 0)","v":1.6556521739130434},23,{"$f":"E28*F28","v":309.60695652173911},56,7,{"$f":"IF(J28 > 0,I28/J28,0)","v":8},{"$f":"MIN($O28:AU28)","v":6},null,7,null,null,9,null,7,null,null,null,null,null,null,null,null,null,null,null,null,6,null,null,8,null,null,9,null,null,null,9,8,null,null,null,"+",17,"ОК"]
[18,"Радченко Ирина Дмитриевна","БРО152","Реклама и связи с общественностью",154,{"$f":"IF(G29 > 0, MAX(G$12:G$110) / G29, 0)","v":2.0042105263157892},19,{"$f":"E29*F29","v":308.64842105263153},48,6,{"$f":"IF(J29 > 0,I29/J29,0)","v":8},{"$f":"MIN($O29:AU29)","v":6},null,6,null,null,8,null,null,null,null,null,null,null,null,null,null,null,null,null,null,8,null,null,9,null,null,null,null,null,null,8,6,null,null,null,"+",18,"ОК"]
[19,"Янчева Анастасия Вадимовна","БРО153","Реклама и связи с общественностью",186,{"$f":"IF(G30 > 0, MAX(G$12:G$110) / G30, 0)","v":1.6556521739130434},23,{"$f":"E30*F30","v":307.95130434782607},57,7,{"$f":"IF(J30 > 0,I30/J30,0)","v":8.1428571428571423},{"$f":"MIN($O30:AU30)","v":6},null,7,null,null,7,null,10,null,null,null,null,null,null,null,null,null,null,7,null,9,null,null,9,null,null,null,null,null,null,9,6,null,null,null,"+",19,"ОК"]
["20 - 21","Радионова Анна Евгеньевна","БРО152","Реклама и связи с общественностью",185,{"$f":"IF(G31 > 0, MAX(G$12:G$110) / G31, 0)","v":1.6556521739130434},23,{"$f":"E31*F31","v":306.29565217391303},57,7,{"$f":"IF(J31 > 0,I31/J31,0)","v":8.1428571428571423},{"$f":"MIN($O31:AU31)","v":6},null,7,null,null,9,null,6,null,null,null,null,null,null,null,null,null,null,null,null,8,null,null,9,null,8,null,null,null,null,9,8,null,null,null,"+",20,"ОК"]
[null,"Никоненко Анастасия Германовна","БРО153","Реклама и связи с общественностью",185,{"$f":"IF(G32 > 0, MAX(G$12:G$110) / G32, 0)","v":1.6556521739130434},23,{"$f":"E32*F32","v":306.29565217391303},56,7,{"$f":"IF(J32 > 0,I32/J32,0)","v":8},{"$f":"MIN($O32:AU32)","v":7},null,7,null,null,10,null,8,null,null,null,null,null,null,null,null,null,null,null,null,7,null,null,7,null,null,null,null,null,8,8,8,null,null,null,"+",21,"ОК"]
["22 - 23","Ленкуте Алина Максимовна","БРО152","Реклама и связи с общественностью",184,{"$f":"IF(G33 > 0, MAX(G$12:G$110) / G33, 0)","v":1.6556521739130434},23,{"$f":"E33*F33","v":304.64},57,7,{"$f":"IF(J33 > 0,I33/J33,0)","v":8.1428571428571423},{"$f":"MIN($O33:AU33)","v":7},null,7,null,null,8,null,8,null,null,null,null,null,null,null,null,7,null,null,null,9,null,null,8,null,null,null,null,null,null,10,7,null,null,null,"+",22,"ОК"]
[null,"Шельменкина Карина Сергеевна","БРО153","Реклама и связи с общественностью",184,{"$f":"IF(G34 > 0, MAX(G$12:G$110) / G34, 0)","v":1.6556521739130434},23,{"$f":"E34*F34","v":304.64},56,7,{"$f":"IF(J34 > 0,I34/J34,0)","v":8},{"$f":"MIN($O34:AU34)","v":6},null,7,null,null,9,null,8,null,null,null,null,null,null,null,null,null,null,8,null,8,null,null,8,null,null,null,null,null,null,9,6,null,null,null,"+",23,"ОК"]
["24 - 26","Солдатенкова Арина Витальевна","БРО151","Реклама и связи с общественностью",182,{"$f":"IF(G35 > 0, MAX(G$12:G$110) / G35, 0)","v":1.6556521739130434},23,{"$f":"E35*F35","v":301.32869565217391},56,7,{"$f":"IF(J35 > 0,I35/J35,0)","v":8},{"$f":"MIN($O35:AU35)","v":7},null,7,null,null,9,null,8,null,null,null,null,null,null,null,null,null,null,null,null,8,null,null,9,null,null,null,null,null,7,8,7,null,null,null,"+",24,"ОК"]
[null,"Ужегова Полина Александровна","БРО151","Реклама и связи с общественностью",182,{"$f":"IF(G36 > 0, MAX(G$12:G$110) / G36, 0)","v":1.6556521739130434},23,{"$f":"E36*F36","v":301.32869565217391},56,7,{"$f":"IF(J36 > 0,I36/J36,0)","v":8},{"$f":"MIN($O36:AU36)","v":7},null,7,null,null,10,null,7,null,null,null,null,null,null,null,null,null,null,null,null,7,null,null,9,null,null,null,7,null,null,8,8,null,null,null,"+",25,"ОК"]
[null,"Гришина Мария Сергеевна","БРО153","Реклама и связи с общественностью",182,{"$f":"IF(G37 > 0, MAX(G$12:G$110) / G37, 0)","v":1.6556521739130434},23,{"$f":"E37*F37","v":301.32869565217391},54,7,{"$f":"IF(J37 > 0,I37/J37,0)","v":7.7142857142857144},{"$f":"MIN($O37:AU37)","v":5},null,7,null,null,8,null,9,null,null,null,null,null,null,null,null,null,9,null,null,7,null,null,8,null,null,null,null,null,null,8,5,null,null,null,"+",26,"ОК"]
[27,"Богданова Владлена Сергеевна","БРО152","Реклама и связи с общественностью",180,{"$f":"IF(G38 > 0, MAX(G$12:G$110) / G38, 0)","v":1.6556521739130434},23,{"$f":"E38*F38","v":298.01739130434783},54,7,{"$f":"IF(J38 > 0,I38/J38,0)","v":7.7142857142857144},{"$f":"MIN($O38:AU38)","v":6},null,7,null,null,8,null,8,null,null,null,null,null,null,null,null,null,null,null,null,6,null,8,7,null,null,null,null,null,null,9,8,null,null,null,"+",27,"ОК"]
["28 - 29","Милова Анастасия Андреевна","БРО151","Реклама и связи с общественностью",179,{"$f":"IF(G39 > 0, MAX(G$12:G$110) / G39, 0)","v":1.6556521739130434},23,{"$f":"E39*F39","v":296.36173913043478},63,8,{"$f":"IF(J39 > 0,I39/J39,0)","v":7.875},{"$f":"MIN($O39:AU39)","v":6},null,8,null,null,9,null,8,null,null,null,null,null,null,null,null,8,null,null,null,7,null,null,8,null,null,null,null,null,null,8,6,null,null,null,"+",28,"ОК"]
[null,"Серегин Геннадий Евгеньевич","БРО152","Реклама и связи с общественностью",179,{"$f":"IF(G40 > 0, MAX(G$12:G$110) / G40, 0)","v":1.6556521739130434},23,{"$f":"E40*F40","v":296.36173913043478},55,7,{"$f":"IF(J40 > 0,I40/J40,0)","v":7.8571428571428568},{"$f":"MIN($O40:AU40)","v":7},null,7,null,null,8,null,8,null,null,null,null,null,null,null,null,null,null,7,null,8,null,null,7,null,null,null,null,null,null,8,9,null,null,null,"+",29,"ОК"]
[30,"Коломиец Ольга Андреевна","БРО153","Реклама и связи с общественностью",217,{"$f":"IF(G41 > 0, MAX(G$12:G$110) / G41, 0)","v":1.3599999999999999},28,{"$f":"E41*F41","v":295.11999999999995},62,8,{"$f":"IF(J41 > 0,I41/J41,0)","v":7.75},{"$f":"MIN($O41:AU41)","v":6},null,8,null,null,8,null,10,null,null,"6 *",null,null,null,null,null,null,null,null,null,7,null,null,6,null,null,null,null,null,8,9,null,8,null,null,"+",30,"ОК"]
[31,"Чуб Степан Александрович","БРО152","Реклама и связи с общественностью",230.64,{"$f":"IF(G42 > 0, MAX(G$12:G$110) / G42, 0)","v":1.2659574468085106},30.08,{"$f":"E42*F42","v":291.98042553191488},78,10,{"$f":"IF(J42 > 0,I42/J42,0)","v":7.8},{"$f":"MIN($O42:AU42)","v":6},null,10,null,null,7,null,8,null,null,"6 *",null,null,null,null,null,10,null,null,null,6,"8 *",null,8,null,null,null,null,null,null,7,null,8,null,null,"+",31,"ОК"]
[32,"Романовская Алина Андреевна","БРО151","Реклама и связи с общественностью",176,{"$f":"IF(G43 > 0, MAX(G$12:G$110) / G43, 0)","v":1.6556521739130434},23,{"$f":"E43*F43","v":291.39478260869566},55,7,{"$f":"IF(J43 > 0,I43/J43,0)","v":7.8571428571428568},{"$f":"MIN($O43:AU43)","v":6},null,7,null,null,9,null,6,null,null,null,7,null,null,null,null,null,null,null,null,9,null,null,9,null,null,null,null,null,null,9,6,null,null,null,"+",32,"ОК"]
["33 - 35","Дроздова Елизавета Владимировна","БРО153","Реклама и связи с общественностью",174,{"$f":"IF(G44 > 0, MAX(G$12:G$110) / G44, 0)","v":1.6556521739130434},23,{"$f":"E44*F44","v":288.08347826086958},53,7,{"$f":"IF(J44 > 0,I44/J44,0)","v":7.5714285714285712},{"$f":"MIN($O44:AU44)","v":6},null,7,null,null,9,null,6,null,null,null,null,null,null,null,null,null,null,8,null,7,null,null,8,null,null,null,null,null,null,8,7,null,null,null,"+",33,"ОК"]
[null,"Скворцова Анна Алексеевна","БРО153","Реклама и связи с общественностью",174,{"$f":"IF(G45 > 0, MAX(G$12:G$110) / G45, 0)","v":1.6556521739130434},23,{"$f":"E45*F45","v":288.08347826086958},53,7,{"$f":"IF(J45 > 0,I45/J45,0)","v":7.5714285714285712},{"$f":"MIN($O45:AU45)","v":7},null,7,null,null,9,null,8,null,null,null,null,null,null,null,null,null,null,null,null,7,null,7,7,null,null,null,null,null,null,7,8,null,null,null,"+",34,"ОК"]
[null,"Даниель Александра Александровна","БРО151","Реклама и связи с общественностью",174,{"$f":"IF(G46 > 0, MAX(G$12:G$110) / G46, 0)","v":1.6556521739130434},23,{"$f":"E46*F46","v":288.08347826086958},60,8,{"$f":"IF(J46 > 0,I46/J46,0)","v":7.5},{"$f":"MIN($O46:AU46)","v":6},null,8,null,null,8,null,6,null,null,null,null,null,null,null,null,null,null,null,null,6,null,null,8,null,null,null,null,null,9,8,7,null,null,null,"+",35,"ОК"]
["36 - 38","Веряева Ксения Михайловна","БРО152","Реклама и связи с общественностью",172,{"$f":"IF(G47 > 0, MAX(G$12:G$110) / G47, 0)","v":1.6556521739130434},23,{"$f":"E47*F47","v":284.77217391304345},53,7,{"$f":"IF(J47 > 0,I47/J47,0)","v":7.5714285714285712},{"$f":"MIN($O47:AU47)","v":6},null,7,null,null,8,null,9,null,null,null,null,null,null,null,null,6,null,null,null,8,null,null,8,null,null,null,null,null,null,8,6,null,null,null,"+",36,"ОК"]
[null,"Панарина Елизавета Сергеевна","БРО151","Реклама и связи с общественностью",172,{"$f":"IF(G48 > 0, MAX(G$12:G$110) / G48, 0)","v":1.6556521739130434},23,{"$f":"E48*F48","v":284.77217391304345},53,7,{"$f":"IF(J48 > 0,I48/J48,0)","v":7.5714285714285712},{"$f":"MIN($O48:AU48)","v":6},null,7,null,null,8,null,7,null,null,null,7,null,null,null,null,null,null,null,null,8,null,null,8,null,null,null,null,null,null,9,6,null,null,null,"+",37,"ОК"]
[null,"Пономарева Елизавета","БРО151","Реклама и связи с общественностью",172,{"$f":"IF(G49 > 0, MAX(G$12:G$110) / G49, 0)","v":1.6556521739130434},23,{"$f":"E49*F49","v":284.77217391304345},53,7,{"$f":"IF(J49 > 0,I49/J49,0)","v":7.5714285714285712},{"$f":"MIN($O49:AU49)","v":6},null,7,null,null,9,null,8,null,6,null,null,null,null,null,null,null,null,null,null,7,null,null,8,null,null,null,null,null,null,8,7,null,null,null,"+",38,"ОК"]
["39 - 40","Астурян Вячеслав Вячеславович","БРО152","Реклама и связи с общественностью",168,{"$f":"IF(G50 > 0, MAX(G$12:G$110) / G50, 0)","v":1.6556521739130434},23,{"$f":"E50*F50","v":278.14956521739128},52,7,{"$f":"IF(J50 > 0,I50/J50,0)","v":7.4285714285714288},{"$f":"MIN($O50:AU50)","v":6},null,7,null,null,9,null,8,null,null,null,null,null,null,null,null,6,null,null,null,8,null,null,8,null,null,null,null,null,null,7,6,null,null,null,"+",39,"ОК"]
[null,"Толбухина Полина Дмитриевна","БРО153","Реклама и связи с общественностью",168,{"$f":"IF(G51 > 0, MAX(G$12:G$110) / G51, 0)","v":1.6556521739130434},23,{"$f":"E51*F51","v":278.14956521739128},51,7,{"$f":"IF(J51 > 0,I51/J51,0)","v":7.2857142857142856},{"$f":"MIN($O51:AU51)","v":6},null,7,null,null,8,null,8,null,null,null,null,null,null,null,null,null,null,null,null,7,null,null,8,null,null,null,7,null,null,7,6,null,null,null,"+",40,"ОК"]
[41,"Гридчина Нина Сергеевна","БРО153","Реклама и связи с общественностью",248.64,{"$f":"IF(G52 > 0, MAX(G$12:G$110) / G52, 0)","v":1.1173708920187793},34.08,{"$f":"E52*F52","v":277.82309859154924},83,11,{"$f":"IF(J52 > 0,I52/J52,0)","v":7.5454545454545459},{"$f":"MIN($O52:AU52)","v":7},null,11,"9 *","4 *",9,null,null,null,null,"6 *",null,null,null,null,null,null,null,null,null,9,"8 *",null,7,null,null,null,null,null,8,9,8,null,"6 *",null,"+",41,"ОК"]
[42,"Жаркова Дарья Андреевна","БРО153","Реклама и связи с общественностью",277.56,{"$f":"IF(G53 > 0, MAX(G$12:G$110) / G53, 0)","v":1},38.08,{"$f":"E53*F53","v":277.56},78,11,{"$f":"IF(J53 > 0,I53/J53,0)","v":7.0909090909090908},{"$f":"MIN($O53:AU53)","v":6},null,11,null,null,7,null,8,null,null,"8 *",null,null,"7 *",null,null,null,null,null,null,6,"7 *",null,6,null,null,null,null,null,null,7,6,null,"7 *",null,"+",42,"ОК"]
["43 - 44","Тузова Евгения Сергеевна","БРО152","Реклама и связи с общественностью",165,{"$f":"IF(G54 > 0, MAX(G$12:G$110) / G54, 0)","v":1.6556521739130434},23,{"$f":"E54*F54","v":273.18260869565216},48,6,{"$f":"IF(J54 > 0,I54/J54,0)","v":8},{"$f":"MIN($O54:AU54)","v":6},"Да",6,null,null,8,null,9,null,null,null,9,null,null,null,null,null,null,null,null,6,null,null,8,null,null,null,null,null,null,8,"н/я (ув)",null,null,null,"+",43,"ОК"]
[null,"Кунцевич Мария","БРО153","Реклама и связи с общественностью",165,{"$f":"IF(G55 > 0, MAX(G$12:G$110) / G55, 0)","v":1.6556521739130434},23,{"$f":"E55*F55","v":273.18260869565216},50,7,{"$f":"IF(J55 > 0,I55/J55,0)","v":7.1428571428571432},{"$f":"MIN($O55:AU55)","v":6},null,7,null,null,8,null,6,null,null,null,null,null,null,null,null,null,null,null,null,7,null,null,8,null,null,8,null,null,null,7,6,null,null,null,"+",44,"ОК"]
[45,"Чернышева Юлия Ивановна","БРО151","Реклама и связи с общественностью",264.56,{"$f":"IF(G56 > 0, MAX(G$12:G$110) / G56, 0)","v":1.0269687162891046},37.08,{"$f":"E56*F56","v":271.69484358144553},79,11,{"$f":"IF(J56 > 0,I56/J56,0)","v":7.1818181818181817},{"$f":"MIN($O56:AU56)","v":7},null,11,null,"5 *",8,null,7,null,null,"5 *",null,null,null,null,null,null,null,null,null,8,"7 *",null,8,null,null,null,null,null,null,8,7,null,"7 *",null,"+",45,"ОК"]
[46,"Надирова Анна Зурабовна","БРО151","Реклама и связи с общественностью",161,{"$f":"IF(G57 > 0, MAX(G$12:G$110) / G57, 0)","v":1.6556521739130434},23,{"$f":"E57*F57","v":266.56},49,7,{"$f":"IF(J57 > 0,I57/J57,0)","v":7},{"$f":"MIN($O57:AU57)","v":5},null,7,null,null,8,null,8,null,null,null,null,null,null,null,null,6,null,null,null,6,null,null,8,null,null,null,null,null,null,8,5,null,null,null,"+",46,"ОК"]
[47,"Барыкина Александра Сергеевна","БРО151","Реклама и связи с общественностью",160,{"$f":"IF(G58 > 0, MAX(G$12:G$110) / G58, 0)","v":1.6556521739130434},23,{"$f":"E58*F58","v":264.90434782608696},48,7,{"$f":"IF(J58 > 0,I58/J58,0)","v":6.8571428571428568},{"$f":"MIN($O58:AU58)","v":3},"Да",6,null,null,8,null,8,null,null,null,null,null,null,null,null,null,null,null,null,6,null,null,8,null,null,null,null,null,7,8,3,null,null,null,"+",47,"ОК"]
[48,"Ковалева Анастасия Романовна","БРО152","Реклама и связи с общественностью",132,{"$f":"IF(G59 > 0, MAX(G$12:G$110) / G59, 0)","v":2.0042105263157892},19,{"$f":"E59*F59","v":264.55578947368417},40,7,{"$f":"IF(J59 > 0,I59/J59,0)","v":5.7142857142857144},{"$f":"MIN($O59:AU59)","v":4},null,6,null,null,8,null,null,null,null,null,8,null,null,null,null,null,null,null,null,4,null,null,7,null,null,null,null,null,null,7,6,null,null,null,"+",48,"ОК"]
[49,"Смирнова Полина Алексеевна","БРО151","Реклама и связи с общественностью",159,{"$f":"IF(G60 > 0, MAX(G$12:G$110) / G60, 0)","v":1.6556521739130434},23,{"$f":"E60*F60","v":263.24869565217392},49,7,{"$f":"IF(J60 > 0,I60/J60,0)","v":7},{"$f":"MIN($O60:AU60)","v":3},"Да",6,null,null,8,null,8,null,null,null,null,null,null,null,null,null,null,null,null,8,null,null,7,null,null,null,6,null,null,9,3,null,null,null,"+",49,"ОК"]
[50,"Романова Екатерина Сергеевна","БРО153","Реклама и связи с общественностью",131,{"$f":"IF(G61 > 0, MAX(G$12:G$110) / G61, 0)","v":2.0042105263157892},19,{"$f":"E61*F61","v":262.5515789473684},42,6,{"$f":"IF(J61 > 0,I61/J61,0)","v":7},{"$f":"MIN($O61:AU61)","v":6},null,6,null,null,9,null,null,null,null,null,null,null,null,null,null,null,null,null,null,7,null,null,7,null,6,null,null,null,null,7,6,null,null,null,"+",50,"ОК"]
["51 - 52","Бекназарова Комилла Сохибжоновна","БРО151","Реклама и связи с общественностью",158,{"$f":"IF(G62 > 0, MAX(G$12:G$110) / G62, 0)","v":1.6556521739130434},23,{"$f":"E62*F62","v":261.59304347826088},49,7,{"$f":"IF(J62 > 0,I62/J62,0)","v":7},{"$f":"MIN($O62:AU62)","v":6},null,7,null,null,7,null,7,null,null,null,null,null,null,null,null,null,null,6,null,8,null,null,8,null,null,null,null,null,null,7,6,null,null,null,"+",51,"ОК"]
[null,"Полякова Александра Дмитриевна","БРО152","Реклама и связи с общественностью",158,{"$f":"IF(G63 > 0, MAX(G$12:G$110) / G63, 0)","v":1.6556521739130434},23,{"$f":"E63*F63","v":261.59304347826088},48,7,{"$f":"IF(J63 > 0,I63/J63,0)","v":6.8571428571428568},{"$f":"MIN($O63:AU63)","v":6},null,7,null,null,7,null,6,null,null,null,null,null,null,null,null,null,null,null,null,6,null,null,8,null,null,null,null,null,7,7,7,null,null,null,"+",52,"ОК"]
["53 - 54","Мельник Алексей Сергеевич","БРО153","Реклама и связи с общественностью",156,{"$f":"IF(G64 > 0, MAX(G$12:G$110) / G64, 0)","v":1.6556521739130434},23,{"$f":"E64*F64","v":258.2817391304348},48,7,{"$f":"IF(J64 > 0,I64/J64,0)","v":6.8571428571428568},{"$f":"MIN($O64:AU64)","v":6},null,7,null,null,6,null,6,null,null,null,6,null,null,null,null,null,null,null,null,6,null,null,8,null,null,null,null,null,null,9,7,null,null,null,"+",53,"ОК"]
[null,"Фролов Василий Александрович","БРО152","Реклама и связи с общественностью",156,{"$f":"IF(G65 > 0, MAX(G$12:G$110) / G65, 0)","v":1.6556521739130434},23,{"$f":"E65*F65","v":258.2817391304348},47,7,{"$f":"IF(J65 > 0,I65/J65,0)","v":6.7142857142857144},{"$f":"MIN($O65:AU65)","v":5},null,7,null,null,8,null,5,null,null,null,null,null,null,null,null,null,null,null,null,6,null,null,7,null,8,null,null,null,null,7,6,null,null,null,"+",54,"ОК"]
[55,"Яснева Екатерина Андреевна","БРО153","Реклама и связи с общественностью",203.56,{"$f":"IF(G66 > 0, MAX(G$12:G$110) / G66, 0)","v":1.2659574468085106},30.08,{"$f":"E66*F66","v":257.69829787234045},62,9,{"$f":"IF(J66 > 0,I66/J66,0)","v":6.8888888888888893},{"$f":"MIN($O66:AU66)","v":5},null,9,null,null,10,null,5,null,null,"6 *",null,null,null,null,null,7,null,null,null,7,"7 *",null,7,null,null,null,null,null,null,7,6,null,null,null,"+",55,"ОК"]
["56 - 57","Дремлюк Марья","БРО153","Реклама и связи с общественностью",154,{"$f":"IF(G67 > 0, MAX(G$12:G$110) / G67, 0)","v":1.6556521739130434},23,{"$f":"E67*F67","v":254.97043478260869},48,7,{"$f":"IF(J67 > 0,I67/J67,0)","v":6.8571428571428568},{"$f":"MIN($O67:AU67)","v":5},null,7,null,null,10,null,6,null,null,null,5,null,null,null,null,null,null,null,null,6,null,null,7,null,null,null,null,null,null,8,6,null,null,null,"+",56,"ОК"]
[null,"Юрьева Мария Дмитриевна","БРО153","Реклама и связи с общественностью",154,{"$f":"IF(G68 > 0, MAX(G$12:G$110) / G68, 0)","v":1.6556521739130434},23,{"$f":"E68*F68","v":254.97043478260869},48,7,{"$f":"IF(J68 > 0,I68/J68,0)","v":6.8571428571428568},{"$f":"MIN($O68:AU68)","v":5},null,7,null,null,8,null,7,null,null,null,null,null,null,null,null,5,null,null,null,7,null,null,7,null,null,null,null,null,null,7,7,null,null,null,"+",57,"ОК"]
["58 - 59","Аккалаев Марат Русланович","БРО151","Реклама и связи с общественностью",153,{"$f":"IF(G69 > 0, MAX(G$12:G$110) / G69, 0)","v":1.6556521739130434},23,{"$f":"E69*F69","v":253.31478260869565},47,7,{"$f":"IF(J69 > 0,I69/J69,0)","v":6.7142857142857144},{"$f":"MIN($O69:AU69)","v":6},null,7,null,null,7,null,8,null,null,null,6,null,null,null,null,null,null,null,null,8,null,null,6,null,null,null,null,null,null,6,6,null,null,null,"+",58,"ОК"]
[null,"Кравчук Кристина Александровна","БРО153","Реклама и связи с общественностью",153,{"$f":"IF(G70 > 0, MAX(G$12:G$110) / G70, 0)","v":1.6556521739130434},23,{"$f":"E70*F70","v":253.31478260869565},47,7,{"$f":"IF(J70 > 0,I70/J70,0)","v":6.7142857142857144},{"$f":"MIN($O70:AU70)","v":6},null,7,null,null,9,null,6,null,null,null,null,null,null,null,null,null,null,null,null,6,null,null,7,6,null,null,null,null,null,7,6,null,null,null,"+",59,"ОК"]
[60,"Сак Евгения Леонидовна","БРО152","Реклама и связи с общественностью",152,{"$f":"IF(G71 > 0, MAX(G$12:G$110) / G71, 0)","v":1.6556521739130434},23,{"$f":"E71*F71","v":251.65913043478261},45,7,{"$f":"IF(J71 > 0,I71/J71,0)","v":6.4285714285714288},{"$f":"MIN($O71:AU71)","v":4},null,7,null,null,8,null,7,null,null,null,null,null,null,null,8,null,null,null,null,6,null,null,4,null,null,null,null,null,null,7,5,null,null,null,"+",60,"ОК"]
[61,"Бажулич Кристина Джуровна","БРО151","Реклама и связи с общественностью",198.48,{"$f":"IF(G72 > 0, MAX(G$12:G$110) / G72, 0)","v":1.2659574468085106},30.08,{"$f":"E72*F72","v":251.26723404255318},59,9,{"$f":"IF(J72 > 0,I72/J72,0)","v":6.5555555555555554},{"$f":"MIN($O72:AU72)","v":5},null,9,null,null,8,null,6,null,null,"5 *",null,null,null,null,null,null,null,null,null,7,"6 *",null,7,null,null,null,null,null,null,5,6,null,null,null,"+",61,"ОК"]
[62,"Горохова Елизавета Юрьевна","БРО153","Реклама и связи с общественностью",149,{"$f":"IF(G73 > 0, MAX(G$12:G$110) / G73, 0)","v":1.6556521739130434},23,{"$f":"E73*F73","v":246.69217391304346},44,6,{"$f":"IF(J73 > 0,I73/J73,0)","v":7.333333333333333},{"$f":"MIN($O73:AU73)","v":6},"Да",6,null,null,"н/я (ув)",null,6,null,null,null,null,null,null,null,null,null,null,null,null,7,null,null,7,null,null,null,null,null,null,8,7,null,null,null,"+",62,"ОК"]
[63,"Захряпина Анастасия Алексеевна","БРО152","Реклама и связи с общественностью",148,{"$f":"IF(G74 > 0, MAX(G$12:G$110) / G74, 0)","v":1.6556521739130434},23,{"$f":"E74*F74","v":245.03652173913042},45,7,{"$f":"IF(J74 > 0,I74/J74,0)","v":6.4285714285714288},{"$f":"MIN($O74:AU74)","v":4},null,7,null,null,8,null,7,null,null,null,null,null,null,null,null,null,null,null,null,6,null,null,6,null,null,null,null,null,6,8,4,null,null,null,"+",63,"ОК"]
[64,"Белякова Анастасия","БРО151","Реклама и связи с общественностью",146,{"$f":"IF(G75 > 0, MAX(G$12:G$110) / G75, 0)","v":1.6556521739130434},23,{"$f":"E75*F75","v":241.72521739130434},44,7,{"$f":"IF(J75 > 0,I75/J75,0)","v":6.2857142857142856},{"$f":"MIN($O75:AU75)","v":4},null,7,null,null,7,null,8,null,null,null,null,null,null,null,null,6,null,null,null,6,null,null,7,null,null,null,null,null,null,6,4,null,null,null,"+",64,"ОК"]
[65,"Абдулхакимова Афина Шавкатовна","БРО151","Реклама и связи с общественностью",143,{"$f":"IF(G76 > 0, MAX(G$12:G$110) / G76, 0)","v":1.6556521739130434},23,{"$f":"E76*F76","v":236.75826086956522},43,7,{"$f":"IF(J76 > 0,I76/J76,0)","v":6.1428571428571432},{"$f":"MIN($O76:AU76)","v":3},"Да",6,null,null,7,null,8,null,null,null,null,null,null,null,null,null,null,null,null,6,null,null,7,null,null,null,null,null,6,6,3,null,null,null,"+",65,"ОК"]
[66,"Мухортова Дарья Александровна","БРО152","Реклама и связи с общественностью",142,{"$f":"IF(G77 > 0, MAX(G$12:G$110) / G77, 0)","v":1.6556521739130434},23,{"$f":"E77*F77","v":235.10260869565218},41,7,{"$f":"IF(J77 > 0,I77/J77,0)","v":5.8571428571428568},{"$f":"MIN($O77:AU77)","v":3},"Да",6,null,null,8,null,8,null,null,null,null,null,null,null,null,null,null,null,null,3,null,null,5,null,7,null,null,null,null,6,4,null,null,null,"+",66,"ОК"]
[67,"Ганиева Карина Туребековна","БРО151","Реклама и связи с общественностью",141,{"$f":"IF(G78 > 0, MAX(G$12:G$110) / G78, 0)","v":1.6556521739130434},23,{"$f":"E78*F78","v":233.44695652173911},43,7,{"$f":"IF(J78 > 0,I78/J78,0)","v":6.1428571428571432},{"$f":"MIN($O78:AU78)","v":3},"Да",6,null,null,9,null,6,null,null,null,null,null,null,null,null,null,null,null,null,6,null,6,6,null,null,null,null,null,null,7,3,null,null,null,"+",67,"ОК"]
[68,"Галкин Вячеслав Владимирович","БРО153","Реклама и связи с общественностью",140,{"$f":"IF(G79 > 0, MAX(G$12:G$110) / G79, 0)","v":1.6556521739130434},23,{"$f":"E79*F79","v":231.79130434782607},48,8,{"$f":"IF(J79 > 0,I79/J79,0)","v":6},{"$f":"MIN($O79:AU79)","v":4},null,8,null,null,7,null,4,null,null,null,null,null,null,null,null,null,null,null,null,5,null,null,4,null,null,null,null,null,null,8,4,null,null,null,"+",68,"ОК"]
["69 - 70","Нафталиева Яна Абрамовна","БРО152","Реклама и связи с общественностью",139,{"$f":"IF(G80 > 0, MAX(G$12:G$110) / G80, 0)","v":1.6556521739130434},23,{"$f":"E80*F80","v":230.13565217391303},40,5,{"$f":"IF(J80 > 0,I80/J80,0)","v":8},{"$f":"MIN($O80:AU80)","v":7},"Да",5,null,null,8,null,8,null,null,null,null,null,null,null,9,null,null,null,null,7,null,null,"н/я (ув)",null,null,null,null,null,null,8,"н/я (ув)",null,null,null,"+",69,"ОК"]
[null,"Ермаков Иван Григорьевич","БРО151","Реклама и связи с общественностью",139,{"$f":"IF(G81 > 0, MAX(G$12:G$110) / G81, 0)","v":1.6556521739130434},23,{"$f":"E81*F81","v":230.13565217391303},43,7,{"$f":"IF(J81 > 0,I81/J81,0)","v":6.1428571428571432},{"$f":"MIN($O81:AU81)","v":5},null,7,null,null,7,null,6,null,null,null,null,null,null,null,null,null,null,null,null,6,null,5,6,null,null,null,null,null,null,8,5,null,null,null,"+",70,"ОК"]
[71,"Ковтун Юлия Алексеевна","БРО153","Реклама и связи с общественностью",138,{"$f":"IF(G82 > 0, MAX(G$12:G$110) / G82, 0)","v":1.6556521739130434},23,{"$f":"E82*F82","v":228.48},41,7,{"$f":"IF(J82 > 0,I82/J82,0)","v":5.8571428571428568},{"$f":"MIN($O82:AU82)","v":3},"Да",6,null,null,6,null,6,null,null,null,null,null,null,null,null,null,null,null,null,5,null,null,6,null,null,null,null,7,null,8,3,null,null,null,"+",71]
[72,"Шеховцова Елизавета Дмитриевна","БРО152","Реклама и связи с общественностью",174.56,{"$f":"IF(G83 > 0, MAX(G$12:G$110) / G83, 0)","v":1.2659574468085106},30.08,{"$f":"E83*F83","v":220.98553191489361},52,9,{"$f":"IF(J83 > 0,I83/J83,0)","v":5.7777777777777777},{"$f":"MIN($O83:AU83)","v":4},null,9,null,null,7,null,5,null,null,"5 *",7,null,null,null,null,null,null,null,null,4,"7 *",null,6,null,null,null,null,null,null,6,5,null,null,null,"+",72]
[73,"Бисовка Евгений Геннадьевич","БРО153","Реклама и связи с общественностью",133,{"$f":"IF(G84 > 0, MAX(G$12:G$110) / G84, 0)","v":1.6556521739130434},23,{"$f":"E84*F84","v":220.20173913043479},41,7,{"$f":"IF(J84 > 0,I84/J84,0)","v":5.8571428571428568},{"$f":"MIN($O84:AU84)","v":5},null,7,null,null,7,null,6,null,null,null,null,null,null,null,null,null,null,null,null,6,null,null,6,null,5,null,null,null,null,5,6,null,null,null,"+",73]
[74,"Харисов Артур Раоланович","БРО153","Реклама и связи с общественностью",196.48000000000002,{"$f":"IF(G85 > 0, MAX(G$12:G$110) / G85, 0)","v":1.1173708920187793},34.08,{"$f":"E85*F85","v":219.54103286384978},58,10,{"$f":"IF(J85 > 0,I85/J85,0)","v":5.8},{"$f":"MIN($O85:AU85)","v":3},"Да",9,null,null,8,null,null,null,null,"5 *",6,null,"5 *",null,null,null,null,null,null,6,"6 *",null,7,null,null,null,null,null,null,5,3,null,"7 *",null,"+",74]
[75,"Хохлова Наталия Алексеевна","БРО151","Реклама и связи с общественностью",219.32,{"$f":"IF(G86 > 0, MAX(G$12:G$110) / G86, 0)","v":1},38.08,{"$f":"E86*F86","v":219.32},63,11,{"$f":"IF(J86 > 0,I86/J86,0)","v":5.7272727272727275},{"$f":"MIN($O86:AU86)","v":4},null,11,null,null,7,null,6,null,null,"4 *",null,null,"8 *",null,null,null,null,null,null,4,"4 *",null,7,5,null,null,null,null,null,7,5,null,"6 *",null,"+",75]
[76,"Рашилова Полина Викторовна","БРО151","Реклама и связи с общественностью",172,{"$f":"IF(G87 > 0, MAX(G$12:G$110) / G87, 0)","v":1.2659574468085106},30.08,{"$f":"E87*F87","v":217.74468085106383},51,8,{"$f":"IF(J87 > 0,I87/J87,0)","v":6.375},{"$f":"MIN($O87:AU87)","v":5},"Да",8,null,null,7,null,5,null,null,"4 *",null,null,null,null,null,null,null,null,null,6,"н/я *",null,6,null,6,null,null,null,null,7,10,null,null,null,"+",76]
[77,"Луданова Евгения Александровна","БРО151","Реклама и связи с общественностью",217.32,{"$f":"IF(G88 > 0, MAX(G$12:G$110) / G88, 0)","v":1},38.08,{"$f":"E88*F88","v":217.32},62,11,{"$f":"IF(J88 > 0,I88/J88,0)","v":5.6363636363636367},{"$f":"MIN($O88:AU88)","v":3},"Да",10,null,null,8,null,7,null,null,"5 *",null,null,"8 *",null,null,null,null,null,null,6,"4 *",null,5,5,null,null,null,null,null,5,3,null,"6 *",null,"+",77]
[78,"Громов Максим Сергеевич","БРО152","Реклама и связи с общественностью",216.32,{"$f":"IF(G89 > 0, MAX(G$12:G$110) / G89, 0)","v":1},38.08,{"$f":"E89*F89","v":216.32},62,11,{"$f":"IF(J89 > 0,I89/J89,0)","v":5.6363636363636367},{"$f":"MIN($O89:AU89)","v":4},null,11,null,null,7,null,8,null,null,"5 *",null,null,"6 *",null,7,null,null,null,null,8,"4 *",null,5,null,null,null,null,null,null,4,4,null,"4 *",null,"+",78]
[79,"Поляков Илья Станиславович","БРО153","Реклама и связи с общественностью",130,{"$f":"IF(G90 > 0, MAX(G$12:G$110) / G90, 0)","v":1.6556521739130434},23,{"$f":"E90*F90","v":215.23478260869564},40,7,{"$f":"IF(J90 > 0,I90/J90,0)","v":5.7142857142857144},{"$f":"MIN($O90:AU90)","v":4},null,7,null,null,6,null,4,null,null,null,null,null,null,null,6,null,null,null,null,6,null,null,6,null,null,null,null,null,null,6,6,null,null,null,"+",79]
[80,"Авилова Виктория Борисовна","БРО152","Реклама и связи с общественностью",128,{"$f":"IF(G91 > 0, MAX(G$12:G$110) / G91, 0)","v":1.6556521739130434},23,{"$f":"E91*F91","v":211.92347826086956},39,7,{"$f":"IF(J91 > 0,I91/J91,0)","v":5.5714285714285712},{"$f":"MIN($O91:AU91)","v":4},null,7,null,null,6,null,4,null,null,null,null,null,null,null,null,null,null,null,null,5,null,null,7,null,null,6,null,null,null,7,4,null,null,null,"+",80]
[81,"Редин Виталий Вадимович","БРО153","Реклама и связи с общественностью",123,{"$f":"IF(G92 > 0, MAX(G$12:G$110) / G92, 0)","v":1.6556521739130434},23,{"$f":"E92*F92","v":203.64521739130433},45,8,{"$f":"IF(J92 > 0,I92/J92,0)","v":5.625},{"$f":"MIN($O92:AU92)","v":3},"Да",6,null,null,7,null,null,10,null,null,null,null,null,"1 *",null,null,null,null,null,3,null,null,4,null,null,null,null,null,null,6,4,null,null,null,10,81]
[82,"Сизова Анна Геннадьевна","БРО152","Реклама и связи с общественностью",122,{"$f":"IF(G93 > 0, MAX(G$12:G$110) / G93, 0)","v":1.6556521739130434},23,{"$f":"E93*F93","v":201.98956521739129},35,5,{"$f":"IF(J93 > 0,I93/J93,0)","v":7},{"$f":"MIN($O93:AU93)","v":6},"Да",5,null,null,7,null,7,null,null,null,null,null,null,null,8,null,null,null,null,6,null,null,"н/я (ув)",null,null,null,null,null,null,7,"н/я (ув)",null,null,null,"+",82]
[83,"Нугуспанова Индира","БРО153","Реклама и связи с общественностью",119,{"$f":"IF(G94 > 0, MAX(G$12:G$110) / G94, 0)","v":1.6556521739130434},23,{"$f":"E94*F94","v":197.02260869565217},44,8,{"$f":"IF(J94 > 0,I94/J94,0)","v":5.5},{"$f":"MIN($O94:AU94)","v":3},"Да",7,null,null,10,null,5,null,null,null,3,null,null,null,null,null,null,null,null,6,null,null,5,null,null,null,null,null,null,4,5,null,null,null,"+",83]
[84,"Шкляр Даниэль Семенович","БРО151","Реклама и связи с общественностью",116,{"$f":"IF(G95 > 0, MAX(G$12:G$110) / G95, 0)","v":1.6556521739130434},23,{"$f":"E95*F95","v":192.05565217391305},35,7,{"$f":"IF(J95 > 0,I95/J95,0)","v":5},{"$f":"MIN($O95:AU95)","v":3},"Да",6,null,null,6,null,6,null,null,null,4,null,null,null,null,null,null,null,null,3,null,null,6,null,null,null,null,null,null,6,4,null,null,null,"+",84]
[85,"Даниленко Ярослав","БРО151","Реклама и связи с общественностью",115,{"$f":"IF(G96 > 0, MAX(G$12:G$110) / G96, 0)","v":1.6556521739130434},23,{"$f":"E96*F96","v":190.4},34,7,{"$f":"IF(J96 > 0,I96/J96,0)","v":4.8571428571428568},{"$f":"MIN($O96:AU96)","v":1},"Да",6,null,null,7,null,4,null,null,null,null,null,null,null,null,null,null,null,null,5,null,null,5,null,null,null,null,7,null,5,1,null,null,null,"+",85]
[86,"Лисина Юлия Андреевна","БРО151","Реклама и связи с общественностью",167.4,{"$f":"IF(G97 > 0, MAX(G$12:G$110) / G97, 0)","v":1.1173708920187793},34.08,{"$f":"E97*F97","v":187.04788732394366},52,10,{"$f":"IF(J97 > 0,I97/J97,0)","v":5.2},{"$f":"MIN($O97:AU97)","v":5},"Да",9,"4 *","0 *",8,null,null,null,null,"7 *",null,null,"6 *",null,null,null,null,null,null,6,"5 *",null,6,null,null,null,5,null,null,5,"н/я",null,null,null,"+",86]
[87,"Скворцова Елизавета Васильевна","БРО151","Реклама и связи с общественностью",127.32,{"$f":"IF(G98 > 0, MAX(G$12:G$110) / G98, 0)","v":1.4601226993865031},26.08,{"$f":"E98*F98","v":185.90282208588957},39,8,{"$f":"IF(J98 > 0,I98/J98,0)","v":4.875},{"$f":"MIN($O98:AU98)","v":0},"Да",6,null,null,9,null,null,null,null,"2 *",null,null,null,null,null,null,null,null,null,0,"4 *",null,7,null,null,null,null,null,5,6,6,null,null,null,"+",87]
[88,"Каньшина Елизавета Сергеевна","БРО153","Реклама и связи с общественностью",124.56,{"$f":"IF(G99 > 0, MAX(G$12:G$110) / G99, 0)","v":1.4601226993865031},26.08,{"$f":"E99*F99","v":181.87288343558282},39,6,{"$f":"IF(J99 > 0,I99/J99,0)","v":6.5},{"$f":"MIN($O99:AU99)","v":4},"Да",6,null,null,8,null,null,null,null,"6 *",null,null,null,null,null,null,null,null,null,6,"7 *",null,"н/я (ув)",null,null,null,null,null,4,8,"н/я (ув)",null,null,null,"+",88]
[89,"Молот Ксения Олеговна","БРО151","Реклама и связи с общественностью",141,{"$f":"IF(G100 > 0, MAX(G$12:G$110) / G100, 0)","v":1.2659574468085106},30.08,{"$f":"E100*F100","v":178.5},42,8,{"$f":"IF(J100 > 0,I100/J100,0)","v":5.25},{"$f":"MIN($O100:AU100)","v":3},"Да",7,null,null,7,null,4,null,null,"4 *",null,null,null,null,null,null,null,null,null,5,"н/я *",null,6,null,null,4,null,null,null,3,9,null,null,null,"+",89]
[90,"Суркин Константин Сергеевич","БРО152","Реклама и связи с общественностью",98,{"$f":"IF(G101 > 0, MAX(G$12:G$110) / G101, 0)","v":1.6556521739130434},23,{"$f":"E101*F101","v":162.25391304347826},44,7,{"$f":"IF(J101 > 0,I101/J101,0)","v":6.2857142857142856},{"$f":"MIN($O101:AU101)","v":4},"Да",7,null,null,null,6,null,null,null,null,null,"н/я",null,"4 *",null,null,null,null,null,null,null,null,6,null,null,null,null,null,null,4,6,null,null,8,10,90]
[91,"Серебрякова Валерия Сергеевна","БРО152","Реклама и связи с общественностью",57,{"$f":"IF(G102 > 0, MAX(G$12:G$110) / G102, 0)","v":2.7199999999999998},14,{"$f":"E102*F102","v":155.04},30,6,{"$f":"IF(J102 > 0,I102/J102,0)","v":5},{"$f":"MIN($O102:AU102)","v":2},"Да",4,null,null,5,null,null,null,null,null,null,null,null,null,null,null,null,null,null,3,null,null,6,null,null,null,null,null,null,4,2,null,null,null,10,91]
[92,"Кармазинский Николай Андреевич","БРО153","Реклама и связи с общественностью",102.4,{"$f":"IF(G103 > 0, MAX(G$12:G$110) / G103, 0)","v":1.4601226993865031},26.08,{"$f":"E103*F103","v":149.51656441717793},33,8,{"$f":"IF(J103 > 0,I103/J103,0)","v":4.125},{"$f":"MIN($O103:AU103)","v":3},"Да",6,null,null,7,null,null,null,null,"2 *",null,null,null,null,null,null,null,null,null,4,"5 *",null,4,null,null,null,null,null,4,4,3,null,null,null,"+",92]
[93,"Авдонина Дарья Романовна","БРО152","Реклама и связи с общественностью",109.32,{"$f":"IF(G104 > 0, MAX(G$12:G$110) / G104, 0)","v":1.2659574468085106},30.08,{"$f":"E104*F104","v":138.39446808510638},33,8,{"$f":"IF(J104 > 0,I104/J104,0)","v":4.125},{"$f":"MIN($O104:AU104)","v":1},"Да",5,null,null,7,null,5,null,null,"6 *",null,null,null,null,null,null,"н/я",null,null,3,"4 *",null,5,null,null,null,null,null,null,2,1,null,null,null,"+",93]
[94,"Абрамов Александр Олегович","БРО152","Реклама и связи с общественностью",91,{"$f":"IF(G105 > 0, MAX(G$12:G$110) / G105, 0)","v":1.4646153846153847},26,{"$f":"E105*F105","v":133.28},42,8,{"$f":"IF(J105 > 0,I105/J105,0)","v":5.25},{"$f":"MIN($O105:AU105)","v":4},"Да",6,null,"3 *",8,null,null,null,null,null,null,null,null,"0 *",null,null,"н/я (ув) *",null,5,null,null,null,4,null,null,null,null,null,null,7,5,null,null,null,10,94]
[95,"Тихонина Мария Игоревна","БРО152","Реклама и связи с общественностью",75,{"$f":"IF(G106 > 0, MAX(G$12:G$110) / G106, 0)","v":1.6556521739130434},23,{"$f":"E106*F106","v":124.17391304347825},23,6,{"$f":"IF(J106 > 0,I106/J106,0)","v":3.8333333333333335},{"$f":"MIN($O106:AU106)","v":0},"Да",2,null,null,7,null,"н/я",null,null,null,null,null,null,null,null,null,null,null,null,0,null,null,7,null,3,null,null,null,null,3,3,null,null,null,"+",95]
[96,"Чачков Алексей Алексеевич","БРО152","Реклама и связи с общественностью",52,{"$f":"IF(G107 > 0, MAX(G$12:G$110) / G107, 0)","v":2.0042105263157892},19,{"$f":"E107*F107","v":104.21894736842104},17,3,{"$f":"IF(J107 > 0,I107/J107,0)","v":5.666666666666667},{"$f":"MIN($O107:AU107)","v":4},"Да",3,null,null,6,null,null,null,null,null,4,null,null,null,null,null,null,null,null,7,null,null,"н/я (ув)",null,null,null,null,null,null,"н/я (ув)","н/я (ув)",null,null,null,"+",96]
[97,"Селиверстова Анастасия Алексеевна","БРО151","Реклама и связи с общественностью",61,{"$f":"IF(G108 > 0, MAX(G$12:G$110) / G108, 0)","v":1.4646153846153847},26,{"$f":"E108*F108","v":89.341538461538462},32,8,{"$f":"IF(J108 > 0,I108/J108,0)","v":4},{"$f":"MIN($O108:AU108)","v":4},"Да",6,null,"1 *",4,null,null,null,null,null,null,null,null,"0 *",null,null,"н/я (ув)",null,null,5,null,null,4,null,null,null,null,null,null,4,4,null,null,null,10,97]
[98,"Арчакова Александра Ивановна","БРО151","Реклама и связи с общественностью",50.16,{"$f":"IF(G109 > 0, MAX(G$12:G$110) / G109, 0)","v":1.2659574468085106},30.08,{"$f":"E109*F109","v":63.500425531914892},15,6,{"$f":"IF(J109 > 0,I109/J109,0)","v":2.5},{"$f":"MIN($O109:AU109)","v":0},"Да",1,null,null,6,null,3,null,null,"2 *",null,null,null,null,null,"н/я",null,null,null,0,"2 *",null,"н/я (ув)",null,null,null,null,null,null,"н/я",2,null,null,null,"+",98]
[99,"Лебедева Маргарита Станиславовна","БРО152","Реклама и связи с общественностью",21,{"$f":"IF(G110 > 0, MAX(G$12:G$110) / G110, 0)","v":1.2659574468085106},30.08,{"$f":"E110*F110","v":26.585106382978722},17,5,{"$f":"IF(J110 > 0,I110/J110,0)","v":3.4},{"$f":"MIN($O110:AU110)","v":0},"Да",2,null,null,null,7,null,null,null,"0 *",null,null,null,"0 *",null,null,null,null,null,0,"н/я *",null,"н/я",null,null,null,"н/я",null,null,"н/я","н/я",null,null,null,10,99]

{"sheet":"Данные","index":1,"n_rows":862,"n_cols":21,"rows_kept":862,"cut":false,"hidden":true,"merged":[]}
["ID","Оценка из 10 баллов до пересдач","Группа","Студент","Фамилия Имя Отчество","Номер студенческого билета","Строка учебного плана","Текущих кредитов за испытание","Вид испытания","Календарный период по плану","Неявка до пересдач","В текущий рейтинг","Текущих кредитов для студента","Оценка зачет/незачет до пересдач","Является бюджетным","Учебный план","Вид записи РУП","Вид записи ИУП","Номер Row"]
[1,2,3,4,5,6,7,8,9,10,11,12,13,14,15,16,17,18,19]
[1623541660,9,"БРО153",1514792971,"Гридчина Нина Сергеевна","М161БРИСО001","Безопасность жизнедеятельности",1,"Экзамен","2016/2017 учебный год 1 модуль",null,9,1,1,0,1520802210,2098,"ikFirst","stCommon","Реклама и связи с общественностью",{"$f":"MATCH(D3,Отчет!#REF!,0)","v":{"$error":"#REF!"}}]
[1623481421,4,"БРО151",1474053891,"Лисина Юлия Андреевна","М151БРИСО086","Безопасность жизнедеятельности",1,"Экзамен","2016/2017 учебный год 1 модуль",null,4,1,1,0,1520802210,2098,"ikFirst","stCommon","Реклама и связи с общественностью",{"$f":"MATCH(D4,Отчет!#REF!,0)","v":{"$error":"#REF!"}}]
[1623504752,5,"БРО151",1516201234,"Чернышева Юлия Ивановна","М151БЛУЦП132","Логика",3,"Экзамен","2016/2017 учебный год 1 модуль",null,15,3,1,0,1520802210,2098,"ikFirst","stCommon","Реклама и связи с общественностью",{"$f":"MATCH(D5,Отчет!#REF!,0)","v":{"$error":"#REF!"}}]
[1623537978,7,"БРО152",1517704476,"Жарикова Анастасия Владимировна","М151БМНДЖ057","Логика",3,"Экзамен","2016/2017 учебный год 1 модуль",null,21,3,1,0,1520802210,2098,"ikFirst","stCommon","Реклама и связи с общественностью",{"$f":"MATCH(D6,Отчет!#REF!,0)","v":{"$error":"#REF!"}}]
[1649669770,1,"БРО151",1649667663,"Селиверстова Анастасия Алексеевна","13151224","Логика",3,"Экзамен","2016/2017 учебный год 1 модуль",null,0,3,0,0,1520802210,2098,"ikFirst","stCommon","Реклама и связи с общественностью",{"$f":"MATCH(D7,Отчет!#REF!,0)","v":{"$error":"#REF!"}}]
[1652986358,3,"БРО152",1652970670,"Абрамов Александр Олегович","13151201","Логика",3,"Экзамен","2016/2017 учебный год 1 модуль",null,0,3,0,0,1520802210,2098,"ikFirst","stCommon","Реклама и связи с общественностью",{"$f":"MATCH(D8,Отчет!#REF!,0)","v":{"$error":"#REF!"}}]
[1623481430,0,"БРО151",1474053891,"Лисина Юлия Андреевна","М151БРИСО086","Логика",3,"Экзамен","2016/2017 учебный год 1 модуль",null,0,3,0,0,1520802210,2098,"ikFirst","stCommon","Реклама и связи с общественностью",{"$f":"MATCH(D9,Отчет!#REF!,0)","v":{"$error":"#REF!"}}]
[1623541668,4,"БРО153",1514792971,"Гридчина Нина Сергеевна","М161БРИСО001","Логика",3,"Экзамен","2016/2017 учебный год 1 модуль",null,12,3,1,0,1520802210,2098,"ikFirst","stCommon","Реклама и связи с общественностью",{"$f":"MATCH(D10,Отчет!#REF!,0)","v":{"$error":"#REF!"}}]
[1580583500,9,"БРО151",1181086716,"Пономарева Елизавета","М151БРИСО077","Основы маркетинга",3,"Экзамен","2016/2017 учебный год 1 модуль",null,27,3,1,1,1520829000,2098,null,"stCommon","Реклама и связи с общественностью",{"$f":"MATCH(D11,Отчет!#REF!,0)","v":{"$error":"#REF!"}}]
[1580590606,10,"БРО153",1181086733,"Дремлюк Марья","М151БРИСО074","Основы маркетинга",3,"Экзамен","2016/2017 учебный год 1 модуль",null,30,3,1,1,1520829000,2098,null,"stCommon","Реклама и связи с общественностью",{"$f":"MATCH(D12,Отчет!#REF!,0)","v":{"$error":"#REF!"}}]
[1580582478,7,"БРО151",1181086750,"Даниленко Ярослав","М151БРИСО078","Основы маркетинга",3,"Экзамен","2016/2017 учебный год 1 модуль",null,21,3,1,1,1520829000,2098,null,"stCommon","Реклама и связи с общественностью",{"$f":"MATCH(D13,Отчет!#REF!,0)","v":{"$error":"#REF!"}}]
[1580587680,8,"БРО152",1181086767,"Мухортова Дарья Александровна","М151БРИСО072","Основы маркетинга",3,"Экзамен","2016/2017 учебный год 1 модуль",null,24,3,1,1,1520829000,2098,null,"stCommon","Реклама и связи с общественностью",{"$f":"MATCH(D14,Отчет!#REF!,0)","v":{"$error":"#REF!"}}]
[1580591071,8,"БРО153",1181086818,"Кунцевич Мария","М151БРИСО076","Основы маркетинга",3,"Экзамен","2016/2017 учебный год 1 модуль",null,24,3,1,1,1520829000,2098,null,"stCommon","Реклама и связи с общественностью",{"$f":"MATCH(D15,Отчет!#REF!,0)","v":{"$error":"#REF!"}}]
[1572906350,7,"БРО151",1187793549,"Абдулхакимова Афина Шавкатовна","М151БРИСО084","Основы маркетинга",3,"Экзамен","2016/2017 учебный год 1 модуль",null,21,3,1,0,1520829000,2098,null,"stCommon","Реклама и связи с общественностью",{"$f":"MATCH(D16,Отчет!#REF!,0)","v":{"$error":"#REF!"}}]
[1580591744,9,"БРО153",1187938514,"Романова Екатерина Сергеевна","М151БРИСО082","Основы маркетинга",3,"Экзамен","2016/2017 учебный год 1 модуль",null,27,3,1,1,1520829000,2098,null,"stCommon","Реклама и связи с общественностью",{"$f":"MATCH(D17,Отчет!#REF!,0)","v":{"$error":"#REF!"}}]
[1580587035,8,"БРО152",1187938540,"Ковалева Анастасия Романовна","М151БРИСО080","Основы маркетинга",3,"Экзамен","2016/2017 учебный год 1 модуль",null,24,3,1,1,1520829000,2098,null,"stCommon","Реклама и связи с общественностью",{"$f":"MATCH(D18,Отчет!#REF!,0)","v":{"$error":"#REF!"}}]
[1580582130,7,"БРО151",1192491796,"Бекназарова Комилла Сохибжоновна","М151БРИСО085","Основы маркетинга",3,"Экзамен","2016/2017 учебный год 1 модуль",null,21,3,1,1,1520829000,2098,null,"stCommon","Реклама и связи с общественностью",{"$f":"MATCH(D19,Отчет!#REF!,0)","v":{"$error":"#REF!"}}]
[1580585626,6,"БРО152",1322382992,"Авилова Виктория Борисовна","131236028","Основы маркетинга",3,"Экзамен","2016/2017 учебный год 1 модуль",null,18,3,1,0,1520829000,2098,null,"stCommon","Реклама и связи с общественностью",{"$f":"MATCH(D20,Отчет!#REF!,0)","v":{"$error":"#REF!"}}]
[1580586500,7,"БРО152",1396053703,"Громов Максим Сергеевич","М141БФИКЛ012","Основы маркетинга",3,"Экзамен","2016/2017 учебный год 1 модуль",null,21,3,1,0,1520829000,2098,null,"stCommon","Реклама и связи с общественностью",{"$f":"MATCH(D21,Отчет!#REF!,0)","v":{"$error":"#REF!"}}]
[1580582844,8,"БРО151",1474053891,"Лисина Юлия Андреевна","М151БРИСО086","Основы маркетинга",3,"Экзамен","2016/2017 учебный год 1 модуль",null,24,3,1,0,1520829000,2098,null,"stCommon","Реклама и связи с общественностью",{"$f":"MATCH(D22,Отчет!#REF!,0)","v":{"$error":"#REF!"}}]
[1580592199,8,"БРО153",1514787326,"Харисов Артур Раоланович","М151БЭКСТ107","Основы маркетинга",3,"Экзамен","2016/2017 учебный год 1 модуль",null,24,3,1,0,1520829000,2098,null,"stCommon","Реклама и связи с общественностью",{"$f":"MATCH(D23,Отчет!#REF!,0)","v":{"$error":"#REF!"}}]
[1580590389,9,"БРО153",1514792971,"Гридчина Нина Сергеевна","М161БРИСО001","Основы маркетинга",3,"Экзамен","2016/2017 учебный год 1 модуль",null,27,3,1,0,1520829000,2098,null,"stCommon","Реклама и связи с общественностью",{"$f":"MATCH(D24,Отчет!#REF!,0)","v":{"$error":"#REF!"}}]
[1580590767,7,"БРО153",1514839183,"Жаркова Дарья Андреевна","М151БСОЦЛ040","Основы маркетинга",3,"Экзамен","2016/2017 учебный год 1 модуль",null,21,3,1,0,1520829000,2098,null,"stCommon","Реклама и связи с общественностью",{"$f":"MATCH(D25,Отчет!#REF!,0)","v":{"$error":"#REF!"}}]
[1580583839,9,"БРО151",1515445555,"Скворцова Елизавета Васильевна","М161БРИСО395","Основы маркетинга",3,"Экзамен","2016/2017 учебный год 1 модуль",null,27,3,1,0,1520829000,2098,null,"stCommon","Реклама и связи с общественностью",{"$f":"MATCH(D26,Отчет!#REF!,0)","v":{"$error":"#REF!"}}]
[1580581857,8,"БРО151",1515481958,"Бажулич Кристина Джуровна","М151БИНЯЗ017","Основы маркетинга",3,"Экзамен","2016/2017 учебный год 1 модуль",null,24,3,1,0,1520829000,2098,null,"stCommon","Реклама и связи с общественностью",{"$f":"MATCH(D27,Отчет!#REF!,0)","v":{"$error":"#REF!"}}]
[1580584383,8,"БРО151",1516201234,"Чернышева Юлия Ивановна","М151БЛУЦП132","Основы маркетинга",3,"Экзамен","2016/2017 учебный год 1 модуль",null,24,3,1,0,1520829000,2098,null,"stCommon","Реклама и связи с общественностью",{"$f":"MATCH(D28,Отчет!#REF!,0)","v":{"$error":"#REF!"}}]
[1580582928,8,"БРО151",1517364590,"Луданова Евгения Александровна","М151БМИЭФ103","Основы маркетинга",3,"Экзамен","2016/2017 учебный год 1 модуль",null,24,3,1,0,1520829000,2098,null,"stCommon","Реклама и связи с общественностью",{"$f":"MATCH(D29,Отчет!#REF!,0)","v":{"$error":"#REF!"}}]
[1580584293,7,"БРО151",1517365582,"Хохлова Наталия Алексеевна","М151БМИЭФ196","Основы маркетинга",3,"Экзамен","2016/2017 учебный год 1 модуль",null,21,3,1,0,1520829000,2098,null,"stCommon","Реклама и связи с общественностью",{"$f":"MATCH(D30,Отчет!#REF!,0)","v":{"$error":"#REF!"}}]
[1580589717,7,"БРО152",1517430637,"Шеховцова Елизавета Дмитриевна","М151БИНЯЗ191","Основы маркетинга",3,"Экзамен","2016/2017 учебный год 1 модуль",null,21,3,1,0,1520829000,2098,null,"stCommon","Реклама и связи с общественностью",{"$f":"MATCH(D31,Отчет!#REF!,0)","v":{"$error":"#REF!"}}]
[1580586622,10,"БРО152",1517704476,"Жарикова Анастасия Владимировна","М151БМНДЖ057","Основы маркетинга",3,"Экзамен","2016/2017 учебный год 1 модуль",null,30,3,1,0,1520829000,2098,null,"stCommon","Реклама и связи с общественностью",{"$f":"MATCH(D32,Отчет!#REF!,0)","v":{"$error":"#REF!"}}]
[1580585524,7,"БРО152",1518721225,"Авдонина Дарья Романовна","М141БЖУРН001","Основы маркетинга",3,"Экзамен","2016/2017 учебный год 1 модуль",null,21,3,1,0,1520829000,2098,null,"stCommon","Реклама и связи с общественностью",{"$f":"MATCH(D33,Отчет!#REF!,0)","v":{"$error":"#REF!"}}]
[1580592733,10,"БРО153",1519084812,"Яснева Екатерина Андреевна","М161БРИСО003","Основы маркетинга",3,"Экзамен","2016/2017 учебный год 1 модуль",null,30,3,1,0,1520829000,2098,null,"stCommon","Реклама и связи с общественностью",{"$f":"MATCH(D34,Отчет!#REF!,0)","v":{"$error":"#REF!"}}]
[1580581785,6,"БРО151",1520873492,"Арчакова Александра Ивановна","М151БИНЯЗ013","Основы маркетинга",3,"Экзамен","2016/2017 учебный год 1 модуль",null,18,3,1,0,1520829000,2098,"ikPlanned","stCommon","Реклама и связи с общественностью",{"$f":"MATCH(D35,Отчет!#REF!,0)","v":{"$error":"#REF!"}}]
[1649567048,7,"БРО153",1649552778,"Редин Виталий Вадимович","13151222","Основы маркетинга",3,"Экзамен","2016/2017 учебный год 1 модуль",null,21,3,1,0,1520829000,2098,"ikPlanned","stCommon","Реклама и связи с общественностью",{"$f":"MATCH(D36,Отчет!#REF!,0)","v":{"$error":"#REF!"}}]
[1649669738,4,"БРО151",1649667663,"Селиверстова Анастасия Алексеевна","13151224","Основы маркетинга",3,"Экзамен","2016/2017 учебный год 1 модуль",null,12,3,1,0,1520829000,2098,"ikPassed","stCommon","Реклама и связи с общественностью",{"$f":"MATCH(D37,Отчет!#REF!,0)","v":{"$error":"#REF!"}}]
[1652986338,8,"БРО152",1652970670,"Абрамов Александр Олегович","13151201","Основы маркетинга",3,"Экзамен","2016/2017 учебный год 1 модуль",null,24,3,1,0,1520829000,2098,"ikPlanned","stCommon","Реклама и связи с общественностью",{"$f":"MATCH(D38,Отчет!#REF!,0)","v":{"$error":"#REF!"}}]
[1653151258,5,"БРО152",1653150908,"Серебрякова Валерия Сергеевна","М141БЭКОН164","Основы маркетинга",3,"Экзамен","2016/2017 учебный год 1 модуль",null,15,3,1,0,1520829000,2098,"ikPassed","stCommon","Реклама и связи с общественностью",{"$f":"MATCH(D39,Отчет!#REF!,0)","v":{"$error":"#REF!"}}]
[1656185884,7,"БРО152",1656154991,"Чуб Степан Александрович","М151БМНДЖ166","Основы маркетинга",3,"Экзамен","2016/2017 учебный год 1 модуль",null,21,3,1,0,1520829000,2098,"ikPlanned","stCommon","Реклама и связи с общественностью",{"$f":"MATCH(D40,Отчет!#REF!,0)","v":{"$error":"#REF!"}}]
[1656192245,7,"БРО151",1656174061,"Рашилова Полина Викторовна","М151БЛУЦП091","Основы маркетинга",3,"Экзамен","2016/2017 учебный год 1 модуль",null,21,3,1,0,1520829000,2098,"ikPlanned","stCommon","Реклама и связи с общественностью",{"$f":"MATCH(D41,Отчет!#REF!,0)","v":{"$error":"#REF!"}}]
[1656197506,7,"БРО151",1656175499,"Молот Ксения Олеговна","М151БЛУЦП073","Основы маркетинга",3,"Экзамен","2016/2017 учебный год 1 модуль",null,21,3,1,0,1520829000,2098,"ikPlanned","stCommon","Реклама и связи с общественностью",{"$f":"MATCH(D42,Отчет!#REF!,0)","v":{"$error":"#REF!"}}]
[1659806654,8,"БРО153",1656379817,"Коломиец Ольга Андреевна","М151БМНДЖ078","Основы маркетинга",3,"Экзамен","2016/2017 учебный год 1 модуль",null,24,3,1,0,1520829000,2098,"ikPlanned","stCommon","Реклама и связи с общественностью",{"$f":"MATCH(D43,Отчет!#REF!,0)","v":{"$error":"#REF!"}}]
[1663383017,8,"БРО153",1662712925,"Каньшина Елизавета Сергеевна","13103024","Основы маркетинга",3,"Экзамен","2016/2017 учебный год 1 модуль",null,24,3,1,0,1520829000,2098,"ikPlanned","stCommon","Реклама и связи с общественностью",{"$f":"MATCH(D44,Отчет!#REF!,0)","v":{"$error":"#REF!"}}]
[1667406558,7,"БРО153",1667389090,"Кармазинский Николай Андреевич","М161БРИСО394","Основы маркетинга",3,"Экзамен","2016/2017 учебный год 1 модуль",null,21,3,1,0,1520829000,2098,"ikPlanned","stCommon","Реклама и связи с общественностью",{"$f":"MATCH(D45,Отчет!#REF!,0)","v":{"$error":"#REF!"}}]
[1580592620,7,"БРО153",1162401104,"Янчева Анастасия Вадимовна","М151БРИСО067","Основы маркетинга",3,"Экзамен","2016/2017 учебный год 1 модуль",null,21,3,1,1,1520829000,2098,null,"stCommon","Реклама и связи с общественностью",{"$f":"MATCH(D46,Отчет!#REF!,0)","v":{"$error":"#REF!"}}]
[1580583957,8,"БРО151",1162401132,"Смирнова Полина Алексеевна","М151БРИСО052","Основы маркетинга",3,"Экзамен","2016/2017 учебный год 1 модуль",null,24,3,1,1,1520829000,2098,null,"stCommon","Реклама и связи с общественностью",{"$f":"MATCH(D47,Отчет!#REF!,0)","v":{"$error":"#REF!"}}]
[1580589094,7,"БРО152",1162401164,"Сизова Анна Геннадьевна","М151БРИСО049","Основы маркетинга",3,"Экзамен","2016/2017 учебный год 1 модуль",null,21,3,1,1,1520829000,2098,null,"stCommon","Реклама и связи с общественностью",{"$f":"MATCH(D48,Отчет!#REF!,0)","v":{"$error":"#REF!"}}]
[1580586127,9,"БРО152",1162401228,"Бешанова Елизавета Вячеславовна","М151БРИСО007","Основы маркетинга",3,"Экзамен","2016/2017 учебный год 1 модуль",null,27,3,1,1,1520829000,2098,null,"stCommon","Реклама и связи с общественностью",{"$f":"MATCH(D49,Отчет!#REF!,0)","v":{"$error":"#REF!"}}]
[1580587931,9,"БРО152",1162401260,"Никитина Валерия Дмитриевна","М151БРИСО037","Основы маркетинга",3,"Экзамен","2016/2017 учебный год 1 модуль",null,27,3,1,1,1520829000,2098,null,"stCommon","Реклама и связи с общественностью",{"$f":"MATCH(D50,Отчет!#REF!,0)","v":{"$error":"#REF!"}}]
[1580591236,6,"БРО153",1162401288,"Мельник Алексей Сергеевич","М151БРИСО032","Основы маркетинга",3,"Экзамен","2016/2017 учебный год 1 модуль",null,18,3,1,1,1520829000,2098,null,"stCommon","Реклама и связи с общественностью",{"$f":"MATCH(D51,Отчет!#REF!,0)","v":{"$error":"#REF!"}}]
[1580587528,8,"БРО152",1162401312,"Ленкуте Алина Максимовна","М151БРИСО029","Основы маркетинга",3,"Экзамен","2016/2017 учебный год 1 модуль",null,24,3,1,1,1520829000,2098,null,"stCommon","Реклама и связи с общественностью",{"$f":"MATCH(D52,Отчет!#REF!,0)","v":{"$error":"#REF!"}}]
[1580590993,9,"БРО153",1162401344,"Кравчук Кристина Александровна","М151БРИСО026","Основы маркетинга",3,"Экзамен","2016/2017 учебный год 1 модуль",null,27,3,1,1,1520829000,2098,null,"stCommon","Реклама и связи с общественностью",{"$f":"MATCH(D53,Отчет!#REF!,0)","v":{"$error":"#REF!"}}]
[1580584041,9,"БРО151",1162401376,"Солдатенкова Арина Витальевна","М151БРИСО053","Основы маркетинга",3,"Экзамен","2016/2017 учебный год 1 модуль",null,27,3,1,1,1520829000,2098,null,"stCommon","Реклама и связи с общественностью",{"$f":"MATCH(D54,Отчет!#REF!,0)","v":{"$error":"#REF!"}}]
[1580585799,9,"БРО152",1162401408,"Астурян Вячеслав Вячеславович","М151БРИСО004","Основы маркетинга",3,"Экзамен","2016/2017 учебный год 1 модуль",null,27,3,1,1,1520829000,2098,null,"stCommon","Реклама и связи с общественностью",{"$f":"MATCH(D55,Отчет!#REF!,0)","v":{"$error":"#REF!"}}]
[1580590464,8,"БРО153",1162401440,"Гришина Мария Сергеевна","М151БРИСО013","Основы маркетинга",3,"Экзамен","2016/2017 учебный год 1 модуль",null,24,3,1,1,1520829000,2098,null,"stCommon","Реклама и связи с общественностью",{"$f":"MATCH(D56,Отчет!#REF!,0)","v":{"$error":"#REF!"}}]
[1580592094,8,"БРО153",1162401597,"Толбухина Полина Дмитриевна","М151БРИСО056","Основы маркетинга",3,"Экзамен","2016/2017 учебный год 1 модуль",null,24,3,1,1,1520829000,2098,null,"stCommon","Реклама и связи с общественностью",{"$f":"MATCH(D57,Отчет!#REF!,0)","v":{"$error":"#REF!"}}]
[1580586382,8,"БРО152",1162401665,"Веряева Ксения Михайловна","М151БРИСО010","Основы маркетинга",3,"Экзамен","2016/2017 учебный год 1 модуль",null,24,3,1,1,1520829000,2098,null,"stCommon","Реклама и связи с общественностью",{"$f":"MATCH(D58,Отчет!#REF!,0)","v":{"$error":"#REF!"}}]
[1580590015,7,"БРО153",1162401697,"Бисовка Евгений Геннадьевич","М151БРИСО008","Основы маркетинга",3,"Экзамен","2016/2017 учебный год 1 модуль",null,21,3,1,1,1520829000,2098,null,"stCommon","Реклама и связи с общественностью",{"$f":"MATCH(D59,Отчет!#REF!,0)","v":{"$error":"#REF!"}}]
[1580586899,10,"БРО152",1162401762,"Калабаева Дарья Андреевна","М151БРИСО020","Основы маркетинга",3,"Экзамен","2016/2017 учебный год 1 модуль",null,30,3,1,1,1520829000,2098,null,"stCommon","Реклама и связи с общественностью",{"$f":"MATCH(D60,Отчет!#REF!,0)","v":{"$error":"#REF!"}}]
[1580586249,8,"БРО152",1162402048,"Богданова Владлена Сергеевна","М151БРИСО009","Основы маркетинга",3,"Экзамен","2016/2017 учебный год 1 модуль",null,24,3,1,1,1520829000,2098,null,"stCommon","Реклама и связи с общественностью",{"$f":"MATCH(D61,Отчет!#REF!,0)","v":{"$error":"#REF!"}}]
[1580584126,10,"БРО151",1162402075,"Ужегова Полина Александровна","М151БРИСО058","Основы маркетинга",3,"Экзамен","2016/2017 учебный год 1 модуль",null,30,3,1,1,1520829000,2098,null,"stCommon","Реклама и связи с общественностью",{"$f":"MATCH(D62,Отчет!#REF!,0)","v":{"$error":"#REF!"}}]
[1580591915,8,"БРО153",1162402110,"Сковородина Елизавета Сергеевна","М151БРИСО051","Основы маркетинга",3,"Экзамен","2016/2017 учебный год 1 модуль",null,24,3,1,1,1520829000,2098,null,"stCommon","Реклама и связи с общественностью",{"$f":"MATCH(D63,Отчет!#REF!,0)","v":{"$error":"#REF!"}}]
[1580583019,10,"БРО151",1162402136,"Мазур Екатерина Сергеевна","М151БРИСО031","Основы маркетинга",3,"Экзамен","2016/2017 учебный год 1 модуль",null,30,3,1,1,1520829000,2098,null,"stCommon","Реклама и связи с общественностью",{"$f":"MATCH(D64,Отчет!#REF!,0)","v":{"$error":"#REF!"}}]
[1580588942,8,"БРО152",1162402160,"Серегин Геннадий Евгеньевич","М151БРИСО048","Основы маркетинга",3,"Экзамен","2016/2017 учебный год 1 модуль",null,24,3,1,1,1520829000,2098,null,"stCommon","Реклама и связи с общественностью",{"$f":"MATCH(D65,Отчет!#REF!,0)","v":{"$error":"#REF!"}}]
[1580591148,10,"БРО153",1162402188,"Курганова Диана Андреевна","М151БРИСО028","Основы маркетинга",3,"Экзамен","2016/2017 учебный год 1 модуль",null,30,3,1,1,1520829000,2098,null,"stCommon","Реклама и связи с общественностью",{"$f":"MATCH(D66,Отчет!#REF!,0)","v":{"$error":"#REF!"}}]
[1580590231,null,"БРО153",1162402220,"Горохова Елизавета Юрьевна","М151БРИСО011","Основы маркетинга",3,"Экзамен","2016/2017 учебный год 1 модуль",1,0,3,null,1,1520829000,2098,null,"stCommon","Реклама и связи с общественностью",{"$f":"MATCH(D67,Отчет!#REF!,0)","v":{"$error":"#REF!"}}]
[1580588395,9,"БРО152",1162402244,"Попова Диана Александровна","М151БРИСО042","Основы маркетинга",3,"Экзамен","2016/2017 учебный год 1 модуль",null,27,3,1,1,1520829000,2098,null,"stCommon","Реклама и связи с общественностью",{"$f":"MATCH(D68,Отчет!#REF!,0)","v":{"$error":"#REF!"}}]
[1580592292,9,"БРО153",1162402268,"Шельменкина Карина Сергеевна","М151БРИСО061","Основы маркетинга",3,"Экзамен","2016/2017 учебный год 1 модуль",null,27,3,1,1,1520829000,2098,null,"stCommon","Реклама и связи с общественностью",{"$f":"MATCH(D69,Отчет!#REF!,0)","v":{"$error":"#REF!"}}]
[1580582037,8,"БРО151",1162402300,"Барыкина Александра Сергеевна","М151БРИСО006","Основы маркетинга",3,"Экзамен","2016/2017 учебный год 1 модуль",null,24,3,1,1,1520829000,2098,null,"stCommon","Реклама и связи с общественностью",{"$f":"MATCH(D70,Отчет!#REF!,0)","v":{"$error":"#REF!"}}]
[1580582681,7,"БРО151",1162402324,"Казакова Виктория Владимировна","М151БРИСО019","Основы маркетинга",3,"Экзамен","2016/2017 учебный год 1 модуль",null,21,3,1,1,1520829000,2098,null,"stCommon","Реклама и связи с общественностью",{"$f":"MATCH(D71,Отчет!#REF!,0)","v":{"$error":"#REF!"}}]
[1580587374,8,"БРО152",1162402352,"Криницкая Анастасия Сергеевна","М151БРИСО027","Основы маркетинга",3,"Экзамен","2016/2017 учебный год 1 модуль",null,24,3,1,1,1520829000,2098,null,"stCommon","Реклама и связи с общественностью",{"$f":"MATCH(D72,Отчет!#REF!,0)","v":{"$error":"#REF!"}}]
[1580583736,9,"БРО151",1162402384,"Садова Анастасия Романовна","М151БРИСО046","Основы маркетинга",3,"Экзамен","2016/2017 учебный год 1 модуль",null,27,3,1,1,1520829000,2098,null,"stCommon","Реклама и связи с общественностью",{"$f":"MATCH(D73,Отчет!#REF!,0)","v":{"$error":"#REF!"}}]
[1580583630,9,"БРО151",1162402412,"Романовская Алина Андреевна","М151БРИСО045","Основы маркетинга",3,"Экзамен","2016/2017 учебный год 1 модуль",null,27,3,1,1,1520829000,2098,null,"stCommon","Реклама и связи с общественностью",{"$f":"MATCH(D74,Отчет!#REF!,0)","v":{"$error":"#REF!"}}]
[1580590923,6,"БРО153",1162402641,"Ковтун Юлия Алексеевна","М151БРИСО023","Основы маркетинга",3,"Экзамен","2016/2017 учебный год 1 модуль",null,18,3,1,1,1520829000,2098,null,"stCommon","Реклама и связи с общественностью",{"$f":"MATCH(D75,Отчет!#REF!,0)","v":{"$error":"#REF!"}}]
[1580592532,9,"БРО153",1162402673,"Язькова Елизавета Алексеевна","М151БРИСО066","Основы маркетинга",3,"Экзамен","2016/2017 учебный год 1 модуль",null,27,3,1,1,1520829000,2098,null,"stCommon","Реклама и связи с общественностью",{"$f":"MATCH(D76,Отчет!#REF!,0)","v":{"$error":"#REF!"}}]
[1580591327,9,"БРО153",1162404239,"Мошева Анастасия Олеговна","М151БРИСО034","Основы маркетинга",3,"Экзамен","2016/2017 учебный год 1 модуль",null,27,3,1,1,1520829000,2098,null,"stCommon","Реклама и связи с общественностью",{"$f":"MATCH(D77,Отчет!#REF!,0)","v":{"$error":"#REF!"}}]
[1580582765,9,"БРО151",1162404267,"Колганова Полина Олеговна","М151БРИСО024","Основы маркетинга",3,"Экзамен","2016/2017 учебный год 1 модуль",null,27,3,1,0,1520829000,2098,null,"stCommon","Реклама и связи с общественностью",{"$f":"MATCH(D78,Отчет!#REF!,0)","v":{"$error":"#REF!"}}]
[1580583309,8,"БРО151",1162404299,"Панарина Елизавета Сергеевна","М151БРИСО039","Основы маркетинга",3,"Экзамен","2016/2017 учебный год 1 модуль",null,24,3,1,1,1520829000,2098,null,"stCommon","Реклама и связи с общественностью",{"$f":"MATCH(D79,Отчет!#REF!,0)","v":{"$error":"#REF!"}}]
[1580591826,9,"БРО153",1162404387,"Скворцова Анна Алексеевна","М151БРИСО050","Основы маркетинга",3,"Экзамен","2016/2017 учебный год 1 модуль",null,27,3,1,0,1520829000,2098,null,"stCommon","Реклама и связи с общественностью",{"$f":"MATCH(D80,Отчет!#REF!,0)","v":{"$error":"#REF!"}}]
[1580583219,8,"БРО151",1162404411,"Надирова Анна Зурабовна","М151БРИСО035","Основы маркетинга",3,"Экзамен","2016/2017 учебный год 1 модуль",null,24,3,1,0,1520829000,2098,null,"stCommon","Реклама и связи с общественностью",{"$f":"MATCH(D81,Отчет!#REF!,0)","v":{"$error":"#REF!"}}]
[1580586745,8,"БРО152",1162404435,"Захряпина Анастасия Алексеевна","М151БРИСО018","Основы маркетинга",3,"Экзамен","2016/2017 учебный год 1 модуль",null,24,3,1,0,1520829000,2098,null,"stCommon","Реклама и связи с общественностью",{"$f":"MATCH(D82,Отчет!#REF!,0)","v":{"$error":"#REF!"}}]
[1580588680,8,"БРО152",1162404463,"Радченко Ирина Дмитриевна","М151БРИСО044","Основы маркетинга",3,"Экзамен","2016/2017 учебный год 1 модуль",null,24,3,1,0,1520829000,2098,null,"stCommon","Реклама и связи с общественностью",{"$f":"MATCH(D83,Отчет!#REF!,0)","v":{"$error":"#REF!"}}]
[1580592451,8,"БРО153",1162404495,"Юрьева Мария Дмитриевна","М151БРИСО065","Основы маркетинга",3,"Экзамен","2016/2017 учебный год 1 модуль",null,24,3,1,0,1520829000,2098,null,"stCommon","Реклама и связи с общественностью",{"$f":"MATCH(D84,Отчет!#REF!,0)","v":{"$error":"#REF!"}}]
[1580588554,9,"БРО152",1162404529,"Радионова Анна Евгеньевна","М151БРИСО043","Основы маркетинга",3,"Экзамен","2016/2017 учебный год 1 модуль",null,27,3,1,1,1520829000,2098,null,"stCommon","Реклама и связи с общественностью",{"$f":"MATCH(D85,Отчет!#REF!,0)","v":{"$error":"#REF!"}}]
[1580592374,9,"БРО153",1162404559,"Щелкунов Игорь Владимирович","М151БРИСО064","Основы маркетинга",3,"Экзамен","2016/2017 учебный год 1 модуль",null,27,3,1,0,1520829000,2098,null,"stCommon","Реклама и связи с общественностью",{"$f":"MATCH(D86,Отчет!#REF!,0)","v":{"$error":"#REF!"}}]
[1580581635,7,"БРО151",1162404590,"Аккалаев Марат Русланович","М151БРИСО002","Основы маркетинга",3,"Экзамен","2016/2017 учебный год 1 модуль",null,21,3,1,0,1520829000,2098,null,"stCommon","Реклама и связи с общественностью",{"$f":"MATCH(D87,Отчет!#REF!,0)","v":{"$error":"#REF!"}}]
[1580590687,9,"БРО153",1162404615,"Дроздова Елизавета Владимировна","М151БРИСО016","Основы маркетинга",3,"Экзамен","2016/2017 учебный год 1 модуль",null,27,3,1,0,1520829000,2098,null,"stCommon","Реклама и связи с общественностью",{"$f":"MATCH(D88,Отчет!#REF!,0)","v":{"$error":"#REF!"}}]
[1580588033,7,"БРО152",1162404639,"Полякова Александра Дмитриевна","М151БРИСО041","Основы маркетинга",3,"Экзамен","2016/2017 учебный год 1 модуль",null,21,3,1,0,1520829000,2098,null,"stCommon","Реклама и связи с общественностью",{"$f":"MATCH(D89,Отчет!#REF!,0)","v":{"$error":"#REF!"}}]
[1580589477,8,"БРО152",1162404671,"Фролов Василий Александрович","М151БРИСО060","Основы маркетинга",3,"Экзамен","2016/2017 учебный год 1 модуль",null,24,3,1,0,1520829000,2098,null,"stCommon","Реклама и связи с общественностью",{"$f":"MATCH(D90,Отчет!#REF!,0)","v":{"$error":"#REF!"}}]
[1580583118,9,"БРО151",1162404699,"Милова Анастасия Андреевна","М151БРИСО033","Основы маркетинга",3,"Экзамен","2016/2017 учебный год 1 модуль",null,27,3,1,0,1520829000,2098,null,"stCommon","Реклама и связи с общественностью",{"$f":"MATCH(D91,Отчет!#REF!,0)","v":{"$error":"#REF!"}}]
[1580588805,8,"БРО152",1162404727,"Сак Евгения Леонидовна","М151БРИСО047","Основы маркетинга",3,"Экзамен","2016/2017 учебный год 1 модуль",null,24,3,1,0,1520829000,2098,null,"stCommon","Реклама и связи с общественностью",{"$f":"MATCH(D92,Отчет!#REF!,0)","v":{"$error":"#REF!"}}]
[1580587811,8,"БРО152",1162404759,"Нафталиева Яна Абрамовна","М151БРИСО036","Основы маркетинга",3,"Экзамен","2016/2017 учебный год 1 модуль",null,24,3,1,0,1520829000,2098,null,"stCommon","Реклама и связи с общественностью",{"$f":"MATCH(D93,Отчет!#REF!,0)","v":{"$error":"#REF!"}}]
[1580591576,6,"БРО153",1162404783,"Поляков Илья Станиславович","М151БРИСО040","Основы маркетинга",3,"Экзамен","2016/2017 учебный год 1 модуль",null,18,3,1,0,1520829000,2098,null,"stCommon","Реклама и связи с общественностью",{"$f":"MATCH(D94,Отчет!#REF!,0)","v":{"$error":"#REF!"}}]
[1580589328,7,"БРО152",1162404815,"Тихонина Мария Игоревна","М151БРИСО054","Основы маркетинга",3,"Экзамен","2016/2017 учебный год 1 модуль",null,21,3,1,0,1520829000,2098,null,"stCommon","Реклама и связи с общественностью",{"$f":"MATCH(D95,Отчет!#REF!,0)","v":{"$error":"#REF!"}}]
[1580582400,8,"БРО151",1162404843,"Даниель Александра Александровна","М151БРИСО014","Основы маркетинга",3,"Экзамен","2016/2017 учебный год 1 модуль",null,24,3,1,0,1520829000,2098,null,"stCommon","Реклама и связи с общественностью",{"$f":"MATCH(D96,Отчет!#REF!,0)","v":{"$error":"#REF!"}}]
[1580591414,10,"БРО153",1162404875,"Никоненко Анастасия Германовна","М151БРИСО038","Основы маркетинга",3,"Экзамен","2016/2017 учебный год 1 модуль",null,30,3,1,0,1520829000,2098,null,"stCommon","Реклама и связи с общественностью",{"$f":"MATCH(D97,Отчет!#REF!,0)","v":{"$error":"#REF!"}}]
[1580589403,8,"БРО152",1162404939,"Тузова Евгения Сергеевна","М151БРИСО057","Основы маркетинга",3,"Экзамен","2016/2017 учебный год 1 модуль",null,24,3,1,0,1520829000,2098,null,"stCommon","Реклама и связи с общественностью",{"$f":"MATCH(D98,Отчет!#REF!,0)","v":{"$error":"#REF!"}}]
[1580582570,7,"БРО151",1162404963,"Ермаков Иван Григорьевич","М151БРИСО017","Основы маркетинга",3,"Экзамен","2016/2017 учебный год 1 модуль",null,21,3,1,0,1520829000,2098,null,"stCommon","Реклама и связи с общественностью",{"$f":"MATCH(D99,Отчет!#REF!,0)","v":{"$error":"#REF!"}}]
[1580590839,10,"БРО153",1162404995,"Кимлык Мария Андреевна","М151БРИСО022","Основы маркетинга",3,"Экзамен","2016/2017 учебный год 1 модуль",null,30,3,1,1,1520829000,2098,null,"stCommon","Реклама и связи с общественностью",{"$f":"MATCH(D100,Отчет!#REF!,0)","v":{"$error":"#REF!"}}]
[1580584471,6,"БРО151",1162405311,"Шкляр Даниэль Семенович","М151БРИСО062","Основы маркетинга",3,"Экзамен","2016/2017 учебный год 1 модуль",null,18,3,1,0,1520829000,2098,null,"stCommon","Реклама и связи с общественностью",{"$f":"MATCH(D101,Отчет!#REF!,0)","v":{"$error":"#REF!"}}]
[1580590319,8,"БРО153",1162405372,"Гранина Дарья Константиновна","М151БРИСО012","Основы маркетинга",3,"Экзамен","2016/2017 учебный год 1 модуль",null,24,3,1,0,1520829000,2098,null,"stCommon","Реклама и связи с общественностью",{"$f":"MATCH(D102,Отчет!#REF!,0)","v":{"$error":"#REF!"}}]
[1580590104,7,"БРО153",1173924661,"Галкин Вячеслав Владимирович","М151БРИСО070","Основы маркетинга",3,"Экзамен","2016/2017 учебный год 1 модуль",null,21,3,1,0,1520829000,2098,null,"stCommon","Реклама и связи с общественностью",{"$f":"MATCH(D103,Отчет!#REF!,0)","v":{"$error":"#REF!"}}]
[1580591489,10,"БРО153",1181080622,"Нугуспанова Индира","М151БРИСО075","Основы маркетинга",3,"Экзамен","2016/2017 учебный год 1 модуль",null,30,3,1,1,1520829000,2098,null,"stCommon","Реклама и связи с общественностью",{"$f":"MATCH(D104,Отчет!#REF!,0)","v":{"$error":"#REF!"}}]
[1580582222,7,"БРО151",1181080646,"Белякова Анастасия","М151БРИСО079","Основы маркетинга",3,"Экзамен","2016/2017 учебный год 1 модуль",null,21,3,1,1,1520829000,2098,null,"stCommon","Реклама и связи с общественностью",{"$f":"MATCH(D105,Отчет!#REF!,0)","v":{"$error":"#REF!"}}]
[1580589647,6,"БРО152",1181080670,"Чачков Алексей Алексеевич","М151БРИСО083","Основы маркетинга",3,"Экзамен","2016/2017 учебный год 1 модуль",null,18,3,1,1,1520829000,2098,null,"stCommon","Реклама и связи с общественностью",{"$f":"MATCH(D106,Отчет!#REF!,0)","v":{"$error":"#REF!"}}]
[1580582308,9,"БРО151",1181080708,"Ганиева Карина Туребековна","М151БРИСО081","Основы маркетинга",3,"Экзамен","2016/2017 учебный год 1 модуль",null,27,3,1,1,1520829000,2098,null,"stCommon","Реклама и связи с общественностью",{"$f":"MATCH(D107,Отчет!#REF!,0)","v":{"$error":"#REF!"}}]
[1649861524,7,"БРО152",1649860854,"Лебедева Маргарита Станиславовна","12151236","Основы маркетинга",3,"Зачет","2016/2017 учебный год 1 модуль",null,21,3,1,0,1520829000,2098,"ikExternalPassed","stCommon","Реклама и связи с общественностью",{"$f":"MATCH(D108,Отчет!#REF!,0)","v":{"$error":"#REF!"}}]
[1656792266,6,"БРО152",1656791552,"Суркин Константин Сергеевич","101094114","Основы маркетинга",3,"Зачет","2016/2017 учебный год 1 модуль",null,18,3,1,0,1520829000,2098,"ikPassed","stCommon","Реклама и связи с общественностью",{"$f":"MATCH(D109,Отчет!#REF!,0)","v":{"$error":"#REF!"}}]
[1730487967,0,"БРО152",1187938540,"Ковалева Анастасия Романовна","М151БРИСО080","Проект Коммуникационная поддержка социально значимого молодёжного проекта",1,"Зачет","2016/2017 учебный год 1 модуль",null,0,0,0,1,null,null,null,null,"Реклама и связи с общественностью",{"$f":"MATCH(D110,Отчет!#REF!,0)","v":{"$error":"#REF!"}}]
[1679214747,null,"БРО152",1162402244,"Попова Диана Александровна","М151БРИСО042","Проект Проектная мастерская по предпринимательству: Исследование историй успеха Московских стартапов.",2,"Зачет","2016/2017 учебный год 1 модуль",null,0,0,1,1,null,null,null,null,"Реклама и связи с общественностью",{"$f":"MATCH(D111,Отчет!#REF!,0)","v":{"$error":"#REF!"}}]
[1679214736,null,"БРО151",1162402136,"Мазур Екатерина Сергеевна","М151БРИСО031","Проект Проектная мастерская по предпринимательству: Исследование историй успеха Московских стартапов.",2,"Зачет","2016/2017 учебный год 1 модуль",null,0,0,1,1,null,null,null,null,"Реклама и связи с общественностью",{"$f":"MATCH(D112,Отчет!#REF!,0)","v":{"$error":"#REF!"}}]
[1679214733,null,"БРО153",1519084812,"Яснева Екатерина Андреевна","М161БРИСО003","Проект Проектная мастерская по предпринимательству: Исследование историй успеха Московских стартапов.",2,"Зачет","2016/2017 учебный год 1 модуль",null,0,0,1,0,null,null,null,null,"Реклама и связи с общественностью",{"$f":"MATCH(D113,Отчет!#REF!,0)","v":{"$error":"#REF!"}}]
[1629048185,10,"БРО153",1162404239,"Мошева Анастасия Олеговна","М151БРИСО034","Английский язык",4,"Экзамен","2016/2017 учебный год 2 модуль",null,40,4,1,1,1520829000,2098,null,"stFacultative","Реклама и связи с общественностью",{"$f":"MATCH(D114,Отчет!#REF!,0)","v":{"$error":"#REF!"}}]
[1629047025,9,"БРО151",1162404267,"Колганова Полина Олеговна","М151БРИСО024","Английский язык",4,"Экзамен","2016/2017 учебный год 2 модуль",null,36,4,1,0,1520829000,2098,null,"stFacultative","Реклама и связи с общественностью",{"$f":"MATCH(D115,Отчет!#REF!,0)","v":{"$error":"#REF!"}}]
[1629047045,7,"БРО151",1162404299,"Панарина Елизавета Сергеевна","М151БРИСО039","Английский язык",4,"Экзамен","2016/2017 учебный год 2 модуль",null,28,4,1,1,1520829000,2098,null,"stFacultative","Реклама и связи с общественностью",{"$f":"MATCH(D116,Отчет!#REF!,0)","v":{"$error":"#REF!"}}]
[1629048240,10,"БРО153",1162401104,"Янчева Анастасия Вадимовна","М151БРИСО067","Английский язык",4,"Экзамен","2016/2017 учебный год 2 модуль",null,40,4,1,1,1520829000,2098,null,"stFacultative","Реклама и связи с общественностью",{"$f":"MATCH(D117,Отчет!#REF!,0)","v":{"$error":"#REF!"}}]
[1629047063,8,"БРО151",1162401132,"Смирнова Полина Алексеевна","М151БРИСО052","Английский язык",4,"Экзамен","2016/2017 учебный год 2 модуль",null,32,4,1,1,1520829000,2098,null,"stFacultative","Реклама и связи с общественностью",{"$f":"MATCH(D118,Отчет!#REF!,0)","v":{"$error":"#REF!"}}]
[1629047809,7,"БРО152",1162401164,"Сизова Анна Геннадьевна","М151БРИСО049","Английский язык",4,"Экзамен","2016/2017 учебный год 2 модуль",null,28,4,1,1,1520829000,2098,null,"stFacultative","Реклама и связи с общественностью",{"$f":"MATCH(D119,Отчет!#REF!,0)","v":{"$error":"#REF!"}}]
[1629047652,10,"БРО152",1162401228,"Бешанова Елизавета Вячеславовна","М151БРИСО007","Английский язык",4,"Экзамен","2016/2017 учебный год 2 модуль",null,40,4,1,1,1520829000,2098,null,"stFacultative","Реклама и связи с общественностью",{"$f":"MATCH(D120,Отчет!#REF!,0)","v":{"$error":"#REF!"}}]
[1629047744,9,"БРО152",1162401260,"Никитина Валерия Дмитриевна","М151БРИСО037","Английский язык",4,"Экзамен","2016/2017 учебный год 2 модуль",null,36,4,1,1,1520829000,2098,null,"stFacultative","Реклама и связи с общественностью",{"$f":"MATCH(D121,Отчет!#REF!,0)","v":{"$error":"#REF!"}}]
[1629048180,6,"БРО153",1162401288,"Мельник Алексей Сергеевич","М151БРИСО032","Английский язык",4,"Экзамен","2016/2017 учебный год 2 модуль",null,24,4,1,1,1520829000,2098,null,"stFacultative","Реклама и связи с общественностью",{"$f":"MATCH(D122,Отчет!#REF!,0)","v":{"$error":"#REF!"}}]
[1629047724,8,"БРО152",1162401312,"Ленкуте Алина Максимовна","М151БРИСО029","Английский язык",4,"Экзамен","2016/2017 учебный год 2 модуль",null,32,4,1,1,1520829000,2098,null,"stFacultative","Реклама и связи с общественностью",{"$f":"MATCH(D123,Отчет!#REF!,0)","v":{"$error":"#REF!"}}]
[1629048165,6,"БРО153",1162401344,"Кравчук Кристина Александровна","М151БРИСО026","Английский язык",4,"Экзамен","2016/2017 учебный год 2 модуль",null,24,4,1,1,1520829000,2098,null,"stFacultative","Реклама и связи с общественностью",{"$f":"MATCH(D124,Отчет!#REF!,0)","v":{"$error":"#REF!"}}]
[1629047067,8,"БРО151",1162401376,"Солдатенкова Арина Витальевна","М151БРИСО053","Английский язык",4,"Экзамен","2016/2017 учебный год 2 модуль",null,32,4,1,1,1520829000,2098,null,"stFacultative","Реклама и связи с общественностью",{"$f":"MATCH(D125,Отчет!#REF!,0)","v":{"$error":"#REF!"}}]
[1629047642,8,"БРО152",1162401408,"Астурян Вячеслав Вячеславович","М151БРИСО004","Английский язык",4,"Экзамен","2016/2017 учебный год 2 модуль",null,32,4,1,1,1520829000,2098,null,"stFacultative","Реклама и связи с общественностью",{"$f":"MATCH(D126,Отчет!#REF!,0)","v":{"$error":"#REF!"}}]
[1629048133,9,"БРО153",1162401440,"Гришина Мария Сергеевна","М151БРИСО013","Английский язык",4,"Экзамен","2016/2017 учебный год 2 модуль",null,36,4,1,1,1520829000,2098,null,"stFacultative","Реклама и связи с общественностью",{"$f":"MATCH(D127,Отчет!#REF!,0)","v":{"$error":"#REF!"}}]
[1629048220,8,"БРО153",1162401597,"Толбухина Полина Дмитриевна","М151БРИСО056","Английский язык",4,"Экзамен","2016/2017 учебный год 2 модуль",null,32,4,1,1,1520829000,2098,null,"stFacultative","Реклама и связи с общественностью",{"$f":"MATCH(D128,Отчет!#REF!,0)","v":{"$error":"#REF!"}}]
[1629047667,9,"БРО152",1162401665,"Веряева Ксения Михайловна","М151БРИСО010","Английский язык",4,"Экзамен","2016/2017 учебный год 2 модуль",null,36,4,1,1,1520829000,2098,null,"stFacultative","Реклама и связи с общественностью",{"$f":"MATCH(D129,Отчет!#REF!,0)","v":{"$error":"#REF!"}}]
[1629048111,6,"БРО153",1162401697,"Бисовка Евгений Геннадьевич","М151БРИСО008","Английский язык",4,"Экзамен","2016/2017 учебный год 2 модуль",null,24,4,1,1,1520829000,2098,null,"stFacultative","Реклама и связи с общественностью",{"$f":"MATCH(D130,Отчет!#REF!,0)","v":{"$error":"#REF!"}}]
[1629047701,9,"БРО152",1162401762,"Калабаева Дарья Андреевна","М151БРИСО020","Английский язык",4,"Экзамен","2016/2017 учебный год 2 модуль",null,36,4,1,1,1520829000,2098,null,"stFacultative","Реклама и связи с общественностью",{"$f":"MATCH(D131,Отчет!#REF!,0)","v":{"$error":"#REF!"}}]
[1629047658,8,"БРО152",1162402048,"Богданова Владлена Сергеевна","М151БРИСО009","Английский язык",4,"Экзамен","2016/2017 учебный год 2 модуль",null,32,4,1,1,1520829000,2098,null,"stFacultative","Реклама и связи с общественностью",{"$f":"MATCH(D132,Отчет!#REF!,0)","v":{"$error":"#REF!"}}]
[1629047072,7,"БРО151",1162402075,"Ужегова Полина Александровна","М151БРИСО058","Английский язык",4,"Экзамен","2016/2017 учебный год 2 модуль",null,28,4,1,1,1520829000,2098,null,"stFacultative","Реклама и связи с общественностью",{"$f":"MATCH(D133,Отчет!#REF!,0)","v":{"$error":"#REF!"}}]
[1656197488,4,"БРО151",1656175499,"Молот Ксения Олеговна","М151БЛУЦП073","Английский язык",4,"Экзамен","2016/2017 учебный год 2 модуль",null,16,4,1,0,1520829000,2098,"ikPlanned","stFacultative","Реклама и связи с общественностью",{"$f":"MATCH(D134,Отчет!#REF!,0)","v":{"$error":"#REF!"}}]
[1659806571,10,"БРО153",1656379817,"Коломиец Ольга Андреевна","М151БМНДЖ078","Английский язык",4,"Экзамен","2016/2017 учебный год 2 модуль",null,40,4,1,0,1520829000,2098,"ikPlanned","stFacultative","Реклама и связи с общественностью",{"$f":"MATCH(D135,Отчет!#REF!,0)","v":{"$error":"#REF!"}}]
[1629047846,5,"БРО152",1517430637,"Шеховцова Елизавета Дмитриевна","М151БИНЯЗ191","Английский язык",4,"Экзамен","2016/2017 учебный год 2 модуль",null,20,4,1,0,1520829000,2098,null,"stFacultative","Реклама и связи с общественностью",{"$f":"MATCH(D136,Отчет!#REF!,0)","v":{"$error":"#REF!"}}]
[1629047686,8,"БРО152",1517704476,"Жарикова Анастасия Владимировна","М151БМНДЖ057","Английский язык",4,"Экзамен","2016/2017 учебный год 2 модуль",null,32,4,1,0,1520829000,2098,null,"stFacultative","Реклама и связи с общественностью",{"$f":"MATCH(D137,Отчет!#REF!,0)","v":{"$error":"#REF!"}}]
[1629047628,5,"БРО152",1518721225,"Авдонина Дарья Романовна","М141БЖУРН001","Английский язык",4,"Экзамен","2016/2017 учебный год 2 модуль",null,20,4,1,0,1520829000,2098,null,"stFacultative","Реклама и связи с общественностью",{"$f":"MATCH(D138,Отчет!#REF!,0)","v":{"$error":"#REF!"}}]
[1629048244,5,"БРО153",1519084812,"Яснева Екатерина Андреевна","М161БРИСО003","Английский язык",4,"Экзамен","2016/2017 учебный год 2 модуль",null,20,4,1,0,1520829000,2098,null,"stFacultative","Реклама и связи с общественностью",{"$f":"MATCH(D139,Отчет!#REF!,0)","v":{"$error":"#REF!"}}]
[1623448456,3,"БРО151",1520873492,"Арчакова Александра Ивановна","М151БИНЯЗ013","Английский язык",4,"Экзамен","2016/2017 учебный год 2 модуль",null,0,4,0,0,1520829000,2098,"ikPlanned","stFacultative","Реклама и связи с общественностью",{"$f":"MATCH(D140,Отчет!#REF!,0)","v":{"$error":"#REF!"}}]
[1656185835,8,"БРО152",1656154991,"Чуб Степан Александрович","М151БМНДЖ166","Английский язык",4,"Экзамен","2016/2017 учебный год 2 модуль",null,32,4,1,0,1520829000,2098,"ikPlanned","stFacultative","Реклама и связи с общественностью",{"$f":"MATCH(D141,Отчет!#REF!,0)","v":{"$error":"#REF!"}}]
[1656192290,5,"БРО151",1656174061,"Рашилова Полина Викторовна","М151БЛУЦП091","Английский язык",4,"Экзамен","2016/2017 учебный год 2 модуль",null,20,4,1,0,1520829000,2098,"ikPlanned","stFacultative","Реклама и связи с общественностью",{"$f":"MATCH(D142,Отчет!#REF!,0)","v":{"$error":"#REF!"}}]
[1629046983,7,"БРО151",1192491796,"Бекназарова Комилла Сохибжоновна","М151БРИСО085","Английский язык",4,"Экзамен","2016/2017 учебный год 2 модуль",null,28,4,1,1,1520829000,2098,null,"stFacultative","Реклама и связи с общественностью",{"$f":"MATCH(D143,Отчет!#REF!,0)","v":{"$error":"#REF!"}}]
[1629047633,4,"БРО152",1322382992,"Авилова Виктория Борисовна","131236028","Английский язык",4,"Экзамен","2016/2017 учебный год 2 модуль",null,16,4,1,0,1520829000,2098,null,"stFacultative","Реклама и связи с общественностью",{"$f":"MATCH(D144,Отчет!#REF!,0)","v":{"$error":"#REF!"}}]
[1629047676,8,"БРО152",1396053703,"Громов Максим Сергеевич","М141БФИКЛ012","Английский язык",4,"Экзамен","2016/2017 учебный год 2 модуль",null,32,4,1,0,1520829000,2098,null,"stFacultative","Реклама и связи с общественностью",{"$f":"MATCH(D145,Отчет!#REF!,0)","v":{"$error":"#REF!"}}]
[1629048150,8,"БРО153",1514839183,"Жаркова Дарья Андреевна","М151БСОЦЛ040","Английский язык",4,"Экзамен","2016/2017 учебный год 2 модуль",null,32,4,1,0,1520829000,2098,null,"stFacultative","Реклама и связи с общественностью",{"$f":"MATCH(D146,Отчет!#REF!,0)","v":{"$error":"#REF!"}}]
[1629046970,6,"БРО151",1515481958,"Бажулич Кристина Джуровна","М151БИНЯЗ017","Английский язык",4,"Экзамен","2016/2017 учебный год 2 модуль",null,24,4,1,0,1520829000,2098,null,"stFacultative","Реклама и связи с общественностью",{"$f":"MATCH(D147,Отчет!#REF!,0)","v":{"$error":"#REF!"}}]
[1629047087,7,"БРО151",1516201234,"Чернышева Юлия Ивановна","М151БЛУЦП132","Английский язык",4,"Экзамен","2016/2017 учебный год 2 модуль",null,28,4,1,0,1520829000,2098,null,"stFacultative","Реклама и связи с общественностью",{"$f":"MATCH(D148,Отчет!#REF!,0)","v":{"$error":"#REF!"}}]
[1629047029,7,"БРО151",1517364590,"Луданова Евгения Александровна","М151БМИЭФ103","Английский язык",4,"Экзамен","2016/2017 учебный год 2 модуль",null,28,4,1,0,1520829000,2098,null,"stFacultative","Реклама и связи с общественностью",{"$f":"MATCH(D149,Отчет!#REF!,0)","v":{"$error":"#REF!"}}]
[1629047081,6,"БРО151",1517365582,"Хохлова Наталия Алексеевна","М151БМИЭФ196","Английский язык",4,"Экзамен","2016/2017 учебный год 2 модуль",null,24,4,1,0,1520829000,2098,null,"stFacultative","Реклама и связи с общественностью",{"$f":"MATCH(D150,Отчет!#REF!,0)","v":{"$error":"#REF!"}}]
[1629047827,9,"БРО152",1162404939,"Тузова Евгения Сергеевна","М151БРИСО057","Английский язык",4,"Экзамен","2016/2017 учебный год 2 модуль",null,36,4,1,0,1520829000,2098,null,"stFacultative","Реклама и связи с общественностью",{"$f":"MATCH(D151,Отчет!#REF!,0)","v":{"$error":"#REF!"}}]
[1629047010,6,"БРО151",1162404963,"Ермаков Иван Григорьевич","М151БРИСО017","Английский язык",4,"Экзамен","2016/2017 учебный год 2 модуль",null,24,4,1,0,1520829000,2098,null,"stFacultative","Реклама и связи с общественностью",{"$f":"MATCH(D152,Отчет!#REF!,0)","v":{"$error":"#REF!"}}]
[1629048155,8,"БРО153",1162404995,"Кимлык Мария Андреевна","М151БРИСО022","Английский язык",4,"Экзамен","2016/2017 учебный год 2 модуль",null,32,4,1,1,1520829000,2098,null,"stFacultative","Реклама и связи с общественностью",{"$f":"MATCH(D153,Отчет!#REF!,0)","v":{"$error":"#REF!"}}]
[1629047094,6,"БРО151",1162405311,"Шкляр Даниэль Семенович","М151БРИСО062","Английский язык",4,"Экзамен","2016/2017 учебный год 2 модуль",null,24,4,1,0,1520829000,2098,null,"stFacultative","Реклама и связи с общественностью",{"$f":"MATCH(D154,Отчет!#REF!,0)","v":{"$error":"#REF!"}}]
[1629048124,10,"БРО153",1162405372,"Гранина Дарья Константиновна","М151БРИСО012","Английский язык",4,"Экзамен","2016/2017 учебный год 2 модуль",null,40,4,1,0,1520829000,2098,null,"stFacultative","Реклама и связи с общественностью",{"$f":"MATCH(D155,Отчет!#REF!,0)","v":{"$error":"#REF!"}}]
[1629048116,4,"БРО153",1173924661,"Галкин Вячеслав Владимирович","М151БРИСО070","Английский язык",4,"Экзамен","2016/2017 учебный год 2 модуль",null,16,4,1,0,1520829000,2098,null,"stFacultative","Реклама и связи с общественностью",{"$f":"MATCH(D156,Отчет!#REF!,0)","v":{"$error":"#REF!"}}]
[1629048196,5,"БРО153",1181080622,"Нугуспанова Индира","М151БРИСО075","Английский язык",4,"Экзамен","2016/2017 учебный год 2 модуль",null,20,4,1,1,1520829000,2098,null,"stFacultative","Реклама и связи с общественностью",{"$f":"MATCH(D157,Отчет!#REF!,0)","v":{"$error":"#REF!"}}]
[1629046989,8,"БРО151",1181080646,"Белякова Анастасия","М151БРИСО079","Английский язык",4,"Экзамен","2016/2017 учебный год 2 модуль",null,32,4,1,1,1520829000,2098,null,"stFacultative","Реклама и связи с общественностью",{"$f":"MATCH(D158,Отчет!#REF!,0)","v":{"$error":"#REF!"}}]
[1629046993,6,"БРО151",1181080708,"Ганиева Карина Туребековна","М151БРИСО081","Английский язык",4,"Экзамен","2016/2017 учебный год 2 модуль",null,24,4,1,1,1520829000,2098,null,"stFacultative","Реклама и связи с общественностью",{"$f":"MATCH(D159,Отчет!#REF!,0)","v":{"$error":"#REF!"}}]
[1629047049,8,"БРО151",1181086716,"Пономарева Елизавета","М151БРИСО077","Английский язык",4,"Экзамен","2016/2017 учебный год 2 модуль",null,32,4,1,1,1520829000,2098,null,"stFacultative","Реклама и связи с общественностью",{"$f":"MATCH(D160,Отчет!#REF!,0)","v":{"$error":"#REF!"}}]
[1629048141,6,"БРО153",1181086733,"Дремлюк Марья","М151БРИСО074","Английский язык",4,"Экзамен","2016/2017 учебный год 2 модуль",null,24,4,1,1,1520829000,2098,null,"stFacultative","Реклама и связи с общественностью",{"$f":"MATCH(D161,Отчет!#REF!,0)","v":{"$error":"#REF!"}}]
[1629047004,4,"БРО151",1181086750,"Даниленко Ярослав","М151БРИСО078","Английский язык",4,"Экзамен","2016/2017 учебный год 2 модуль",null,16,4,1,1,1520829000,2098,null,"stFacultative","Реклама и связи с общественностью",{"$f":"MATCH(D162,Отчет!#REF!,0)","v":{"$error":"#REF!"}}]
[1629047730,8,"БРО152",1181086767,"Мухортова Дарья Александровна","М151БРИСО072","Английский язык",4,"Экзамен","2016/2017 учебный год 2 модуль",null,32,4,1,1,1520829000,2098,null,"stFacultative","Реклама и связи с общественностью",{"$f":"MATCH(D163,Отчет!#REF!,0)","v":{"$error":"#REF!"}}]
[1629048170,6,"БРО153",1181086818,"Кунцевич Мария","М151БРИСО076","Английский язык",4,"Экзамен","2016/2017 учебный год 2 модуль",null,24,4,1,1,1520829000,2098,null,"stFacultative","Реклама и связи с общественностью",{"$f":"MATCH(D164,Отчет!#REF!,0)","v":{"$error":"#REF!"}}]
[1629046962,8,"БРО151",1187793549,"Абдулхакимова Афина Шавкатовна","М151БРИСО084","Английский язык",4,"Экзамен","2016/2017 учебный год 2 модуль",null,32,4,1,0,1520829000,2098,null,"stFacultative","Реклама и связи с общественностью",{"$f":"MATCH(D165,Отчет!#REF!,0)","v":{"$error":"#REF!"}}]
[1629048207,8,"БРО153",1162404387,"Скворцова Анна Алексеевна","М151БРИСО050","Английский язык",4,"Экзамен","2016/2017 учебный год 2 модуль",null,32,4,1,0,1520829000,2098,null,"stFacultative","Реклама и связи с общественностью",{"$f":"MATCH(D166,Отчет!#REF!,0)","v":{"$error":"#REF!"}}]
[1629047041,8,"БРО151",1162404411,"Надирова Анна Зурабовна","М151БРИСО035","Английский язык",4,"Экзамен","2016/2017 учебный год 2 модуль",null,32,4,1,0,1520829000,2098,null,"stFacultative","Реклама и связи с общественностью",{"$f":"MATCH(D167,Отчет!#REF!,0)","v":{"$error":"#REF!"}}]
[1629047694,7,"БРО152",1162404435,"Захряпина Анастасия Алексеевна","М151БРИСО018","Английский язык",4,"Экзамен","2016/2017 учебный год 2 модуль",null,28,4,1,0,1520829000,2098,null,"stFacultative","Реклама и связи с общественностью",{"$f":"MATCH(D168,Отчет!#REF!,0)","v":{"$error":"#REF!"}}]
[1629048232,7,"БРО153",1162404495,"Юрьева Мария Дмитриевна","М151БРИСО065","Английский язык",4,"Экзамен","2016/2017 учебный год 2 модуль",null,28,4,1,0,1520829000,2098,null,"stFacultative","Реклама и связи с общественностью",{"$f":"MATCH(D169,Отчет!#REF!,0)","v":{"$error":"#REF!"}}]
[1629047776,6,"БРО152",1162404529,"Радионова Анна Евгеньевна","М151БРИСО043","Английский язык",4,"Экзамен","2016/2017 учебный год 2 модуль",null,24,4,1,1,1520829000,2098,null,"stFacultative","Реклама и связи с общественностью",{"$f":"MATCH(D170,Отчет!#REF!,0)","v":{"$error":"#REF!"}}]
[1629048228,10,"БРО153",1162404559,"Щелкунов Игорь Владимирович","М151БРИСО064","Английский язык",4,"Экзамен","2016/2017 учебный год 2 модуль",null,40,4,1,0,1520829000,2098,null,"stFacultative","Реклама и связи с общественностью",{"$f":"MATCH(D171,Отчет!#REF!,0)","v":{"$error":"#REF!"}}]
[1629046966,8,"БРО151",1162404590,"Аккалаев Марат Русланович","М151БРИСО002","Английский язык",4,"Экзамен","2016/2017 учебный год 2 модуль",null,32,4,1,0,1520829000,2098,null,"stFacultative","Реклама и связи с общественностью",{"$f":"MATCH(D172,Отчет!#REF!,0)","v":{"$error":"#REF!"}}]
[1629048145,6,"БРО153",1162404615,"Дроздова Елизавета Владимировна","М151БРИСО016","Английский язык",4,"Экзамен","2016/2017 учебный год 2 модуль",null,24,4,1,0,1520829000,2098,null,"stFacultative","Реклама и связи с общественностью",{"$f":"MATCH(D173,Отчет!#REF!,0)","v":{"$error":"#REF!"}}]
[1629047753,6,"БРО152",1162404639,"Полякова Александра Дмитриевна","М151БРИСО041","Английский язык",4,"Экзамен","2016/2017 учебный год 2 модуль",null,24,4,1,0,1520829000,2098,null,"stFacultative","Реклама и связи с общественностью",{"$f":"MATCH(D174,Отчет!#REF!,0)","v":{"$error":"#REF!"}}]
[1629047835,5,"БРО152",1162404671,"Фролов Василий Александрович","М151БРИСО060","Английский язык",4,"Экзамен","2016/2017 учебный год 2 модуль",null,20,4,1,0,1520829000,2098,null,"stFacultative","Реклама и связи с общественностью",{"$f":"MATCH(D175,Отчет!#REF!,0)","v":{"$error":"#REF!"}}]
[1629047037,8,"БРО151",1162404699,"Милова Анастасия Андреевна","М151БРИСО033","Английский язык",4,"Экзамен","2016/2017 учебный год 2 модуль",null,32,4,1,0,1520829000,2098,null,"stFacultative","Реклама и связи с общественностью",{"$f":"MATCH(D176,Отчет!#REF!,0)","v":{"$error":"#REF!"}}]
[1629047785,7,"БРО152",1162404727,"Сак Евгения Леонидовна","М151БРИСО047","Английский язык",4,"Экзамен","2016/2017 учебный год 2 модуль",null,28,4,1,0,1520829000,2098,null,"stFacultative","Реклама и связи с общественностью",{"$f":"MATCH(D177,Отчет!#REF!,0)","v":{"$error":"#REF!"}}]
[1629047736,8,"БРО152",1162404759,"Нафталиева Яна Абрамовна","М151БРИСО036","Английский язык",4,"Экзамен","2016/2017 учебный год 2 модуль",null,32,4,1,0,1520829000,2098,null,"stFacultative","Реклама и связи с общественностью",{"$f":"MATCH(D178,Отчет!#REF!,0)","v":{"$error":"#REF!"}}]
[1629048201,4,"БРО153",1162404783,"Поляков Илья Станиславович","М151БРИСО040","Английский язык",4,"Экзамен","2016/2017 учебный год 2 модуль",null,16,4,1,0,1520829000,2098,null,"stFacultative","Реклама и связи с общественностью",{"$f":"MATCH(D179,Отчет!#REF!,0)","v":{"$error":"#REF!"}}]
[1629047817,null,"БРО152",1162404815,"Тихонина Мария Игоревна","М151БРИСО054","Английский язык",4,"Экзамен","2016/2017 учебный год 2 модуль",0,0,4,null,0,1520829000,2098,null,"stFacultative","Реклама и связи с общественностью",{"$f":"MATCH(D180,Отчет!#REF!,0)","v":{"$error":"#REF!"}}]
[1629046997,6,"БРО151",1162404843,"Даниель Александра Александровна","М151БРИСО014","Английский язык",4,"Экзамен","2016/2017 учебный год 2 модуль",null,24,4,1,0,1520829000,2098,null,"stFacultative","Реклама и связи с общественностью",{"$f":"MATCH(D181,Отчет!#REF!,0)","v":{"$error":"#REF!"}}]
[1629048191,8,"БРО153",1162404875,"Никоненко Анастасия Германовна","М151БРИСО038","Английский язык",4,"Экзамен","2016/2017 учебный год 2 модуль",null,32,4,1,0,1520829000,2098,null,"stFacultative","Реклама и связи с общественностью",{"$f":"MATCH(D182,Отчет!#REF!,0)","v":{"$error":"#REF!"}}]
[1629048213,9,"БРО153",1162402110,"Сковородина Елизавета Сергеевна","М151БРИСО051","Английский язык",4,"Экзамен","2016/2017 учебный год 2 модуль",null,36,4,1,1,1520829000,2098,null,"stFacultative","Реклама и связи с общественностью",{"$f":"MATCH(D183,Отчет!#REF!,0)","v":{"$error":"#REF!"}}]
[1629047033,10,"БРО151",1162402136,"Мазур Екатерина Сергеевна","М151БРИСО031","Английский язык",4,"Экзамен","2016/2017 учебный год 2 модуль",null,40,4,1,1,1520829000,2098,null,"stFacultative","Реклама и связи с общественностью",{"$f":"MATCH(D184,Отчет!#REF!,0)","v":{"$error":"#REF!"}}]
[1629047793,8,"БРО152",1162402160,"Серегин Геннадий Евгеньевич","М151БРИСО048","Английский язык",4,"Экзамен","2016/2017 учебный год 2 модуль",null,32,4,1,1,1520829000,2098,null,"stFacultative","Реклама и связи с общественностью",{"$f":"MATCH(D185,Отчет!#REF!,0)","v":{"$error":"#REF!"}}]
[1629048175,10,"БРО153",1162402188,"Курганова Диана Андреевна","М151БРИСО028","Английский язык",4,"Экзамен","2016/2017 учебный год 2 модуль",null,40,4,1,1,1520829000,2098,null,"stFacultative","Реклама и связи с общественностью",{"$f":"MATCH(D186,Отчет!#REF!,0)","v":{"$error":"#REF!"}}]
[1629048120,6,"БРО153",1162402220,"Горохова Елизавета Юрьевна","М151БРИСО011","Английский язык",4,"Экзамен","2016/2017 учебный год 2 модуль",null,24,4,1,1,1520829000,2098,null,"stFacultative","Реклама и связи с общественностью",{"$f":"MATCH(D187,Отчет!#REF!,0)","v":{"$error":"#REF!"}}]
[1629047765,8,"БРО152",1162402244,"Попова Диана Александровна","М151БРИСО042","Английский язык",4,"Экзамен","2016/2017 учебный год 2 модуль",null,32,4,1,1,1520829000,2098,null,"stFacultative","Реклама и связи с общественностью",{"$f":"MATCH(D188,Отчет!#REF!,0)","v":{"$error":"#REF!"}}]
[1629048224,8,"БРО153",1162402268,"Шельменкина Карина Сергеевна","М151БРИСО061","Английский язык",4,"Экзамен","2016/2017 учебный год 2 модуль",null,32,4,1,1,1520829000,2098,null,"stFacultative","Реклама и связи с общественностью",{"$f":"MATCH(D189,Отчет!#REF!,0)","v":{"$error":"#REF!"}}]
[1629046978,8,"БРО151",1162402300,"Барыкина Александра Сергеевна","М151БРИСО006","Английский язык",4,"Экзамен","2016/2017 учебный год 2 модуль",null,32,4,1,1,1520829000,2098,null,"stFacultative","Реклама и связи с общественностью",{"$f":"MATCH(D190,Отчет!#REF!,0)","v":{"$error":"#REF!"}}]
[1629047017,9,"БРО151",1162402324,"Казакова Виктория Владимировна","М151БРИСО019","Английский язык",4,"Экзамен","2016/2017 учебный год 2 модуль",null,36,4,1,1,1520829000,2098,null,"stFacultative","Реклама и связи с общественностью",{"$f":"MATCH(D191,Отчет!#REF!,0)","v":{"$error":"#REF!"}}]
[1629047719,6,"БРО152",1162402352,"Криницкая Анастасия Сергеевна","М151БРИСО027","Английский язык",4,"Экзамен","2016/2017 учебный год 2 модуль",null,24,4,1,1,1520829000,2098,null,"stFacultative","Реклама и связи с общественностью",{"$f":"MATCH(D192,Отчет!#REF!,0)","v":{"$error":"#REF!"}}]
[1629047057,7,"БРО151",1162402384,"Садова Анастасия Романовна","М151БРИСО046","Английский язык",4,"Экзамен","2016/2017 учебный год 2 модуль",null,28,4,1,1,1520829000,2098,null,"stFacultative","Реклама и связи с общественностью",{"$f":"MATCH(D193,Отчет!#REF!,0)","v":{"$error":"#REF!"}}]
[1629047053,6,"БРО151",1162402412,"Романовская Алина Андреевна","М151БРИСО045","Английский язык",4,"Экзамен","2016/2017 учебный год 2 модуль",null,24,4,1,1,1520829000,2098,null,"stFacultative","Реклама и связи с общественностью",{"$f":"MATCH(D194,Отчет!#REF!,0)","v":{"$error":"#REF!"}}]
[1629048160,6,"БРО153",1162402641,"Ковтун Юлия Алексеевна","М151БРИСО023","Английский язык",4,"Экзамен","2016/2017 учебный год 2 модуль",null,24,4,1,1,1520829000,2098,null,"stFacultative","Реклама и связи с общественностью",{"$f":"MATCH(D195,Отчет!#REF!,0)","v":{"$error":"#REF!"}}]
[1629048236,9,"БРО153",1162402673,"Язькова Елизавета Алексеевна","М151БРИСО066","Английский язык",4,"Экзамен","2016/2017 учебный год 2 модуль",null,36,4,1,1,1520829000,2098,null,"stFacultative","Реклама и связи с общественностью",{"$f":"MATCH(D196,Отчет!#REF!,0)","v":{"$error":"#REF!"}}]
[1649567058,10,"БРО153",1649552778,"Редин Виталий Вадимович","13151222","Астрофизика",5,"Экзамен","2016/2017 учебный год 2 модуль",null,50,5,1,0,1520973680,2098,"ikPlanned","stChoosen","Реклама и связи с общественностью",{"$f":"MATCH(D197,Отчет!#REF!,0)","v":{"$error":"#REF!"}}]
[1546142500,6,"БРО151",1181086716,"Пономарева Елизавета","М151БРИСО077","Введение в программирование",5,"Экзамен","2016/2017 учебный год 2 модуль",null,30,5,1,1,1520574806,2098,null,"stChoosen","Реклама и связи с общественностью",{"$f":"MATCH(D198,Отчет!#REF!,0)","v":{"$error":"#REF!"}}]
[1623504744,5,"БРО151",1516201234,"Чернышева Юлия Ивановна","М151БЛУЦП132","Введение в специальность",5,"Экзамен","2016/2017 учебный год 2 модуль",null,25,5,1,0,1520802210,2098,"ikFirst","stCommon","Реклама и связи с общественностью",{"$f":"MATCH(D199,Отчет!#REF!,0)","v":{"$error":"#REF!"}}]
[1667406028,2,"БРО153",1667389090,"Кармазинский Николай Андреевич","М161БРИСО394","Введение в специальность",5,"Экзамен","2016/2017 учебный год 2 модуль",null,0,5,0,0,1520802210,2098,"ikFirst","stCommon","Реклама и связи с общественностью",{"$f":"MATCH(D200,Отчет!#REF!,0)","v":{"$error":"#REF!"}}]
[1663382636,6,"БРО153",1662712925,"Каньшина Елизавета Сергеевна","13103024","Введение в специальность",5,"Экзамен","2016/2017 учебный год 2 модуль",null,30,5,1,0,1520802210,2098,"ikFirst","stCommon","Реклама и связи с общественностью",{"$f":"MATCH(D201,Отчет!#REF!,0)","v":{"$error":"#REF!"}}]
[1623541179,4,"БРО151",1517365582,"Хохлова Наталия Алексеевна","М151БМИЭФ196","Введение в специальность",5,"Экзамен","2016/2017 учебный год 2 модуль",null,20,5,1,0,1520802210,2098,"ikFirst","stCommon","Реклама и связи с общественностью",{"$f":"MATCH(D202,Отчет!#REF!,0)","v":{"$error":"#REF!"}}]
[1623540545,5,"БРО151",1517364590,"Луданова Евгения Александровна","М151БМИЭФ103","Введение в специальность",5,"Экзамен","2016/2017 учебный год 2 модуль",null,25,5,1,0,1520802210,2098,"ikFirst","stCommon","Реклама и связи с общественностью",{"$f":"MATCH(D203,Отчет!#REF!,0)","v":{"$error":"#REF!"}}]
[1623537988,8,"БРО152",1517704476,"Жарикова Анастасия Владимировна","М151БМНДЖ057","Введение в специальность",5,"Экзамен","2016/2017 учебный год 2 модуль",null,40,5,1,0,1520802210,2098,"ikFirst","stCommon","Реклама и связи с общественностью",{"$f":"MATCH(D204,Отчет!#REF!,0)","v":{"$error":"#REF!"}}]
[1623530490,6,"БРО152",1518721225,"Авдонина Дарья Романовна","М141БЖУРН001","Введение в специальность",5,"Экзамен","2016/2017 учебный год 2 модуль",null,30,5,1,0,1520802210,2098,"ikFirst","stCommon","Реклама и связи с общественностью",{"$f":"MATCH(D205,Отчет!#REF!,0)","v":{"$error":"#REF!"}}]
[1623543455,6,"БРО153",1519084812,"Яснева Екатерина Андреевна","М161БРИСО003","Введение в специальность",5,"Экзамен","2016/2017 учебный год 2 модуль",null,30,5,1,0,1520802210,2098,"ikFirst","stCommon","Реклама и связи с общественностью",{"$f":"MATCH(D206,Отчет!#REF!,0)","v":{"$error":"#REF!"}}]
[1623448402,2,"БРО151",1520873492,"Арчакова Александра Ивановна","М151БИНЯЗ013","Введение в специальность",5,"Экзамен","2016/2017 учебный год 2 модуль",null,0,5,0,0,1520802210,2098,"ikFirst","stCommon","Реклама и связи с общественностью",{"$f":"MATCH(D207,Отчет!#REF!,0)","v":{"$error":"#REF!"}}]
[1649861344,0,"БРО152",1649860854,"Лебедева Маргарита Станиславовна","12151236","Введение в специальность",5,"Экзамен","2016/2017 учебный год 2 модуль",null,0,5,0,0,1520802210,2098,"ikFirst","stCommon","Реклама и связи с общественностью",{"$f":"MATCH(D208,Отчет!#REF!,0)","v":{"$error":"#REF!"}}]
[1656185715,6,"БРО152",1656154991,"Чуб Степан Александрович","М151БМНДЖ166","Введение в специальность",5,"Экзамен","2016/2017 учебный год 2 модуль",null,30,5,1,0,1520802210,2098,"ikFirst","stCommon","Реклама и связи с общественностью",{"$f":"MATCH(D209,Отчет!#REF!,0)","v":{"$error":"#REF!"}}]
[1656192093,4,"БРО151",1656174061,"Рашилова Полина Викторовна","М151БЛУЦП091","Введение в специальность",5,"Экзамен","2016/2017 учебный год 2 модуль",null,20,5,1,0,1520802210,2098,"ikFirst","stCommon","Реклама и связи с общественностью",{"$f":"MATCH(D210,Отчет!#REF!,0)","v":{"$error":"#REF!"}}]
[1656197286,4,"БРО151",1656175499,"Молот Ксения Олеговна","М151БЛУЦП073","Введение в специальность",5,"Экзамен","2016/2017 учебный год 2 модуль",null,20,5,1,0,1520802210,2098,"ikFirst","stCommon","Реклама и связи с общественностью",{"$f":"MATCH(D211,Отчет!#REF!,0)","v":{"$error":"#REF!"}}]
[1623532897,5,"БРО152",1396053703,"Громов Максим Сергеевич","М141БФИКЛ012","Введение в специальность",5,"Экзамен","2016/2017 учебный год 2 модуль",null,25,5,1,0,1520802210,2098,"ikFirst","stCommon","Реклама и связи с общественностью",{"$f":"MATCH(D212,Отчет!#REF!,0)","v":{"$error":"#REF!"}}]
[1623481417,7,"БРО151",1474053891,"Лисина Юлия Андреевна","М151БРИСО086","Введение в специальность",5,"Экзамен","2016/2017 учебный год 2 модуль",null,35,5,1,0,1520802210,2098,"ikFirst","stCommon","Реклама и связи с общественностью",{"$f":"MATCH(D213,Отчет!#REF!,0)","v":{"$error":"#REF!"}}]
[1623543143,5,"БРО153",1514787326,"Харисов Артур Раоланович","М151БЭКСТ107","Введение в специальность",5,"Экзамен","2016/2017 учебный год 2 модуль",null,25,5,1,0,1520802210,2098,"ikFirst","stCommon","Реклама и связи с общественностью",{"$f":"MATCH(D214,Отчет!#REF!,0)","v":{"$error":"#REF!"}}]
[1623541676,6,"БРО153",1514792971,"Гридчина Нина Сергеевна","М161БРИСО001","Введение в специальность",5,"Экзамен","2016/2017 учебный год 2 модуль",null,30,5,1,0,1520802210,2098,"ikFirst","stCommon","Реклама и связи с общественностью",{"$f":"MATCH(D215,Отчет!#REF!,0)","v":{"$error":"#REF!"}}]
[1623542509,8,"БРО153",1514839183,"Жаркова Дарья Андреевна","М151БСОЦЛ040","Введение в специальность",5,"Экзамен","2016/2017 учебный год 2 модуль",null,40,5,1,0,1520802210,2098,"ikFirst","stCommon","Реклама и связи с общественностью",{"$f":"MATCH(D216,Отчет!#REF!,0)","v":{"$error":"#REF!"}}]
[1623499678,2,"БРО151",1515445555,"Скворцова Елизавета Васильевна","М161БРИСО395","Введение в специальность",5,"Экзамен","2016/2017 учебный год 2 модуль",null,0,5,0,0,1520802210,2098,"ikFirst","stCommon","Реклама и связи с общественностью",{"$f":"MATCH(D217,Отчет!#REF!,0)","v":{"$error":"#REF!"}}]
[1623471502,5,"БРО151",1515481958,"Бажулич Кристина Джуровна","М151БИНЯЗ017","Введение в специальность",5,"Экзамен","2016/2017 учебный год 2 модуль",null,25,5,1,0,1520802210,2098,"ikFirst","stCommon","Реклама и связи с общественностью",{"$f":"MATCH(D218,Отчет!#REF!,0)","v":{"$error":"#REF!"}}]
[1623540136,5,"БРО152",1517430637,"Шеховцова Елизавета Дмитриевна","М151БИНЯЗ191","Введение в специальность",5,"Экзамен","2016/2017 учебный год 2 модуль",null,25,5,1,0,1520802210,2098,"ikFirst","stCommon","Реклама и связи с общественностью",{"$f":"MATCH(D219,Отчет!#REF!,0)","v":{"$error":"#REF!"}}]
[1659806705,6,"БРО153",1656379817,"Коломиец Ольга Андреевна","М151БМНДЖ078","Введение в специальность",5,"Экзамен","2016/2017 учебный год 2 модуль",null,30,5,1,0,1520802210,2098,"ikFirst","stCommon","Реклама и связи с общественностью",{"$f":"MATCH(D220,Отчет!#REF!,0)","v":{"$error":"#REF!"}}]
[1546142857,4,"БРО152",1181080670,"Чачков Алексей Алексеевич","М151БРИСО083","Введение в урбанистику",5,"Экзамен","2016/2017 учебный год 2 модуль",null,20,5,1,1,1520575463,2098,null,"stChoosen","Реклама и связи с общественностью",{"$f":"MATCH(D221,Отчет!#REF!,0)","v":{"$error":"#REF!"}}]
[1546142937,3,"БРО153",1181080622,"Нугуспанова Индира","М151БРИСО075","Введение в урбанистику",5,"Экзамен","2016/2017 учебный год 2 модуль",null,0,5,0,1,1520575463,2098,null,"stChoosen","Реклама и связи с общественностью",{"$f":"MATCH(D222,Отчет!#REF!,0)","v":{"$error":"#REF!"}}]
[1546142921,10,"БРО153",1162405372,"Гранина Дарья Константиновна","М151БРИСО012","Введение в урбанистику",5,"Экзамен","2016/2017 учебный год 2 модуль",null,50,5,1,0,1520575463,2098,null,"stChoosen","Реклама и связи с общественностью",{"$f":"MATCH(D223,Отчет!#REF!,0)","v":{"$error":"#REF!"}}]
[1546142961,4,"БРО151",1162405311,"Шкляр Даниэль Семенович","М151БРИСО062","Введение в урбанистику",5,"Экзамен","2016/2017 учебный год 2 модуль",null,20,5,1,0,1520575463,2098,null,"stChoosen","Реклама и связи с общественностью",{"$f":"MATCH(D224,Отчет!#REF!,0)","v":{"$error":"#REF!"}}]
[1546142865,6,"БРО153",1514787326,"Харисов Артур Раоланович","М151БЭКСТ107","Введение в урбанистику",5,"Экзамен","2016/2017 учебный год 2 модуль",null,30,5,1,0,1520575463,2098,null,"stChoosen","Реклама и связи с общественностью",{"$f":"MATCH(D225,Отчет!#REF!,0)","v":{"$error":"#REF!"}}]
[1546142969,7,"БРО152",1517430637,"Шеховцова Елизавета Дмитриевна","М151БИНЯЗ191","Введение в урбанистику",5,"Экзамен","2016/2017 учебный год 2 модуль",null,35,5,1,0,1520575463,2098,null,"stChoosen","Реклама и связи с общественностью",{"$f":"MATCH(D226,Отчет!#REF!,0)","v":{"$error":"#REF!"}}]
[1546142977,7,"БРО151",1162404299,"Панарина Елизавета Сергеевна","М151БРИСО039","Введение в урбанистику",5,"Экзамен","2016/2017 учебный год 2 модуль",null,35,5,1,1,1520575463,2098,null,"stChoosen","Реклама и связи с общественностью",{"$f":"MATCH(D227,Отчет!#REF!,0)","v":{"$error":"#REF!"}}]
[1546142929,6,"БРО153",1162401288,"Мельник Алексей Сергеевич","М151БРИСО032","Введение в урбанистику",5,"Экзамен","2016/2017 учебный год 2 модуль",null,30,5,1,1,1520575463,2098,null,"stChoosen","Реклама и связи с общественностью",{"$f":"MATCH(D228,Отчет!#REF!,0)","v":{"$error":"#REF!"}}]
[1546142953,5,"БРО153",1181086733,"Дремлюк Марья","М151БРИСО074","Введение в урбанистику",5,"Экзамен","2016/2017 учебный год 2 модуль",null,25,5,1,1,1520575463,2098,null,"stChoosen","Реклама и связи с общественностью",{"$f":"MATCH(D229,Отчет!#REF!,0)","v":{"$error":"#REF!"}}]
[1546142881,8,"БРО152",1187938540,"Ковалева Анастасия Романовна","М151БРИСО080","Введение в урбанистику",5,"Экзамен","2016/2017 учебный год 2 модуль",null,40,5,1,1,1520575463,2098,null,"stChoosen","Реклама и связи с общественностью",{"$f":"MATCH(D230,Отчет!#REF!,0)","v":{"$error":"#REF!"}}]
[1546142889,9,"БРО153",1162404559,"Щелкунов Игорь Владимирович","М151БРИСО064","Введение в урбанистику",5,"Экзамен","2016/2017 учебный год 2 модуль",null,45,5,1,0,1520575463,2098,null,"stChoosen","Реклама и связи с общественностью",{"$f":"MATCH(D231,Отчет!#REF!,0)","v":{"$error":"#REF!"}}]
[1546142905,6,"БРО151",1162404590,"Аккалаев Марат Русланович","М151БРИСО002","Введение в урбанистику",5,"Экзамен","2016/2017 учебный год 2 модуль",null,30,5,1,0,1520575463,2098,null,"stChoosen","Реклама и связи с общественностью",{"$f":"MATCH(D232,Отчет!#REF!,0)","v":{"$error":"#REF!"}}]
[1546142913,9,"БРО152",1162404939,"Тузова Евгения Сергеевна","М151БРИСО057","Введение в урбанистику",5,"Экзамен","2016/2017 учебный год 2 модуль",null,45,5,1,0,1520575463,2098,null,"stChoosen","Реклама и связи с общественностью",{"$f":"MATCH(D233,Отчет!#REF!,0)","v":{"$error":"#REF!"}}]
[1546142985,7,"БРО151",1162402412,"Романовская Алина Андреевна","М151БРИСО045","Введение в урбанистику",5,"Экзамен","2016/2017 учебный год 2 модуль",null,35,5,1,1,1520575463,2098,null,"stChoosen","Реклама и связи с общественностью",{"$f":"MATCH(D234,Отчет!#REF!,0)","v":{"$error":"#REF!"}}]
[1656792375,null,"БРО152",1656791552,"Суркин Константин Сергеевич","101094114","Великие книги западной литературы от Гомера до Ницше",5,"Экзамен","2016/2017 учебный год 2 модуль",0,0,5,null,0,1520572540,2098,"ikPlanned","stChoosen","Реклама и связи с общественностью",{"$f":"MATCH(D235,Отчет!#REF!,0)","v":{"$error":"#REF!"}}]
[1656425155,10,"БРО151",1162402136,"Мазур Екатерина Сергеевна","М151БРИСО031","Византия и славяне: тысяча лет вместе",2,"Экзамен","2016/2017 учебный год 2 модуль",null,0,0,1,1,null,5028,null,"stFacultative","Реклама и связи с общественностью",{"$f":"MATCH(D236,Отчет!#REF!,0)","v":{"$error":"#REF!"}}]
[1546142358,9,"БРО153",1514839183,"Жаркова Дарья Андреевна","М151БСОЦЛ040","Глобальные вызовы современности и организация комплексной системы безопасности бизнеса",5,"Экзамен","2016/2017 учебный год 2 модуль",null,45,5,1,0,1520572089,2098,null,"stChoosen","Реклама и связи с общественностью",{"$f":"MATCH(D237,Отчет!#REF!,0)","v":{"$error":"#REF!"}}]
[1649665220,9,"БРО151",1515481958,"Бажулич Кристина Джуровна","М151БИНЯЗ017","Глобальные вызовы современности и организация комплексной системы безопасности бизнеса",5,"Экзамен","2016/2017 учебный год 2 модуль",null,45,5,1,0,1520572089,2098,null,"stChoosen","Реклама и связи с общественностью",{"$f":"MATCH(D238,Отчет!#REF!,0)","v":{"$error":"#REF!"}}]
[1546142334,9,"БРО151",1516201234,"Чернышева Юлия Ивановна","М151БЛУЦП132","Глобальные вызовы современности и организация комплексной системы безопасности бизнеса",5,"Экзамен","2016/2017 учебный год 2 модуль",null,45,5,1,0,1520572089,2098,null,"stChoosen","Реклама и связи с общественностью",{"$f":"MATCH(D239,Отчет!#REF!,0)","v":{"$error":"#REF!"}}]
[1546142374,9,"БРО152",1162402352,"Криницкая Анастасия Сергеевна","М151БРИСО027","Глобальные вызовы современности и организация комплексной системы безопасности бизнеса",5,"Экзамен","2016/2017 учебный год 2 модуль",null,45,5,1,1,1520572089,2098,null,"stChoosen","Реклама и связи с общественностью",{"$f":"MATCH(D240,Отчет!#REF!,0)","v":{"$error":"#REF!"}}]
[1546142326,9,"БРО152",1162404463,"Радченко Ирина Дмитриевна","М151БРИСО044","Глобальные вызовы современности и организация комплексной системы безопасности бизнеса",5,"Экзамен","2016/2017 учебный год 2 модуль",null,45,5,1,0,1520572089,2098,null,"stChoosen","Реклама и связи с общественностью",{"$f":"MATCH(D241,Отчет!#REF!,0)","v":{"$error":"#REF!"}}]
[1546142342,9,"БРО153",1162402188,"Курганова Диана Андреевна","М151БРИСО028","Глобальные вызовы современности и организация комплексной системы безопасности бизнеса",5,"Экзамен","2016/2017 учебный год 2 модуль",null,45,5,1,1,1520572089,2098,null,"stChoosen","Реклама и связи с общественностью",{"$f":"MATCH(D242,Отчет!#REF!,0)","v":{"$error":"#REF!"}}]
[1546142350,9,"БРО153",1162402220,"Горохова Елизавета Юрьевна","М151БРИСО011","Глобальные вызовы современности и организация комплексной системы безопасности бизнеса",5,"Экзамен","2016/2017 учебный год 2 модуль",null,45,5,1,1,1520572089,2098,null,"stChoosen","Реклама и связи с общественностью",{"$f":"MATCH(D243,Отчет!#REF!,0)","v":{"$error":"#REF!"}}]
[1546142366,9,"БРО153",1173924661,"Галкин Вячеслав Владимирович","М151БРИСО070","Глобальные вызовы современности и организация комплексной системы безопасности бизнеса",5,"Экзамен","2016/2017 учебный год 2 модуль",null,45,5,1,0,1520572089,2098,null,"stChoosen","Реклама и связи с общественностью",{"$f":"MATCH(D244,Отчет!#REF!,0)","v":{"$error":"#REF!"}}]
[1623537997,7,"БРО152",1517704476,"Жарикова Анастасия Владимировна","М151БМНДЖ057","История",4,"Экзамен","2016/2017 учебный год 2 модуль",null,28,4,1,0,1520802210,2098,"ikFirst","stCommon","Реклама и связи с общественностью",{"$f":"MATCH(D245,Отчет!#REF!,0)","v":{"$error":"#REF!"}}]
[1623541191,8,"БРО151",1517365582,"Хохлова Наталия Алексеевна","М151БМИЭФ196","История",4,"Экзамен","2016/2017 учебный год 2 модуль",null,32,4,1,0,1520802210,2098,"ikFirst","stCommon","Реклама и связи с общественностью",{"$f":"MATCH(D246,Отчет!#REF!,0)","v":{"$error":"#REF!"}}]
[1623540557,8,"БРО151",1517364590,"Луданова Евгения Александровна","М151БМИЭФ103","История",4,"Экзамен","2016/2017 учебный год 2 модуль",null,32,4,1,0,1520802210,2098,"ikFirst","stCommon","Реклама и связи с общественностью",{"$f":"MATCH(D247,Отчет!#REF!,0)","v":{"$error":"#REF!"}}]
[1623542526,7,"БРО153",1514839183,"Жаркова Дарья Андреевна","М151БСОЦЛ040","История",4,"Экзамен","2016/2017 учебный год 2 модуль",null,28,4,1,0,1520802210,2098,"ikFirst","stCommon","Реклама и связи с общественностью",{"$f":"MATCH(D248,Отчет!#REF!,0)","v":{"$error":"#REF!"}}]
[1623543126,5,"БРО153",1514787326,"Харисов Артур Раоланович","М151БЭКСТ107","История",4,"Экзамен","2016/2017 учебный год 2 модуль",null,20,4,1,0,1520802210,2098,"ikFirst","stCommon","Реклама и связи с общественностью",{"$f":"MATCH(D249,Отчет!#REF!,0)","v":{"$error":"#REF!"}}]
[1623481437,6,"БРО151",1474053891,"Лисина Юлия Андреевна","М151БРИСО086","История",4,"Экзамен","2016/2017 учебный год 2 модуль",null,24,4,1,0,1520802210,2098,"ikFirst","stCommon","Реклама и связи с общественностью",{"$f":"MATCH(D250,Отчет!#REF!,0)","v":{"$error":"#REF!"}}]
[1623532934,6,"БРО152",1396053703,"Громов Максим Сергеевич","М141БФИКЛ012","История",4,"Экзамен","2016/2017 учебный год 2 модуль",null,24,4,1,0,1520802210,2098,"ikFirst","stCommon","Реклама и связи с общественностью",{"$f":"MATCH(D251,Отчет!#REF!,0)","v":{"$error":"#REF!"}}]
[1656792197,4,"БРО152",1656791552,"Суркин Константин Сергеевич","101094114","История коммуникаций",4,"Экзамен","2016/2017 учебный год 2 модуль",null,16,4,1,0,1520802210,2098,"ikFirst","stCommon","Реклама и связи с общественностью",{"$f":"MATCH(D252,Отчет!#REF!,0)","v":{"$error":"#REF!"}}]
[1649566890,1,"БРО153",1649552778,"Редин Виталий Вадимович","13151222","История коммуникаций",4,"Экзамен","2016/2017 учебный год 2 модуль",null,0,4,0,0,1520802210,2098,"ikFirst","stCommon","Реклама и связи с общественностью",{"$f":"MATCH(D253,Отчет!#REF!,0)","v":{"$error":"#REF!"}}]
[1649669830,0,"БРО151",1649667663,"Селиверстова Анастасия Алексеевна","13151224","История коммуникаций",4,"Экзамен","2016/2017 учебный год 2 модуль",null,0,4,0,0,1520802210,2098,"ikFirst","stCommon","Реклама и связи с общественностью",{"$f":"MATCH(D254,Отчет!#REF!,0)","v":{"$error":"#REF!"}}]
[1649861372,0,"БРО152",1649860854,"Лебедева Маргарита Станиславовна","12151236","История коммуникаций",4,"Экзамен","2016/2017 учебный год 2 модуль",null,0,4,0,0,1520802210,2098,"ikFirst","stCommon","Реклама и связи с общественностью",{"$f":"MATCH(D255,Отчет!#REF!,0)","v":{"$error":"#REF!"}}]
[1652986396,0,"БРО152",1652970670,"Абрамов Александр Олегович","13151201","История коммуникаций",4,"Экзамен","2016/2017 учебный год 2 модуль",null,0,4,0,0,1520802210,2098,"ikFirst","stCommon","Реклама и связи с общественностью",{"$f":"MATCH(D256,Отчет!#REF!,0)","v":{"$error":"#REF!"}}]
[1546349822,9,"БРО152",1162401228,"Бешанова Елизавета Вячеславовна","М151БРИСО007","История международных отношений",5,"Экзамен","2016/2017 учебный год 2 модуль",null,45,5,1,1,1520572839,2098,null,"stChoosen","Реклама и связи с общественностью",{"$f":"MATCH(D257,Отчет!#REF!,0)","v":{"$error":"#REF!"}}]
[1546142561,8,"БРО152",1162401260,"Никитина Валерия Дмитриевна","М151БРИСО037","История международных отношений",5,"Экзамен","2016/2017 учебный год 2 модуль",null,40,5,1,1,1520572839,2098,null,"stChoosen","Реклама и связи с общественностью",{"$f":"MATCH(D258,Отчет!#REF!,0)","v":{"$error":"#REF!"}}]
[1546142504,8,"БРО152",1162401164,"Сизова Анна Геннадьевна","М151БРИСО049","История международных отношений",5,"Экзамен","2016/2017 учебный год 2 модуль",null,40,5,1,1,1520572839,2098,null,"stChoosen","Реклама и связи с общественностью",{"$f":"MATCH(D259,Отчет!#REF!,0)","v":{"$error":"#REF!"}}]
[1546142512,9,"БРО152",1162402244,"Попова Диана Александровна","М151БРИСО042","История международных отношений",5,"Экзамен","2016/2017 учебный год 2 модуль",null,45,5,1,1,1520572839,2098,null,"stChoosen","Реклама и связи с общественностью",{"$f":"MATCH(D260,Отчет!#REF!,0)","v":{"$error":"#REF!"}}]
[1546142553,6,"БРО153",1162404783,"Поляков Илья Станиславович","М151БРИСО040","История международных отношений",5,"Экзамен","2016/2017 учебный год 2 модуль",null,30,5,1,0,1520572839,2098,null,"stChoosen","Реклама и связи с общественностью",{"$f":"MATCH(D261,Отчет!#REF!,0)","v":{"$error":"#REF!"}}]
[1546142545,9,"БРО152",1162404759,"Нафталиева Яна Абрамовна","М151БРИСО036","История международных отношений",5,"Экзамен","2016/2017 учебный год 2 модуль",null,45,5,1,0,1520572839,2098,null,"stChoosen","Реклама и связи с общественностью",{"$f":"MATCH(D262,Отчет!#REF!,0)","v":{"$error":"#REF!"}}]
[1546142569,8,"БРО152",1162404727,"Сак Евгения Леонидовна","М151БРИСО047","История международных отношений",5,"Экзамен","2016/2017 учебный год 2 модуль",null,40,5,1,0,1520572839,2098,null,"stChoosen","Реклама и связи с общественностью",{"$f":"MATCH(D263,Отчет!#REF!,0)","v":{"$error":"#REF!"}}]
[1546142520,7,"БРО152",1396053703,"Громов Максим Сергеевич","М141БФИКЛ012","История международных отношений",5,"Экзамен","2016/2017 учебный год 2 модуль",null,35,5,1,0,1520572839,2098,null,"stChoosen","Реклама и связи с общественностью",{"$f":"MATCH(D264,Отчет!#REF!,0)","v":{"$error":"#REF!"}}]
[1546142426,10,"БРО152",1517704476,"Жарикова Анастасия Владимировна","М151БМНДЖ057","Культура современных обществ: социологический анализ.",5,"Экзамен","2016/2017 учебный год 2 модуль",null,50,5,1,0,1520572185,2098,null,"stChoosen","Реклама и связи с общественностью",{"$f":"MATCH(D265,Отчет!#REF!,0)","v":{"$error":"#REF!"}}]
[1656544117,7,"БРО153",1519084812,"Яснева Екатерина Андреевна","М161БРИСО003","Культура современных обществ: социологический анализ.",5,"Экзамен","2016/2017 учебный год 2 модуль",null,35,5,1,0,1520572185,2098,"ikPlanned","stChoosen","Реклама и связи с общественностью",{"$f":"MATCH(D266,Отчет!#REF!,0)","v":{"$error":"#REF!"}}]
[1546142435,null,"БРО151",1520873492,"Арчакова Александра Ивановна","М151БИНЯЗ013","Культура современных обществ: социологический анализ.",5,"Экзамен","2016/2017 учебный год 2 модуль",0,0,5,null,0,1520572185,2098,null,"stChoosen","Реклама и связи с общественностью",{"$f":"MATCH(D267,Отчет!#REF!,0)","v":{"$error":"#REF!"}}]
[1656185737,10,"БРО152",1656154991,"Чуб Степан Александрович","М151БМНДЖ166","Культура современных обществ: социологический анализ.",5,"Экзамен","2016/2017 учебный год 2 модуль",null,50,5,1,0,1520572185,2098,"ikPlanned","stChoosen","Реклама и связи с общественностью",{"$f":"MATCH(D268,Отчет!#REF!,0)","v":{"$error":"#REF!"}}]
[1546142467,6,"БРО151",1181080646,"Белякова Анастасия","М151БРИСО079","Культура современных обществ: социологический анализ.",5,"Экзамен","2016/2017 учебный год 2 модуль",null,30,5,1,1,1520572185,2098,null,"stChoosen","Реклама и связи с общественностью",{"$f":"MATCH(D269,Отчет!#REF!,0)","v":{"$error":"#REF!"}}]
[1546142443,6,"БРО151",1162404411,"Надирова Анна Зурабовна","М151БРИСО035","Культура современных обществ: социологический анализ.",5,"Экзамен","2016/2017 учебный год 2 модуль",null,30,5,1,0,1520572185,2098,null,"stChoosen","Реклама и связи с общественностью",{"$f":"MATCH(D270,Отчет!#REF!,0)","v":{"$error":"#REF!"}}]
[1546142451,6,"БРО152",1162401665,"Веряева Ксения Михайловна","М151БРИСО010","Культура современных обществ: социологический анализ.",5,"Экзамен","2016/2017 учебный год 2 модуль",null,30,5,1,1,1520572185,2098,null,"stChoosen","Реклама и связи с общественностью",{"$f":"MATCH(D271,Отчет!#REF!,0)","v":{"$error":"#REF!"}}]
[1546142483,8,"БРО151",1162404699,"Милова Анастасия Андреевна","М151БРИСО033","Культура современных обществ: социологический анализ.",5,"Экзамен","2016/2017 учебный год 2 модуль",null,40,5,1,0,1520572185,2098,null,"stChoosen","Реклама и связи с общественностью",{"$f":"MATCH(D272,Отчет!#REF!,0)","v":{"$error":"#REF!"}}]
[1546142402,10,"БРО151",1162402136,"Мазур Екатерина Сергеевна","М151БРИСО031","Культура современных обществ: социологический анализ.",5,"Экзамен","2016/2017 учебный год 2 модуль",null,50,5,1,1,1520572185,2098,null,"stChoosen","Реклама и связи с общественностью",{"$f":"MATCH(D273,Отчет!#REF!,0)","v":{"$error":"#REF!"}}]
[1546142410,8,"БРО151",1162402324,"Казакова Виктория Владимировна","М151БРИСО019","Культура современных обществ: социологический анализ.",5,"Экзамен","2016/2017 учебный год 2 модуль",null,40,5,1,1,1520572185,2098,null,"stChoosen","Реклама и связи с общественностью",{"$f":"MATCH(D274,Отчет!#REF!,0)","v":{"$error":"#REF!"}}]
[1546142459,8,"БРО151",1162404267,"Колганова Полина Олеговна","М151БРИСО024","Культура современных обществ: социологический анализ.",5,"Экзамен","2016/2017 учебный год 2 модуль",null,40,5,1,0,1520572185,2098,null,"stChoosen","Реклама и связи с общественностью",{"$f":"MATCH(D275,Отчет!#REF!,0)","v":{"$error":"#REF!"}}]
[1673688704,7,"БРО152",1162401312,"Ленкуте Алина Максимовна","М151БРИСО029","Культура современных обществ: социологический анализ.",5,"Экзамен","2016/2017 учебный год 2 модуль",null,35,5,1,1,1520572185,2098,null,"stChoosen","Реклама и связи с общественностью",{"$f":"MATCH(D276,Отчет!#REF!,0)","v":{"$error":"#REF!"}}]
[1546142492,6,"БРО152",1162401408,"Астурян Вячеслав Вячеславович","М151БРИСО004","Культура современных обществ: социологический анализ.",5,"Экзамен","2016/2017 учебный год 2 модуль",null,30,5,1,1,1520572185,2098,null,"stChoosen","Реклама и связи с общественностью",{"$f":"MATCH(D277,Отчет!#REF!,0)","v":{"$error":"#REF!"}}]
[1546142418,5,"БРО153",1162404495,"Юрьева Мария Дмитриевна","М151БРИСО065","Культура современных обществ: социологический анализ.",5,"Экзамен","2016/2017 учебный год 2 модуль",null,25,5,1,0,1520572185,2098,null,"stChoosen","Реклама и связи с общественностью",{"$f":"MATCH(D278,Отчет!#REF!,0)","v":{"$error":"#REF!"}}]
[1546143001,null,"БРО152",1518721225,"Авдонина Дарья Романовна","М141БЖУРН001","Логика и основы критического мышления",5,"Экзамен","2016/2017 учебный год 2 модуль",0,0,5,null,0,1520574603,2098,null,"stChoosen","Реклама и связи с общественностью",{"$f":"MATCH(D279,Отчет!#REF!,0)","v":{"$error":"#REF!"}}]
[1649669967,null,"БРО151",1649667663,"Селиверстова Анастасия Алексеевна","13151224","Логика и основы критического мышления",5,"Экзамен","2016/2017 учебный год 2 модуль",1,0,5,null,0,1520574603,2098,"ikPlanned","stChoosen","Реклама и связи с общественностью",{"$f":"MATCH(D280,Отчет!#REF!,0)","v":{"$error":"#REF!"}}]
[1546349808,9,"БРО153",1162402110,"Сковородина Елизавета Сергеевна","М151БРИСО051","Логика и основы критического мышления",5,"Экзамен","2016/2017 учебный год 2 модуль",null,45,5,1,1,1520574603,2098,null,"stChoosen","Реклама и связи с общественностью",{"$f":"MATCH(D281,Отчет!#REF!,0)","v":{"$error":"#REF!"}}]
[1546349846,9,"БРО153",1162401440,"Гришина Мария Сергеевна","М151БРИСО013","Логика и основы критического мышления",5,"Экзамен","2016/2017 учебный год 2 модуль",null,45,5,1,1,1520574603,2098,null,"stChoosen","Реклама и связи с общественностью",{"$f":"MATCH(D282,Отчет!#REF!,0)","v":{"$error":"#REF!"}}]
[1652986494,null,"БРО152",1652970670,"Абрамов Александр Олегович","13151201","Логика и основы критического мышления",5,"Экзамен","2016/2017 учебный год 2 модуль",1,0,5,null,0,1520574603,2098,"ikFirst","stChoosen","Реклама и связи с общественностью",{"$f":"MATCH(D283,Отчет!#REF!,0)","v":{"$error":"#REF!"}}]
[1546142713,6,"БРО151",1192491796,"Бекназарова Комилла Сохибжоновна","М151БРИСО085","Микроэкономика",5,"Экзамен","2016/2017 учебный год 2 модуль",null,30,5,1,1,1520573850,2098,null,"stChoosen","Реклама и связи с общественностью",{"$f":"MATCH(D284,Отчет!#REF!,0)","v":{"$error":"#REF!"}}]
[1546142705,8,"БРО153",1162404615,"Дроздова Елизавета Владимировна","М151БРИСО016","Микроэкономика",5,"Экзамен","2016/2017 учебный год 2 модуль",null,40,5,1,0,1520573850,2098,null,"stChoosen","Реклама и связи с общественностью",{"$f":"MATCH(D285,Отчет!#REF!,0)","v":{"$error":"#REF!"}}]
[1546142729,7,"БРО153",1162401104,"Янчева Анастасия Вадимовна","М151БРИСО067","Микроэкономика",5,"Экзамен","2016/2017 учебный год 2 модуль",null,35,5,1,1,1520573850,2098,null,"stChoosen","Реклама и связи с общественностью",{"$f":"MATCH(D286,Отчет!#REF!,0)","v":{"$error":"#REF!"}}]
[1546142737,8,"БРО153",1162402268,"Шельменкина Карина Сергеевна","М151БРИСО061","Микроэкономика",5,"Экзамен","2016/2017 учебный год 2 модуль",null,40,5,1,1,1520573850,2098,null,"stChoosen","Реклама и связи с общественностью",{"$f":"MATCH(D287,Отчет!#REF!,0)","v":{"$error":"#REF!"}}]
[1546142721,9,"БРО153",1162404239,"Мошева Анастасия Олеговна","М151БРИСО034","Микроэкономика",5,"Экзамен","2016/2017 учебный год 2 модуль",null,45,5,1,1,1520573850,2098,null,"stChoosen","Реклама и связи с общественностью",{"$f":"MATCH(D288,Отчет!#REF!,0)","v":{"$error":"#REF!"}}]
[1546142697,7,"БРО152",1162402160,"Серегин Геннадий Евгеньевич","М151БРИСО048","Микроэкономика",5,"Экзамен","2016/2017 учебный год 2 модуль",null,35,5,1,1,1520573850,2098,null,"stChoosen","Реклама и связи с общественностью",{"$f":"MATCH(D289,Отчет!#REF!,0)","v":{"$error":"#REF!"}}]
[1652986290,5,"БРО152",1652970670,"Абрамов Александр Олегович","13151201","Научно-исследовательский семинар",0,"Экзамен","2016/2017 учебный год 2 модуль",null,0,2,1,0,1520829000,2098,"ikPassed","stCommon","Реклама и связи с общественностью",{"$f":"MATCH(D290,Отчет!#REF!,0)","v":{"$error":"#REF!"}}]
[1580591026,7,"БРО153",1181086818,"Кунцевич Мария","М151БРИСО076","Научно-исследовательский семинар",2,"Экзамен","2016/2017 учебный год 2 модуль",null,14,2,1,1,1520829000,2098,null,"stCommon","Реклама и связи с общественностью",{"$f":"MATCH(D291,Отчет!#REF!,0)","v":{"$error":"#REF!"}}]
[1572906303,6,"БРО151",1187793549,"Абдулхакимова Афина Шавкатовна","М151БРИСО084","Научно-исследовательский семинар",2,"Экзамен","2016/2017 учебный год 2 модуль",null,12,2,1,0,1520829000,2098,null,"stCommon","Реклама и связи с общественностью",{"$f":"MATCH(D292,Отчет!#REF!,0)","v":{"$error":"#REF!"}}]
[1580591703,7,"БРО153",1187938514,"Романова Екатерина Сергеевна","М151БРИСО082","Научно-исследовательский семинар",2,"Экзамен","2016/2017 учебный год 2 модуль",null,14,2,1,1,1520829000,2098,null,"stCommon","Реклама и связи с общественностью",{"$f":"MATCH(D293,Отчет!#REF!,0)","v":{"$error":"#REF!"}}]
[1580586960,4,"БРО152",1187938540,"Ковалева Анастасия Романовна","М151БРИСО080","Научно-исследовательский семинар",2,"Экзамен","2016/2017 учебный год 2 модуль",null,8,2,1,1,1520829000,2098,null,"stCommon","Реклама и связи с общественностью",{"$f":"MATCH(D294,Отчет!#REF!,0)","v":{"$error":"#REF!"}}]
[1580591779,7,"БРО153",1162404387,"Скворцова Анна Алексеевна","М151БРИСО050","Научно-исследовательский семинар",2,"Экзамен","2016/2017 учебный год 2 модуль",null,14,2,1,0,1520829000,2098,null,"stCommon","Реклама и связи с общественностью",{"$f":"MATCH(D295,Отчет!#REF!,0)","v":{"$error":"#REF!"}}]
[1580583168,6,"БРО151",1162404411,"Надирова Анна Зурабовна","М151БРИСО035","Научно-исследовательский семинар",2,"Экзамен","2016/2017 учебный год 2 модуль",null,12,2,1,0,1520829000,2098,null,"stCommon","Реклама и связи с общественностью",{"$f":"MATCH(D296,Отчет!#REF!,0)","v":{"$error":"#REF!"}}]
[1580586674,6,"БРО152",1162404435,"Захряпина Анастасия Алексеевна","М151БРИСО018","Научно-исследовательский семинар",2,"Экзамен","2016/2017 учебный год 2 модуль",null,12,2,1,0,1520829000,2098,null,"stCommon","Реклама и связи с общественностью",{"$f":"MATCH(D297,Отчет!#REF!,0)","v":{"$error":"#REF!"}}]
[1580588617,8,"БРО152",1162404463,"Радченко Ирина Дмитриевна","М151БРИСО044","Научно-исследовательский семинар",2,"Экзамен","2016/2017 учебный год 2 модуль",null,16,2,1,0,1520829000,2098,null,"stCommon","Реклама и связи с общественностью",{"$f":"MATCH(D298,Отчет!#REF!,0)","v":{"$error":"#REF!"}}]
[1580592410,7,"БРО153",1162404495,"Юрьева Мария Дмитриевна","М151БРИСО065","Научно-исследовательский семинар",2,"Экзамен","2016/2017 учебный год 2 модуль",null,14,2,1,0,1520829000,2098,null,"stCommon","Реклама и связи с общественностью",{"$f":"MATCH(D299,Отчет!#REF!,0)","v":{"$error":"#REF!"}}]
[1580588472,8,"БРО152",1162404529,"Радионова Анна Евгеньевна","М151БРИСО043","Научно-исследовательский семинар",2,"Экзамен","2016/2017 учебный год 2 модуль",null,16,2,1,1,1520829000,2098,null,"stCommon","Реклама и связи с общественностью",{"$f":"MATCH(D300,Отчет!#REF!,0)","v":{"$error":"#REF!"}}]
[1580592325,9,"БРО153",1162404559,"Щелкунов Игорь Владимирович","М151БРИСО064","Научно-исследовательский семинар",2,"Экзамен","2016/2017 учебный год 2 модуль",null,18,2,1,0,1520829000,2098,null,"stCommon","Реклама и связи с общественностью",{"$f":"MATCH(D301,Отчет!#REF!,0)","v":{"$error":"#REF!"}}]
[1580581587,8,"БРО151",1162404590,"Аккалаев Марат Русланович","М151БРИСО002","Научно-исследовательский семинар",2,"Экзамен","2016/2017 учебный год 2 модуль",null,16,2,1,0,1520829000,2098,null,"stCommon","Реклама и связи с общественностью",{"$f":"MATCH(D302,Отчет!#REF!,0)","v":{"$error":"#REF!"}}]
[1580590646,7,"БРО153",1162404615,"Дроздова Елизавета Владимировна","М151БРИСО016","Научно-исследовательский семинар",2,"Экзамен","2016/2017 учебный год 2 модуль",null,14,2,1,0,1520829000,2098,null,"stCommon","Реклама и связи с общественностью",{"$f":"MATCH(D303,Отчет!#REF!,0)","v":{"$error":"#REF!"}}]
[1580587977,6,"БРО152",1162404639,"Полякова Александра Дмитриевна","М151БРИСО041","Научно-исследовательский семинар",2,"Экзамен","2016/2017 учебный год 2 модуль",null,12,2,1,0,1520829000,2098,null,"stCommon","Реклама и связи с общественностью",{"$f":"MATCH(D304,Отчет!#REF!,0)","v":{"$error":"#REF!"}}]
[1580589435,6,"БРО152",1162404671,"Фролов Василий Александрович","М151БРИСО060","Научно-исследовательский семинар",2,"Экзамен","2016/2017 учебный год 2 модуль",null,12,2,1,0,1520829000,2098,null,"stCommon","Реклама и связи с общественностью",{"$f":"MATCH(D305,Отчет!#REF!,0)","v":{"$error":"#REF!"}}]
[1580583058,7,"БРО151",1162404699,"Милова Анастасия Андреевна","М151БРИСО033","Научно-исследовательский семинар",2,"Экзамен","2016/2017 учебный год 2 модуль",null,14,2,1,0,1520829000,2098,null,"stCommon","Реклама и связи с общественностью",{"$f":"MATCH(D306,Отчет!#REF!,0)","v":{"$error":"#REF!"}}]
[1580588740,6,"БРО152",1162404727,"Сак Евгения Леонидовна","М151БРИСО047","Научно-исследовательский семинар",2,"Экзамен","2016/2017 учебный год 2 модуль",null,12,2,1,0,1520829000,2098,null,"stCommon","Реклама и связи с общественностью",{"$f":"MATCH(D307,Отчет!#REF!,0)","v":{"$error":"#REF!"}}]
[1580587747,7,"БРО152",1162404759,"Нафталиева Яна Абрамовна","М151БРИСО036","Научно-исследовательский семинар",2,"Экзамен","2016/2017 учебный год 2 модуль",null,14,2,1,0,1520829000,2098,null,"stCommon","Реклама и связи с общественностью",{"$f":"MATCH(D308,Отчет!#REF!,0)","v":{"$error":"#REF!"}}]
[1580591527,6,"БРО153",1162404783,"Поляков Илья Станиславович","М151БРИСО040","Научно-исследовательский семинар",2,"Экзамен","2016/2017 учебный год 2 модуль",null,12,2,1,0,1520829000,2098,null,"stCommon","Реклама и связи с общественностью",{"$f":"MATCH(D309,Отчет!#REF!,0)","v":{"$error":"#REF!"}}]
[1580589290,0,"БРО152",1162404815,"Тихонина Мария Игоревна","М151БРИСО054","Научно-исследовательский семинар",2,"Экзамен","2016/2017 учебный год 2 модуль",null,0,2,0,0,1520829000,2098,null,"stCommon","Реклама и связи с общественностью",{"$f":"MATCH(D310,Отчет!#REF!,0)","v":{"$error":"#REF!"}}]
[1580582352,6,"БРО151",1162404843,"Даниель Александра Александровна","М151БРИСО014","Научно-исследовательский семинар",2,"Экзамен","2016/2017 учебный год 2 модуль",null,12,2,1,0,1520829000,2098,null,"stCommon","Реклама и связи с общественностью",{"$f":"MATCH(D311,Отчет!#REF!,0)","v":{"$error":"#REF!"}}]
[1580591365,7,"БРО153",1162404875,"Никоненко Анастасия Германовна","М151БРИСО038","Научно-исследовательский семинар",2,"Экзамен","2016/2017 учебный год 2 модуль",null,14,2,1,0,1520829000,2098,null,"stCommon","Реклама и связи с общественностью",{"$f":"MATCH(D312,Отчет!#REF!,0)","v":{"$error":"#REF!"}}]
[1580591867,8,"БРО153",1162402110,"Сковородина Елизавета Сергеевна","М151БРИСО051","Научно-исследовательский семинар",2,"Экзамен","2016/2017 учебный год 2 модуль",null,16,2,1,1,1520829000,2098,null,"stCommon","Реклама и связи с общественностью",{"$f":"MATCH(D313,Отчет!#REF!,0)","v":{"$error":"#REF!"}}]
[1580582968,10,"БРО151",1162402136,"Мазур Екатерина Сергеевна","М151БРИСО031","Научно-исследовательский семинар",2,"Экзамен","2016/2017 учебный год 2 модуль",null,20,2,1,1,1520829000,2098,null,"stCommon","Реклама и связи с общественностью",{"$f":"MATCH(D314,Отчет!#REF!,0)","v":{"$error":"#REF!"}}]
[1580588868,8,"БРО152",1162402160,"Серегин Геннадий Евгеньевич","М151БРИСО048","Научно-исследовательский семинар",2,"Экзамен","2016/2017 учебный год 2 модуль",null,16,2,1,1,1520829000,2098,null,"stCommon","Реклама и связи с общественностью",{"$f":"MATCH(D315,Отчет!#REF!,0)","v":{"$error":"#REF!"}}]
[1580591109,7,"БРО153",1162402188,"Курганова Диана Андреевна","М151БРИСО028","Научно-исследовательский семинар",2,"Экзамен","2016/2017 учебный год 2 модуль",null,14,2,1,1,1520829000,2098,null,"stCommon","Реклама и связи с общественностью",{"$f":"MATCH(D316,Отчет!#REF!,0)","v":{"$error":"#REF!"}}]
[1580590166,7,"БРО153",1162402220,"Горохова Елизавета Юрьевна","М151БРИСО011","Научно-исследовательский семинар",2,"Экзамен","2016/2017 учебный год 2 модуль",null,14,2,1,1,1520829000,2098,null,"stCommon","Реклама и связи с общественностью",{"$f":"MATCH(D317,Отчет!#REF!,0)","v":{"$error":"#REF!"}}]
[1580588078,9,"БРО152",1162402244,"Попова Диана Александровна","М151БРИСО042","Научно-исследовательский семинар",2,"Экзамен","2016/2017 учебный год 2 модуль",null,18,2,1,1,1520829000,2098,null,"stCommon","Реклама и связи с общественностью",{"$f":"MATCH(D318,Отчет!#REF!,0)","v":{"$error":"#REF!"}}]
[1580592243,8,"БРО153",1162402268,"Шельменкина Карина Сергеевна","М151БРИСО061","Научно-исследовательский семинар",2,"Экзамен","2016/2017 учебный год 2 модуль",null,16,2,1,1,1520829000,2098,null,"stCommon","Реклама и связи с общественностью",{"$f":"MATCH(D319,Отчет!#REF!,0)","v":{"$error":"#REF!"}}]
[1580581976,6,"БРО151",1162402300,"Барыкина Александра Сергеевна","М151БРИСО006","Научно-исследовательский семинар",2,"Экзамен","2016/2017 учебный год 2 модуль",null,12,2,1,1,1520829000,2098,null,"stCommon","Реклама и связи с общественностью",{"$f":"MATCH(D320,Отчет!#REF!,0)","v":{"$error":"#REF!"}}]
[1580582624,9,"БРО151",1162402324,"Казакова Виктория Владимировна","М151БРИСО019","Научно-исследовательский семинар",2,"Экзамен","2016/2017 учебный год 2 модуль",null,18,2,1,1,1520829000,2098,null,"stCommon","Реклама и связи с общественностью",{"$f":"MATCH(D321,Отчет!#REF!,0)","v":{"$error":"#REF!"}}]
[1580587265,8,"БРО152",1162402352,"Криницкая Анастасия Сергеевна","М151БРИСО027","Научно-исследовательский семинар",2,"Экзамен","2016/2017 учебный год 2 модуль",null,16,2,1,1,1520829000,2098,null,"stCommon","Реклама и связи с общественностью",{"$f":"MATCH(D322,Отчет!#REF!,0)","v":{"$error":"#REF!"}}]
[1580583689,6,"БРО151",1162402384,"Садова Анастасия Романовна","М151БРИСО046","Научно-исследовательский семинар",2,"Экзамен","2016/2017 учебный год 2 модуль",null,12,2,1,1,1520829000,2098,null,"stCommon","Реклама и связи с общественностью",{"$f":"MATCH(D323,Отчет!#REF!,0)","v":{"$error":"#REF!"}}]
[1580583554,9,"БРО151",1162402412,"Романовская Алина Андреевна","М151БРИСО045","Научно-исследовательский семинар",2,"Экзамен","2016/2017 учебный год 2 модуль",null,18,2,1,1,1520829000,2098,null,"stCommon","Реклама и связи с общественностью",{"$f":"MATCH(D324,Отчет!#REF!,0)","v":{"$error":"#REF!"}}]
[1580590879,5,"БРО153",1162402641,"Ковтун Юлия Алексеевна","М151БРИСО023","Научно-исследовательский семинар",2,"Экзамен","2016/2017 учебный год 2 модуль",null,10,2,1,1,1520829000,2098,null,"stCommon","Реклама и связи с общественностью",{"$f":"MATCH(D325,Отчет!#REF!,0)","v":{"$error":"#REF!"}}]
[1580592488,8,"БРО153",1162402673,"Язькова Елизавета Алексеевна","М151БРИСО066","Научно-исследовательский семинар",2,"Экзамен","2016/2017 учебный год 2 модуль",null,16,2,1,1,1520829000,2098,null,"stCommon","Реклама и связи с общественностью",{"$f":"MATCH(D326,Отчет!#REF!,0)","v":{"$error":"#REF!"}}]
[1580591280,8,"БРО153",1162404239,"Мошева Анастасия Олеговна","М151БРИСО034","Научно-исследовательский семинар",2,"Экзамен","2016/2017 учебный год 2 модуль",null,16,2,1,1,1520829000,2098,null,"stCommon","Реклама и связи с общественностью",{"$f":"MATCH(D327,Отчет!#REF!,0)","v":{"$error":"#REF!"}}]
[1580582723,8,"БРО151",1162404267,"Колганова Полина Олеговна","М151БРИСО024","Научно-исследовательский семинар",2,"Экзамен","2016/2017 учебный год 2 модуль",null,16,2,1,0,1520829000,2098,null,"stCommon","Реклама и связи с общественностью",{"$f":"MATCH(D328,Отчет!#REF!,0)","v":{"$error":"#REF!"}}]
[1580583259,8,"БРО151",1162404299,"Панарина Елизавета Сергеевна","М151БРИСО039","Научно-исследовательский семинар",2,"Экзамен","2016/2017 учебный год 2 модуль",null,16,2,1,1,1520829000,2098,null,"stCommon","Реклама и связи с общественностью",{"$f":"MATCH(D329,Отчет!#REF!,0)","v":{"$error":"#REF!"}}]
[1580592574,9,"БРО153",1162401104,"Янчева Анастасия Вадимовна","М151БРИСО067","Научно-исследовательский семинар",2,"Экзамен","2016/2017 учебный год 2 модуль",null,18,2,1,1,1520829000,2098,null,"stCommon","Реклама и связи с общественностью",{"$f":"MATCH(D330,Отчет!#REF!,0)","v":{"$error":"#REF!"}}]
[1580583889,8,"БРО151",1162401132,"Смирнова Полина Алексеевна","М151БРИСО052","Научно-исследовательский семинар",2,"Экзамен","2016/2017 учебный год 2 модуль",null,16,2,1,1,1520829000,2098,null,"stCommon","Реклама и связи с общественностью",{"$f":"MATCH(D331,Отчет!#REF!,0)","v":{"$error":"#REF!"}}]
[1580589010,6,"БРО152",1162401164,"Сизова Анна Геннадьевна","М151БРИСО049","Научно-исследовательский семинар",2,"Экзамен","2016/2017 учебный год 2 модуль",null,12,2,1,1,1520829000,2098,null,"stCommon","Реклама и связи с общественностью",{"$f":"MATCH(D332,Отчет!#REF!,0)","v":{"$error":"#REF!"}}]
[1580586043,8,"БРО152",1162401228,"Бешанова Елизавета Вячеславовна","М151БРИСО007","Научно-исследовательский семинар",2,"Экзамен","2016/2017 учебный год 2 модуль",null,16,2,1,1,1520829000,2098,null,"stCommon","Реклама и связи с общественностью",{"$f":"MATCH(D333,Отчет!#REF!,0)","v":{"$error":"#REF!"}}]
[1580587873,9,"БРО152",1162401260,"Никитина Валерия Дмитриевна","М151БРИСО037","Научно-исследовательский семинар",2,"Экзамен","2016/2017 учебный год 2 модуль",null,18,2,1,1,1520829000,2098,null,"stCommon","Реклама и связи с общественностью",{"$f":"MATCH(D334,Отчет!#REF!,0)","v":{"$error":"#REF!"}}]
[1580591190,6,"БРО153",1162401288,"Мельник Алексей Сергеевич","М151БРИСО032","Научно-исследовательский семинар",2,"Экзамен","2016/2017 учебный год 2 модуль",null,12,2,1,1,1520829000,2098,null,"stCommon","Реклама и связи с общественностью",{"$f":"MATCH(D335,Отчет!#REF!,0)","v":{"$error":"#REF!"}}]
[1580587446,9,"БРО152",1162401312,"Ленкуте Алина Максимовна","М151БРИСО029","Научно-исследовательский семинар",2,"Экзамен","2016/2017 учебный год 2 модуль",null,18,2,1,1,1520829000,2098,null,"stCommon","Реклама и связи с общественностью",{"$f":"MATCH(D336,Отчет!#REF!,0)","v":{"$error":"#REF!"}}]
[1580590955,6,"БРО153",1162401344,"Кравчук Кристина Александровна","М151БРИСО026","Научно-исследовательский семинар",2,"Экзамен","2016/2017 учебный год 2 модуль",null,12,2,1,1,1520829000,2098,null,"stCommon","Реклама и связи с общественностью",{"$f":"MATCH(D337,Отчет!#REF!,0)","v":{"$error":"#REF!"}}]
[1580583993,8,"БРО151",1162401376,"Солдатенкова Арина Витальевна","М151БРИСО053","Научно-исследовательский семинар",2,"Экзамен","2016/2017 учебный год 2 модуль",null,16,2,1,1,1520829000,2098,null,"stCommon","Реклама и связи с общественностью",{"$f":"MATCH(D338,Отчет!#REF!,0)","v":{"$error":"#REF!"}}]
[1580585698,8,"БРО152",1162401408,"Астурян Вячеслав Вячеславович","М151БРИСО004","Научно-исследовательский семинар",2,"Экзамен","2016/2017 учебный год 2 модуль",null,16,2,1,1,1520829000,2098,null,"stCommon","Реклама и связи с общественностью",{"$f":"MATCH(D339,Отчет!#REF!,0)","v":{"$error":"#REF!"}}]
[1580590426,7,"БРО153",1162401440,"Гришина Мария Сергеевна","М151БРИСО013","Научно-исследовательский семинар",2,"Экзамен","2016/2017 учебный год 2 модуль",null,14,2,1,1,1520829000,2098,null,"stCommon","Реклама и связи с общественностью",{"$f":"MATCH(D340,Отчет!#REF!,0)","v":{"$error":"#REF!"}}]
[1580592045,7,"БРО153",1162401597,"Толбухина Полина Дмитриевна","М151БРИСО056","Научно-исследовательский семинар",2,"Экзамен","2016/2017 учебный год 2 модуль",null,14,2,1,1,1520829000,2098,null,"stCommon","Реклама и связи с общественностью",{"$f":"MATCH(D341,Отчет!#REF!,0)","v":{"$error":"#REF!"}}]
[1580586314,8,"БРО152",1162401665,"Веряева Ксения Михайловна","М151БРИСО010","Научно-исследовательский семинар",2,"Экзамен","2016/2017 учебный год 2 модуль",null,16,2,1,1,1520829000,2098,null,"stCommon","Реклама и связи с общественностью",{"$f":"MATCH(D342,Отчет!#REF!,0)","v":{"$error":"#REF!"}}]
[1580589965,6,"БРО153",1162401697,"Бисовка Евгений Геннадьевич","М151БРИСО008","Научно-исследовательский семинар",2,"Экзамен","2016/2017 учебный год 2 модуль",null,12,2,1,1,1520829000,2098,null,"stCommon","Реклама и связи с общественностью",{"$f":"MATCH(D343,Отчет!#REF!,0)","v":{"$error":"#REF!"}}]
[1580586805,9,"БРО152",1162401762,"Калабаева Дарья Андреевна","М151БРИСО020","Научно-исследовательский семинар",2,"Экзамен","2016/2017 учебный год 2 модуль",null,18,2,1,1,1520829000,2098,null,"stCommon","Реклама и связи с общественностью",{"$f":"MATCH(D344,Отчет!#REF!,0)","v":{"$error":"#REF!"}}]
[1580586177,6,"БРО152",1162402048,"Богданова Владлена Сергеевна","М151БРИСО009","Научно-исследовательский семинар",2,"Экзамен","2016/2017 учебный год 2 модуль",null,12,2,1,1,1520829000,2098,null,"stCommon","Реклама и связи с общественностью",{"$f":"MATCH(D345,Отчет!#REF!,0)","v":{"$error":"#REF!"}}]
[1580584085,7,"БРО151",1162402075,"Ужегова Полина Александровна","М151БРИСО058","Научно-исследовательский семинар",2,"Экзамен","2016/2017 учебный год 2 модуль",null,14,2,1,1,1520829000,2098,null,"stCommon","Реклама и связи с общественностью",{"$f":"MATCH(D346,Отчет!#REF!,0)","v":{"$error":"#REF!"}}]
[1656197495,5,"БРО151",1656175499,"Молот Ксения Олеговна","М151БЛУЦП073","Научно-исследовательский семинар",2,"Экзамен","2016/2017 учебный год 2 модуль",null,10,2,1,0,1520829000,2098,"ikPlanned","stCommon","Реклама и связи с общественностью",{"$f":"MATCH(D347,Отчет!#REF!,0)","v":{"$error":"#REF!"}}]
[1659806587,7,"БРО153",1656379817,"Коломиец Ольга Андреевна","М151БМНДЖ078","Научно-исследовательский семинар",2,"Экзамен","2016/2017 учебный год 2 модуль",null,14,2,1,0,1520829000,2098,"ikPlanned","stCommon","Реклама и связи с общественностью",{"$f":"MATCH(D348,Отчет!#REF!,0)","v":{"$error":"#REF!"}}]
[1659806733,7,"БРО153",1656379817,"Коломиец Ольга Андреевна","М151БМНДЖ078","Научно-исследовательский семинар",2,"Экзамен","2016/2017 учебный год 2 модуль",null,14,2.08,1,0,1520802210,2098,"ikFirst","stCommon","Реклама и связи с общественностью",{"$f":"MATCH(D349,Отчет!#REF!,0)","v":{"$error":"#REF!"}}]
[1663382877,6,"БРО153",1662712925,"Каньшина Елизавета Сергеевна","13103024","Научно-исследовательский семинар",2,"Экзамен","2016/2017 учебный год 2 модуль",null,12,2,1,0,1520829000,2098,"ikPlanned","stCommon","Реклама и связи с общественностью",{"$f":"MATCH(D350,Отчет!#REF!,0)","v":{"$error":"#REF!"}}]
[1667406442,4,"БРО153",1667389090,"Кармазинский Николай Андреевич","М161БРИСО394","Научно-исследовательский семинар",2,"Экзамен","2016/2017 учебный год 2 модуль",null,8,2,1,0,1520829000,2098,"ikPlanned","stCommon","Реклама и связи с общественностью",{"$f":"MATCH(D351,Отчет!#REF!,0)","v":{"$error":"#REF!"}}]
[1580589679,4,"БРО152",1517430637,"Шеховцова Елизавета Дмитриевна","М151БИНЯЗ191","Научно-исследовательский семинар",2,"Экзамен","2016/2017 учебный год 2 модуль",null,8,2,1,0,1520829000,2098,null,"stCommon","Реклама и связи с общественностью",{"$f":"MATCH(D352,Отчет!#REF!,0)","v":{"$error":"#REF!"}}]
[1580586558,10,"БРО152",1517704476,"Жарикова Анастасия Владимировна","М151БМНДЖ057","Научно-исследовательский семинар",2,"Экзамен","2016/2017 учебный год 2 модуль",null,20,2,1,0,1520829000,2098,null,"stCommon","Реклама и связи с общественностью",{"$f":"MATCH(D353,Отчет!#REF!,0)","v":{"$error":"#REF!"}}]
[1580585477,3,"БРО152",1518721225,"Авдонина Дарья Романовна","М141БЖУРН001","Научно-исследовательский семинар",2,"Экзамен","2016/2017 учебный год 2 модуль",null,0,2,0,0,1520829000,2098,null,"stCommon","Реклама и связи с общественностью",{"$f":"MATCH(D354,Отчет!#REF!,0)","v":{"$error":"#REF!"}}]
[1580592662,7,"БРО153",1519084812,"Яснева Екатерина Андреевна","М161БРИСО003","Научно-исследовательский семинар",2,"Экзамен","2016/2017 учебный год 2 модуль",null,14,2,1,0,1520829000,2098,null,"stCommon","Реклама и связи с общественностью",{"$f":"MATCH(D355,Отчет!#REF!,0)","v":{"$error":"#REF!"}}]
[1580581747,0,"БРО151",1520873492,"Арчакова Александра Ивановна","М151БИНЯЗ013","Научно-исследовательский семинар",2,"Экзамен","2016/2017 учебный год 2 модуль",null,0,2,0,0,1520829000,2098,"ikPlanned","stCommon","Реклама и связи с общественностью",{"$f":"MATCH(D356,Отчет!#REF!,0)","v":{"$error":"#REF!"}}]
[1649567004,3,"БРО153",1649552778,"Редин Виталий Вадимович","13151222","Научно-исследовательский семинар",2,"Экзамен","2016/2017 учебный год 2 модуль",null,0,2,0,0,1520829000,2098,"ikPlanned","stCommon","Реклама и связи с общественностью",{"$f":"MATCH(D357,Отчет!#REF!,0)","v":{"$error":"#REF!"}}]
[1649669661,5,"БРО151",1649667663,"Селиверстова Анастасия Алексеевна","13151224","Научно-исследовательский семинар",2,"Экзамен","2016/2017 учебный год 2 модуль",null,10,2,1,0,1520829000,2098,"ikPassed","stCommon","Реклама и связи с общественностью",{"$f":"MATCH(D358,Отчет!#REF!,0)","v":{"$error":"#REF!"}}]
[1649861476,0,"БРО152",1649860854,"Лебедева Маргарита Станиславовна","12151236","Научно-исследовательский семинар",2,"Экзамен","2016/2017 учебный год 2 модуль",null,0,2,0,0,1520829000,2098,"ikPlanned","stCommon","Реклама и связи с общественностью",{"$f":"MATCH(D359,Отчет!#REF!,0)","v":{"$error":"#REF!"}}]
[1653151200,3,"БРО152",1653150908,"Серебрякова Валерия Сергеевна","М141БЭКОН164","Научно-исследовательский семинар",2,"Экзамен","2016/2017 учебный год 2 модуль",null,0,2,0,0,1520829000,2098,"ikPlanned","stCommon","Реклама и связи с общественностью",{"$f":"MATCH(D360,Отчет!#REF!,0)","v":{"$error":"#REF!"}}]
[1656185839,6,"БРО152",1656154991,"Чуб Степан Александрович","М151БМНДЖ166","Научно-исследовательский семинар",2,"Экзамен","2016/2017 учебный год 2 модуль",null,12,2,1,0,1520829000,2098,"ikPlanned","stCommon","Реклама и связи с общественностью",{"$f":"MATCH(D361,Отчет!#REF!,0)","v":{"$error":"#REF!"}}]
[1656192296,6,"БРО151",1656174061,"Рашилова Полина Викторовна","М151БЛУЦП091","Научно-исследовательский семинар",2,"Экзамен","2016/2017 учебный год 2 модуль",null,12,2,1,0,1520829000,2098,"ikPlanned","stCommon","Реклама и связи с общественностью",{"$f":"MATCH(D362,Отчет!#REF!,0)","v":{"$error":"#REF!"}}]
[1580582090,8,"БРО151",1192491796,"Бекназарова Комилла Сохибжоновна","М151БРИСО085","Научно-исследовательский семинар",2,"Экзамен","2016/2017 учебный год 2 модуль",null,16,2,1,1,1520829000,2098,null,"stCommon","Реклама и связи с общественностью",{"$f":"MATCH(D363,Отчет!#REF!,0)","v":{"$error":"#REF!"}}]
[1580585561,5,"БРО152",1322382992,"Авилова Виктория Борисовна","131236028","Научно-исследовательский семинар",2,"Экзамен","2016/2017 учебный год 2 модуль",null,10,2,1,0,1520829000,2098,null,"stCommon","Реклама и связи с общественностью",{"$f":"MATCH(D364,Отчет!#REF!,0)","v":{"$error":"#REF!"}}]
[1580586428,8,"БРО152",1396053703,"Громов Максим Сергеевич","М141БФИКЛ012","Научно-исследовательский семинар",2,"Экзамен","2016/2017 учебный год 2 модуль",null,16,2,1,0,1520829000,2098,null,"stCommon","Реклама и связи с общественностью",{"$f":"MATCH(D365,Отчет!#REF!,0)","v":{"$error":"#REF!"}}]
[1580582797,6,"БРО151",1474053891,"Лисина Юлия Андреевна","М151БРИСО086","Научно-исследовательский семинар",2,"Экзамен","2016/2017 учебный год 2 модуль",null,12,2,1,0,1520829000,2098,null,"stCommon","Реклама и связи с общественностью",{"$f":"MATCH(D366,Отчет!#REF!,0)","v":{"$error":"#REF!"}}]
[1580592145,6,"БРО153",1514787326,"Харисов Артур Раоланович","М151БЭКСТ107","Научно-исследовательский семинар",2,"Экзамен","2016/2017 учебный год 2 модуль",null,12,2,1,0,1520829000,2098,null,"stCommon","Реклама и связи с общественностью",{"$f":"MATCH(D367,Отчет!#REF!,0)","v":{"$error":"#REF!"}}]
[1580590351,9,"БРО153",1514792971,"Гридчина Нина Сергеевна","М161БРИСО001","Научно-исследовательский семинар",2,"Экзамен","2016/2017 учебный год 2 модуль",null,18,2,1,0,1520829000,2098,null,"stCommon","Реклама и связи с общественностью",{"$f":"MATCH(D368,Отчет!#REF!,0)","v":{"$error":"#REF!"}}]
[1580590725,6,"БРО153",1514839183,"Жаркова Дарья Андреевна","М151БСОЦЛ040","Научно-исследовательский семинар",2,"Экзамен","2016/2017 учебный год 2 модуль",null,12,2,1,0,1520829000,2098,null,"stCommon","Реклама и связи с общественностью",{"$f":"MATCH(D369,Отчет!#REF!,0)","v":{"$error":"#REF!"}}]
[1580583785,0,"БРО151",1515445555,"Скворцова Елизавета Васильевна","М161БРИСО395","Научно-исследовательский семинар",2,"Экзамен","2016/2017 учебный год 2 модуль",null,0,2,0,0,1520829000,2098,null,"stCommon","Реклама и связи с общественностью",{"$f":"MATCH(D370,Отчет!#REF!,0)","v":{"$error":"#REF!"}}]
[1580581817,7,"БРО151",1515481958,"Бажулич Кристина Джуровна","М151БИНЯЗ017","Научно-исследовательский семинар",2,"Экзамен","2016/2017 учебный год 2 модуль",null,14,2,1,0,1520829000,2098,null,"stCommon","Реклама и связи с общественностью",{"$f":"MATCH(D371,Отчет!#REF!,0)","v":{"$error":"#REF!"}}]
[1580584333,8,"БРО151",1516201234,"Чернышева Юлия Ивановна","М151БЛУЦП132","Научно-исследовательский семинар",2,"Экзамен","2016/2017 учебный год 2 модуль",null,16,2,1,0,1520829000,2098,null,"stCommon","Реклама и связи с общественностью",{"$f":"MATCH(D372,Отчет!#REF!,0)","v":{"$error":"#REF!"}}]
[1580582881,6,"БРО151",1517364590,"Луданова Евгения Александровна","М151БМИЭФ103","Научно-исследовательский семинар",2,"Экзамен","2016/2017 учебный год 2 модуль",null,12,2,1,0,1520829000,2098,null,"stCommon","Реклама и связи с общественностью",{"$f":"MATCH(D373,Отчет!#REF!,0)","v":{"$error":"#REF!"}}]
[1580584247,4,"БРО151",1517365582,"Хохлова Наталия Алексеевна","М151БМИЭФ196","Научно-исследовательский семинар",2,"Экзамен","2016/2017 учебный год 2 модуль",null,8,2,1,0,1520829000,2098,null,"stCommon","Реклама и связи с общественностью",{"$f":"MATCH(D374,Отчет!#REF!,0)","v":{"$error":"#REF!"}}]
[1580589363,6,"БРО152",1162404939,"Тузова Евгения Сергеевна","М151БРИСО057","Научно-исследовательский семинар",2,"Экзамен","2016/2017 учебный год 2 модуль",null,12,2,1,0,1520829000,2098,null,"stCommon","Реклама и связи с общественностью",{"$f":"MATCH(D375,Отчет!#REF!,0)","v":{"$error":"#REF!"}}]
[1580582527,6,"БРО151",1162404963,"Ермаков Иван Григорьевич","М151БРИСО017","Научно-исследовательский семинар",2,"Экзамен","2016/2017 учебный год 2 модуль",null,12,2,1,0,1520829000,2098,null,"stCommon","Реклама и связи с общественностью",{"$f":"MATCH(D376,Отчет!#REF!,0)","v":{"$error":"#REF!"}}]
[1580590799,8,"БРО153",1162404995,"Кимлык Мария Андреевна","М151БРИСО022","Научно-исследовательский семинар",2,"Экзамен","2016/2017 учебный год 2 модуль",null,16,2,1,1,1520829000,2098,null,"stCommon","Реклама и связи с общественностью",{"$f":"MATCH(D377,Отчет!#REF!,0)","v":{"$error":"#REF!"}}]
[1580584423,3,"БРО151",1162405311,"Шкляр Даниэль Семенович","М151БРИСО062","Научно-исследовательский семинар",2,"Экзамен","2016/2017 учебный год 2 модуль",null,0,2,0,0,1520829000,2098,null,"stCommon","Реклама и связи с общественностью",{"$f":"MATCH(D378,Отчет!#REF!,0)","v":{"$error":"#REF!"}}]
[1580590281,7,"БРО153",1162405372,"Гранина Дарья Константиновна","М151БРИСО012","Научно-исследовательский семинар",2,"Экзамен","2016/2017 учебный год 2 модуль",null,14,2,1,0,1520829000,2098,null,"stCommon","Реклама и связи с общественностью",{"$f":"MATCH(D379,Отчет!#REF!,0)","v":{"$error":"#REF!"}}]
[1580590053,5,"БРО153",1173924661,"Галкин Вячеслав Владимирович","М151БРИСО070","Научно-исследовательский семинар",2,"Экзамен","2016/2017 учебный год 2 модуль",null,10,2,1,0,1520829000,2098,null,"stCommon","Реклама и связи с общественностью",{"$f":"MATCH(D380,Отчет!#REF!,0)","v":{"$error":"#REF!"}}]
[1580591451,6,"БРО153",1181080622,"Нугуспанова Индира","М151БРИСО075","Научно-исследовательский семинар",2,"Экзамен","2016/2017 учебный год 2 модуль",null,12,2,1,1,1520829000,2098,null,"stCommon","Реклама и связи с общественностью",{"$f":"MATCH(D381,Отчет!#REF!,0)","v":{"$error":"#REF!"}}]
[1580582169,6,"БРО151",1181080646,"Белякова Анастасия","М151БРИСО079","Научно-исследовательский семинар",2,"Экзамен","2016/2017 учебный год 2 модуль",null,12,2,1,1,1520829000,2098,null,"stCommon","Реклама и связи с общественностью",{"$f":"MATCH(D382,Отчет!#REF!,0)","v":{"$error":"#REF!"}}]
[1580589605,7,"БРО152",1181080670,"Чачков Алексей Алексеевич","М151БРИСО083","Научно-исследовательский семинар",2,"Экзамен","2016/2017 учебный год 2 модуль",null,14,2,1,1,1520829000,2098,null,"stCommon","Реклама и связи с общественностью",{"$f":"MATCH(D383,Отчет!#REF!,0)","v":{"$error":"#REF!"}}]
[1580582259,6,"БРО151",1181080708,"Ганиева Карина Туребековна","М151БРИСО081","Научно-исследовательский семинар",2,"Экзамен","2016/2017 учебный год 2 модуль",null,12,2,1,1,1520829000,2098,null,"stCommon","Реклама и связи с общественностью",{"$f":"MATCH(D384,Отчет!#REF!,0)","v":{"$error":"#REF!"}}]
[1580583447,7,"БРО151",1181086716,"Пономарева Елизавета","М151БРИСО077","Научно-исследовательский семинар",2,"Экзамен","2016/2017 учебный год 2 модуль",null,14,2,1,1,1520829000,2098,null,"stCommon","Реклама и связи с общественностью",{"$f":"MATCH(D385,Отчет!#REF!,0)","v":{"$error":"#REF!"}}]
[1580590568,6,"БРО153",1181086733,"Дремлюк Марья","М151БРИСО074","Научно-исследовательский семинар",2,"Экзамен","2016/2017 учебный год 2 модуль",null,12,2,1,1,1520829000,2098,null,"stCommon","Реклама и связи с общественностью",{"$f":"MATCH(D386,Отчет!#REF!,0)","v":{"$error":"#REF!"}}]
[1580582434,5,"БРО151",1181086750,"Даниленко Ярослав","М151БРИСО078","Научно-исследовательский семинар",2,"Экзамен","2016/2017 учебный год 2 модуль",null,10,2,1,1,1520829000,2098,null,"stCommon","Реклама и связи с общественностью",{"$f":"MATCH(D387,Отчет!#REF!,0)","v":{"$error":"#REF!"}}]
[1580587596,3,"БРО152",1181086767,"Мухортова Дарья Александровна","М151БРИСО072","Научно-исследовательский семинар",2,"Экзамен","2016/2017 учебный год 2 модуль",null,0,2,0,1,1520829000,2098,null,"stCommon","Реклама и связи с общественностью",{"$f":"MATCH(D388,Отчет!#REF!,0)","v":{"$error":"#REF!"}}]
[1663382653,7,"БРО153",1662712925,"Каньшина Елизавета Сергеевна","13103024","Научно-исследовательский семинар",2.08,"Экзамен","2016/2017 учебный год 2 модуль",null,14.56,2.08,1,0,1520802210,2098,"ikFirst","stCommon","Реклама и связи с общественностью",{"$f":"MATCH(D389,Отчет!#REF!,0)","v":{"$error":"#REF!"}}]
[1623541187,4,"БРО151",1517365582,"Хохлова Наталия Алексеевна","М151БМИЭФ196","Научно-исследовательский семинар",2.08,"Экзамен","2016/2017 учебный год 2 модуль",null,8.32,2.08,1,0,1520802210,2098,"ikFirst","stCommon","Реклама и связи с общественностью",{"$f":"MATCH(D390,Отчет!#REF!,0)","v":{"$error":"#REF!"}}]
[1623540145,7,"БРО152",1517430637,"Шеховцова Елизавета Дмитриевна","М151БИНЯЗ191","Научно-исследовательский семинар",2.08,"Экзамен","2016/2017 учебный год 2 модуль",null,14.56,2.08,1,0,1520802210,2098,"ikFirst","stCommon","Реклама и связи с общественностью",{"$f":"MATCH(D391,Отчет!#REF!,0)","v":{"$error":"#REF!"}}]
[1623538003,8,"БРО152",1517704476,"Жарикова Анастасия Владимировна","М151БМНДЖ057","Научно-исследовательский семинар",2.08,"Экзамен","2016/2017 учебный год 2 модуль",null,16.64,2.08,1,0,1520802210,2098,"ikFirst","stCommon","Реклама и связи с общественностью",{"$f":"MATCH(D392,Отчет!#REF!,0)","v":{"$error":"#REF!"}}]
[1623530501,4,"БРО152",1518721225,"Авдонина Дарья Романовна","М141БЖУРН001","Научно-исследовательский семинар",2.08,"Экзамен","2016/2017 учебный год 2 модуль",null,8.32,2.08,1,0,1520802210,2098,"ikFirst","stCommon","Реклама и связи с общественностью",{"$f":"MATCH(D393,Отчет!#REF!,0)","v":{"$error":"#REF!"}}]
[1623543464,7,"БРО153",1519084812,"Яснева Екатерина Андреевна","М161БРИСО003","Научно-исследовательский семинар",2.08,"Экзамен","2016/2017 учебный год 2 модуль",null,14.56,2.08,1,0,1520802210,2098,"ikFirst","stCommon","Реклама и связи с общественностью",{"$f":"MATCH(D394,Отчет!#REF!,0)","v":{"$error":"#REF!"}}]
[1623448421,2,"БРО151",1520873492,"Арчакова Александра Ивановна","М151БИНЯЗ013","Научно-исследовательский семинар",2.08,"Экзамен","2016/2017 учебный год 2 модуль",null,0,2.08,0,0,1520802210,2098,"ikFirst","stCommon","Реклама и связи с общественностью",{"$f":"MATCH(D395,Отчет!#REF!,0)","v":{"$error":"#REF!"}}]
[1649861364,null,"БРО152",1649860854,"Лебедева Маргарита Станиславовна","12151236","Научно-исследовательский семинар",2.08,"Экзамен","2016/2017 учебный год 2 модуль",0,0,2.08,null,0,1520802210,2098,"ikFirst","stCommon","Реклама и связи с общественностью",{"$f":"MATCH(D396,Отчет!#REF!,0)","v":{"$error":"#REF!"}}]
[1656185745,8,"БРО152",1656154991,"Чуб Степан Александрович","М151БМНДЖ166","Научно-исследовательский семинар",2.08,"Экзамен","2016/2017 учебный год 2 модуль",null,16.64,2.08,1,0,1520802210,2098,"ikFirst","stCommon","Реклама и связи с общественностью",{"$f":"MATCH(D397,Отчет!#REF!,0)","v":{"$error":"#REF!"}}]
[1656192149,null,"БРО151",1656174061,"Рашилова Полина Викторовна","М151БЛУЦП091","Научно-исследовательский семинар",2.08,"Экзамен","2016/2017 учебный год 2 модуль",0,0,2.08,null,0,1520802210,2098,"ikFirst","stCommon","Реклама и связи с общественностью",{"$f":"MATCH(D398,Отчет!#REF!,0)","v":{"$error":"#REF!"}}]
[1656197323,null,"БРО151",1656175499,"Молот Ксения Олеговна","М151БЛУЦП073","Научно-исследовательский семинар",2.08,"Экзамен","2016/2017 учебный год 2 модуль",0,0,2.08,null,0,1520802210,2098,"ikFirst","stCommon","Реклама и связи с общественностью",{"$f":"MATCH(D399,Отчет!#REF!,0)","v":{"$error":"#REF!"}}]
[1623532940,4,"БРО152",1396053703,"Громов Максим Сергеевич","М141БФИКЛ012","Научно-исследовательский семинар",2.08,"Экзамен","2016/2017 учебный год 2 модуль",null,8.32,2.08,1,0,1520802210,2098,"ikFirst","stCommon","Реклама и связи с общественностью",{"$f":"MATCH(D400,Отчет!#REF!,0)","v":{"$error":"#REF!"}}]
[1623481451,5,"БРО151",1474053891,"Лисина Юлия Андреевна","М151БРИСО086","Научно-исследовательский семинар",2.08,"Экзамен","2016/2017 учебный год 2 модуль",null,10.4,2.08,1,0,1520802210,2098,"ikFirst","stCommon","Реклама и связи с общественностью",{"$f":"MATCH(D401,Отчет!#REF!,0)","v":{"$error":"#REF!"}}]
[1623543132,6,"БРО153",1514787326,"Харисов Артур Раоланович","М151БЭКСТ107","Научно-исследовательский семинар",2.08,"Экзамен","2016/2017 учебный год 2 модуль",null,12.48,2.08,1,0,1520802210,2098,"ikFirst","stCommon","Реклама и связи с общественностью",{"$f":"MATCH(D402,Отчет!#REF!,0)","v":{"$error":"#REF!"}}]
[1623541691,8,"БРО153",1514792971,"Гридчина Нина Сергеевна","М161БРИСО001","Научно-исследовательский семинар",2.08,"Экзамен","2016/2017 учебный год 2 модуль",null,16.64,2.08,1,0,1520802210,2098,"ikFirst","stCommon","Реклама и связи с общественностью",{"$f":"MATCH(D403,Отчет!#REF!,0)","v":{"$error":"#REF!"}}]
[1623542532,7,"БРО153",1514839183,"Жаркова Дарья Андреевна","М151БСОЦЛ040","Научно-исследовательский семинар",2.08,"Экзамен","2016/2017 учебный год 2 модуль",null,14.56,2.08,1,0,1520802210,2098,"ikFirst","stCommon","Реклама и связи с общественностью",{"$f":"MATCH(D404,Отчет!#REF!,0)","v":{"$error":"#REF!"}}]
[1623499692,4,"БРО151",1515445555,"Скворцова Елизавета Васильевна","М161БРИСО395","Научно-исследовательский семинар",2.08,"Экзамен","2016/2017 учебный год 2 модуль",null,8.32,2.08,1,0,1520802210,2098,"ikFirst","stCommon","Реклама и связи с общественностью",{"$f":"MATCH(D405,Отчет!#REF!,0)","v":{"$error":"#REF!"}}]
[1623471513,6,"БРО151",1515481958,"Бажулич Кристина Джуровна","М151БИНЯЗ017","Научно-исследовательский семинар",2.08,"Экзамен","2016/2017 учебный год 2 модуль",null,12.48,2.08,1,0,1520802210,2098,"ikFirst","stCommon","Реклама и связи с общественностью",{"$f":"MATCH(D406,Отчет!#REF!,0)","v":{"$error":"#REF!"}}]
[1623504758,7,"БРО151",1516201234,"Чернышева Юлия Ивановна","М151БЛУЦП132","Научно-исследовательский семинар",2.08,"Экзамен","2016/2017 учебный год 2 модуль",null,14.56,2.08,1,0,1520802210,2098,"ikFirst","stCommon","Реклама и связи с общественностью",{"$f":"MATCH(D407,Отчет!#REF!,0)","v":{"$error":"#REF!"}}]
[1623540553,4,"БРО151",1517364590,"Луданова Евгения Александровна","М151БМИЭФ103","Научно-исследовательский семинар",2.08,"Экзамен","2016/2017 учебный год 2 модуль",null,8.32,2.08,1,0,1520802210,2098,"ikFirst","stCommon","Реклама и связи с общественностью",{"$f":"MATCH(D408,Отчет!#REF!,0)","v":{"$error":"#REF!"}}]
[1667406081,5,"БРО153",1667389090,"Кармазинский Николай Андреевич","М161БРИСО394","Научно-исследовательский семинар",2.08,"Экзамен","2016/2017 учебный год 2 модуль",null,10.4,2.08,1,0,1520802210,2098,"ikFirst","stCommon","Реклама и связи с общественностью",{"$f":"MATCH(D409,Отчет!#REF!,0)","v":{"$error":"#REF!"}}]
[1546143041,5,"БРО151",1162404963,"Ермаков Иван Григорьевич","М151БРИСО017","Основы права",5,"Экзамен","2016/2017 учебный год 2 модуль",null,25,5,1,0,1520575527,2098,null,"stChoosen","Реклама и связи с общественностью",{"$f":"MATCH(D410,Отчет!#REF!,0)","v":{"$error":"#REF!"}}]
[1546143025,8,"БРО152",1162402048,"Богданова Владлена Сергеевна","М151БРИСО009","Основы права",5,"Экзамен","2016/2017 учебный год 2 модуль",null,40,5,1,1,1520575527,2098,null,"stChoosen","Реклама и связи с общественностью",{"$f":"MATCH(D411,Отчет!#REF!,0)","v":{"$error":"#REF!"}}]
[1546143017,7,"БРО153",1162404387,"Скворцова Анна Алексеевна","М151БРИСО050","Основы права",5,"Экзамен","2016/2017 учебный год 2 модуль",null,35,5,1,0,1520575527,2098,null,"stChoosen","Реклама и связи с общественностью",{"$f":"MATCH(D412,Отчет!#REF!,0)","v":{"$error":"#REF!"}}]
[1546143009,6,"БРО151",1181080708,"Ганиева Карина Туребековна","М151БРИСО081","Основы права",5,"Экзамен","2016/2017 учебный год 2 модуль",null,30,5,1,1,1520575527,2098,null,"stChoosen","Реклама и связи с общественностью",{"$f":"MATCH(D413,Отчет!#REF!,0)","v":{"$error":"#REF!"}}]
[1659806898,6,"БРО153",1656379817,"Коломиец Ольга Андреевна","М151БМНДЖ078","Основы теории коммуникаций (Часть 1)",3,"Экзамен","2016/2017 учебный год 2 модуль",null,18,3,1,0,1520829000,2098,"ikPlanned","stCommon","Реклама и связи с общественностью",{"$f":"MATCH(D414,Отчет!#REF!,0)","v":{"$error":"#REF!"}}]
[1656792293,6,"БРО152",1656791552,"Суркин Константин Сергеевич","101094114","Основы теории коммуникаций (Часть 1)",3,"Экзамен","2016/2017 учебный год 2 модуль",null,18,3,1,0,1520829000,2098,"ikPassed","stCommon","Реклама и связи с общественностью",{"$f":"MATCH(D415,Отчет!#REF!,0)","v":{"$error":"#REF!"}}]
[1663382840,null,"БРО153",1662712925,"Каньшина Елизавета Сергеевна","13103024","Основы теории коммуникаций (Часть 1)",3,"Экзамен","2016/2017 учебный год 2 модуль",1,0,3,null,0,1520829000,2098,"ikPlanned","stCommon","Реклама и связи с общественностью",{"$f":"MATCH(D416,Отчет!#REF!,0)","v":{"$error":"#REF!"}}]
[1667406409,4,"БРО153",1667389090,"Кармазинский Николай Андреевич","М161БРИСО394","Основы теории коммуникаций (Часть 1)",3,"Экзамен","2016/2017 учебный год 2 модуль",null,12,3,1,0,1520829000,2098,"ikExternalPassed","stCommon","Реклама и связи с общественностью",{"$f":"MATCH(D417,Отчет!#REF!,0)","v":{"$error":"#REF!"}}]
[1580589671,6,"БРО152",1517430637,"Шеховцова Елизавета Дмитриевна","М151БИНЯЗ191","Основы теории коммуникаций (Часть 1)",3,"Экзамен","2016/2017 учебный год 2 модуль",null,18,3,1,0,1520829000,2098,null,"stCommon","Реклама и связи с общественностью",{"$f":"MATCH(D418,Отчет!#REF!,0)","v":{"$error":"#REF!"}}]
[1580586544,9,"БРО152",1517704476,"Жарикова Анастасия Владимировна","М151БМНДЖ057","Основы теории коммуникаций (Часть 1)",3,"Экзамен","2016/2017 учебный год 2 модуль",null,27,3,1,0,1520829000,2098,null,"stCommon","Реклама и связи с общественностью",{"$f":"MATCH(D419,Отчет!#REF!,0)","v":{"$error":"#REF!"}}]
[1580585469,5,"БРО152",1518721225,"Авдонина Дарья Романовна","М141БЖУРН001","Основы теории коммуникаций (Часть 1)",3,"Экзамен","2016/2017 учебный год 2 модуль",null,15,3,1,0,1520829000,2098,null,"stCommon","Реклама и связи с общественностью",{"$f":"MATCH(D420,Отчет!#REF!,0)","v":{"$error":"#REF!"}}]
[1580592652,7,"БРО153",1519084812,"Яснева Екатерина Андреевна","М161БРИСО003","Основы теории коммуникаций (Часть 1)",3,"Экзамен","2016/2017 учебный год 2 модуль",null,21,3,1,0,1520829000,2098,null,"stCommon","Реклама и связи с общественностью",{"$f":"MATCH(D421,Отчет!#REF!,0)","v":{"$error":"#REF!"}}]
[1580581739,null,"БРО151",1520873492,"Арчакова Александра Ивановна","М151БИНЯЗ013","Основы теории коммуникаций (Часть 1)",3,"Экзамен","2016/2017 учебный год 2 модуль",1,0,3,null,0,1520829000,2098,"ikPlanned","stCommon","Реклама и связи с общественностью",{"$f":"MATCH(D422,Отчет!#REF!,0)","v":{"$error":"#REF!"}}]
[1649566994,4,"БРО153",1649552778,"Редин Виталий Вадимович","13151222","Основы теории коммуникаций (Часть 1)",3,"Экзамен","2016/2017 учебный год 2 модуль",null,12,3,1,0,1520829000,2098,"ikPassed","stCommon","Реклама и связи с общественностью",{"$f":"MATCH(D423,Отчет!#REF!,0)","v":{"$error":"#REF!"}}]
[1649669958,4,"БРО151",1649667663,"Селиверстова Анастасия Алексеевна","13151224","Основы теории коммуникаций (Часть 1)",3,"Экзамен","2016/2017 учебный год 2 модуль",null,12,3,1,0,1520829000,2098,"ikPassed","stCommon","Реклама и связи с общественностью",{"$f":"MATCH(D424,Отчет!#REF!,0)","v":{"$error":"#REF!"}}]
[1649861466,null,"БРО152",1649860854,"Лебедева Маргарита Станиславовна","12151236","Основы теории коммуникаций (Часть 1)",3,"Экзамен","2016/2017 учебный год 2 модуль",0,0,3,null,0,1520829000,2098,"ikPlanned","stCommon","Реклама и связи с общественностью",{"$f":"MATCH(D425,Отчет!#REF!,0)","v":{"$error":"#REF!"}}]
[1652986482,4,"БРО152",1652970670,"Абрамов Александр Олегович","13151201","Основы теории коммуникаций (Часть 1)",3,"Экзамен","2016/2017 учебный год 2 модуль",null,12,3,1,0,1520829000,2098,"ikPassed","stCommon","Реклама и связи с общественностью",{"$f":"MATCH(D426,Отчет!#REF!,0)","v":{"$error":"#REF!"}}]
[1653151186,6,"БРО152",1653150908,"Серебрякова Валерия Сергеевна","М141БЭКОН164","Основы теории коммуникаций (Часть 1)",3,"Экзамен","2016/2017 учебный год 2 модуль",null,18,3,1,0,1520829000,2098,"ikPassed","stCommon","Реклама и связи с общественностью",{"$f":"MATCH(D427,Отчет!#REF!,0)","v":{"$error":"#REF!"}}]
[1656185827,8,"БРО152",1656154991,"Чуб Степан Александрович","М151БМНДЖ166","Основы теории коммуникаций (Часть 1)",3,"Экзамен","2016/2017 учебный год 2 модуль",null,24,3,1,0,1520829000,2098,"ikPlanned","stCommon","Реклама и связи с общественностью",{"$f":"MATCH(D428,Отчет!#REF!,0)","v":{"$error":"#REF!"}}]
[1656192276,6,"БРО151",1656174061,"Рашилова Полина Викторовна","М151БЛУЦП091","Основы теории коммуникаций (Часть 1)",3,"Экзамен","2016/2017 учебный год 2 модуль",null,18,3,1,0,1520829000,2098,"ikPlanned","stCommon","Реклама и связи с общественностью",{"$f":"MATCH(D429,Отчет!#REF!,0)","v":{"$error":"#REF!"}}]
[1656197469,6,"БРО151",1656175499,"Молот Ксения Олеговна","М151БЛУЦП073","Основы теории коммуникаций (Часть 1)",3,"Экзамен","2016/2017 учебный год 2 модуль",null,18,3,1,0,1520829000,2098,"ikPlanned","stCommon","Реклама и связи с общественностью",{"$f":"MATCH(D430,Отчет!#REF!,0)","v":{"$error":"#REF!"}}]
[1580585550,7,"БРО152",1322382992,"Авилова Виктория Борисовна","131236028","Основы теории коммуникаций (Часть 1)",3,"Экзамен","2016/2017 учебный год 2 модуль",null,21,3,1,0,1520829000,2098,null,"stCommon","Реклама и связи с общественностью",{"$f":"MATCH(D431,Отчет!#REF!,0)","v":{"$error":"#REF!"}}]
[1580586416,5,"БРО152",1396053703,"Громов Максим Сергеевич","М141БФИКЛ012","Основы теории коммуникаций (Часть 1)",3,"Экзамен","2016/2017 учебный год 2 модуль",null,15,3,1,0,1520829000,2098,null,"stCommon","Реклама и связи с общественностью",{"$f":"MATCH(D432,Отчет!#REF!,0)","v":{"$error":"#REF!"}}]
[1580582789,6,"БРО151",1474053891,"Лисина Юлия Андреевна","М151БРИСО086","Основы теории коммуникаций (Часть 1)",3,"Экзамен","2016/2017 учебный год 2 модуль",null,18,3,1,0,1520829000,2098,null,"stCommon","Реклама и связи с общественностью",{"$f":"MATCH(D433,Отчет!#REF!,0)","v":{"$error":"#REF!"}}]
[1580592132,7,"БРО153",1514787326,"Харисов Артур Раоланович","М151БЭКСТ107","Основы теории коммуникаций (Часть 1)",3,"Экзамен","2016/2017 учебный год 2 модуль",null,21,3,1,0,1520829000,2098,null,"stCommon","Реклама и связи с общественностью",{"$f":"MATCH(D434,Отчет!#REF!,0)","v":{"$error":"#REF!"}}]
[1580590343,7,"БРО153",1514792971,"Гридчина Нина Сергеевна","М161БРИСО001","Основы теории коммуникаций (Часть 1)",3,"Экзамен","2016/2017 учебный год 2 модуль",null,21,3,1,0,1520829000,2098,null,"stCommon","Реклама и связи с общественностью",{"$f":"MATCH(D435,Отчет!#REF!,0)","v":{"$error":"#REF!"}}]
[1580590711,6,"БРО153",1514839183,"Жаркова Дарья Андреевна","М151БСОЦЛ040","Основы теории коммуникаций (Часть 1)",3,"Экзамен","2016/2017 учебный год 2 модуль",null,18,3,1,0,1520829000,2098,null,"stCommon","Реклама и связи с общественностью",{"$f":"MATCH(D436,Отчет!#REF!,0)","v":{"$error":"#REF!"}}]
[1580583775,7,"БРО151",1515445555,"Скворцова Елизавета Васильевна","М161БРИСО395","Основы теории коммуникаций (Часть 1)",3,"Экзамен","2016/2017 учебный год 2 модуль",null,21,3,1,0,1520829000,2098,null,"stCommon","Реклама и связи с общественностью",{"$f":"MATCH(D437,Отчет!#REF!,0)","v":{"$error":"#REF!"}}]
[1580581809,7,"БРО151",1515481958,"Бажулич Кристина Джуровна","М151БИНЯЗ017","Основы теории коммуникаций (Часть 1)",3,"Экзамен","2016/2017 учебный год 2 модуль",null,21,3,1,0,1520829000,2098,null,"stCommon","Реклама и связи с общественностью",{"$f":"MATCH(D438,Отчет!#REF!,0)","v":{"$error":"#REF!"}}]
[1580584319,8,"БРО151",1516201234,"Чернышева Юлия Ивановна","М151БЛУЦП132","Основы теории коммуникаций (Часть 1)",3,"Экзамен","2016/2017 учебный год 2 модуль",null,24,3,1,0,1520829000,2098,null,"stCommon","Реклама и связи с общественностью",{"$f":"MATCH(D439,Отчет!#REF!,0)","v":{"$error":"#REF!"}}]
[1580582873,5,"БРО151",1517364590,"Луданова Евгения Александровна","М151БМИЭФ103","Основы теории коммуникаций (Часть 1)",3,"Экзамен","2016/2017 учебный год 2 модуль",null,15,3,1,0,1520829000,2098,null,"stCommon","Реклама и связи с общественностью",{"$f":"MATCH(D440,Отчет!#REF!,0)","v":{"$error":"#REF!"}}]
[1580584238,7,"БРО151",1517365582,"Хохлова Наталия Алексеевна","М151БМИЭФ196","Основы теории коммуникаций (Часть 1)",3,"Экзамен","2016/2017 учебный год 2 модуль",null,21,3,1,0,1520829000,2098,null,"stCommon","Реклама и связи с общественностью",{"$f":"MATCH(D441,Отчет!#REF!,0)","v":{"$error":"#REF!"}}]
[1580589352,8,"БРО152",1162404939,"Тузова Евгения Сергеевна","М151БРИСО057","Основы теории коммуникаций (Часть 1)",3,"Экзамен","2016/2017 учебный год 2 модуль",null,24,3,1,0,1520829000,2098,null,"stCommon","Реклама и связи с общественностью",{"$f":"MATCH(D442,Отчет!#REF!,0)","v":{"$error":"#REF!"}}]
[1580582512,6,"БРО151",1162404963,"Ермаков Иван Григорьевич","М151БРИСО017","Основы теории коммуникаций (Часть 1)",3,"Экзамен","2016/2017 учебный год 2 модуль",null,18,3,1,0,1520829000,2098,null,"stCommon","Реклама и связи с общественностью",{"$f":"MATCH(D443,Отчет!#REF!,0)","v":{"$error":"#REF!"}}]
[1580590791,9,"БРО153",1162404995,"Кимлык Мария Андреевна","М151БРИСО022","Основы теории коммуникаций (Часть 1)",3,"Экзамен","2016/2017 учебный год 2 модуль",null,27,3,1,1,1520829000,2098,null,"stCommon","Реклама и связи с общественностью",{"$f":"MATCH(D444,Отчет!#REF!,0)","v":{"$error":"#REF!"}}]
[1580584415,6,"БРО151",1162405311,"Шкляр Даниэль Семенович","М151БРИСО062","Основы теории коммуникаций (Часть 1)",3,"Экзамен","2016/2017 учебный год 2 модуль",null,18,3,1,0,1520829000,2098,null,"stCommon","Реклама и связи с общественностью",{"$f":"MATCH(D445,Отчет!#REF!,0)","v":{"$error":"#REF!"}}]
[1580590273,9,"БРО153",1162405372,"Гранина Дарья Константиновна","М151БРИСО012","Основы теории коммуникаций (Часть 1)",3,"Экзамен","2016/2017 учебный год 2 модуль",null,27,3,1,0,1520829000,2098,null,"stCommon","Реклама и связи с общественностью",{"$f":"MATCH(D446,Отчет!#REF!,0)","v":{"$error":"#REF!"}}]
[1580590044,4,"БРО153",1173924661,"Галкин Вячеслав Владимирович","М151БРИСО070","Основы теории коммуникаций (Часть 1)",3,"Экзамен","2016/2017 учебный год 2 модуль",null,12,3,1,0,1520829000,2098,null,"stCommon","Реклама и связи с общественностью",{"$f":"MATCH(D447,Отчет!#REF!,0)","v":{"$error":"#REF!"}}]
[1580591441,5,"БРО153",1181080622,"Нугуспанова Индира","М151БРИСО075","Основы теории коммуникаций (Часть 1)",3,"Экзамен","2016/2017 учебный год 2 модуль",null,15,3,1,1,1520829000,2098,null,"stCommon","Реклама и связи с общественностью",{"$f":"MATCH(D448,Отчет!#REF!,0)","v":{"$error":"#REF!"}}]
[1580582161,7,"БРО151",1181080646,"Белякова Анастасия","М151БРИСО079","Основы теории коммуникаций (Часть 1)",3,"Экзамен","2016/2017 учебный год 2 модуль",null,21,3,1,1,1520829000,2098,null,"stCommon","Реклама и связи с общественностью",{"$f":"MATCH(D449,Отчет!#REF!,0)","v":{"$error":"#REF!"}}]
[1580589596,null,"БРО152",1181080670,"Чачков Алексей Алексеевич","М151БРИСО083","Основы теории коммуникаций (Часть 1)",3,"Экзамен","2016/2017 учебный год 2 модуль",1,0,3,null,1,1520829000,2098,null,"stCommon","Реклама и связи с общественностью",{"$f":"MATCH(D450,Отчет!#REF!,0)","v":{"$error":"#REF!"}}]
[1580582250,6,"БРО151",1181080708,"Ганиева Карина Туребековна","М151БРИСО081","Основы теории коммуникаций (Часть 1)",3,"Экзамен","2016/2017 учебный год 2 модуль",null,18,3,1,1,1520829000,2098,null,"stCommon","Реклама и связи с общественностью",{"$f":"MATCH(D451,Отчет!#REF!,0)","v":{"$error":"#REF!"}}]
[1580583433,8,"БРО151",1181086716,"Пономарева Елизавета","М151БРИСО077","Основы теории коммуникаций (Часть 1)",3,"Экзамен","2016/2017 учебный год 2 модуль",null,24,3,1,1,1520829000,2098,null,"stCommon","Реклама и связи с общественностью",{"$f":"MATCH(D452,Отчет!#REF!,0)","v":{"$error":"#REF!"}}]
[1580590560,7,"БРО153",1181086733,"Дремлюк Марья","М151БРИСО074","Основы теории коммуникаций (Часть 1)",3,"Экзамен","2016/2017 учебный год 2 модуль",null,21,3,1,1,1520829000,2098,null,"stCommon","Реклама и связи с общественностью",{"$f":"MATCH(D453,Отчет!#REF!,0)","v":{"$error":"#REF!"}}]
[1580582426,5,"БРО151",1181086750,"Даниленко Ярослав","М151БРИСО078","Основы теории коммуникаций (Часть 1)",3,"Экзамен","2016/2017 учебный год 2 модуль",null,15,3,1,1,1520829000,2098,null,"stCommon","Реклама и связи с общественностью",{"$f":"MATCH(D454,Отчет!#REF!,0)","v":{"$error":"#REF!"}}]
[1580587578,5,"БРО152",1181086767,"Мухортова Дарья Александровна","М151БРИСО072","Основы теории коммуникаций (Часть 1)",3,"Экзамен","2016/2017 учебный год 2 модуль",null,15,3,1,1,1520829000,2098,null,"stCommon","Реклама и связи с общественностью",{"$f":"MATCH(D455,Отчет!#REF!,0)","v":{"$error":"#REF!"}}]
[1580591017,8,"БРО153",1181086818,"Кунцевич Мария","М151БРИСО076","Основы теории коммуникаций (Часть 1)",3,"Экзамен","2016/2017 учебный год 2 модуль",null,24,3,1,1,1520829000,2098,null,"stCommon","Реклама и связи с общественностью",{"$f":"MATCH(D456,Отчет!#REF!,0)","v":{"$error":"#REF!"}}]
[1572906287,7,"БРО151",1187793549,"Абдулхакимова Афина Шавкатовна","М151БРИСО084","Основы теории коммуникаций (Часть 1)",3,"Экзамен","2016/2017 учебный год 2 модуль",null,21,3,1,0,1520829000,2098,null,"stCommon","Реклама и связи с общественностью",{"$f":"MATCH(D457,Отчет!#REF!,0)","v":{"$error":"#REF!"}}]
[1580591684,7,"БРО153",1187938514,"Романова Екатерина Сергеевна","М151БРИСО082","Основы теории коммуникаций (Часть 1)",3,"Экзамен","2016/2017 учебный год 2 модуль",null,21,3,1,1,1520829000,2098,null,"stCommon","Реклама и связи с общественностью",{"$f":"MATCH(D458,Отчет!#REF!,0)","v":{"$error":"#REF!"}}]
[1580586946,7,"БРО152",1187938540,"Ковалева Анастасия Романовна","М151БРИСО080","Основы теории коммуникаций (Часть 1)",3,"Экзамен","2016/2017 учебный год 2 модуль",null,21,3,1,1,1520829000,2098,null,"stCommon","Реклама и связи с общественностью",{"$f":"MATCH(D459,Отчет!#REF!,0)","v":{"$error":"#REF!"}}]
[1580582080,8,"БРО151",1192491796,"Бекназарова Комилла Сохибжоновна","М151БРИСО085","Основы теории коммуникаций (Часть 1)",3,"Экзамен","2016/2017 учебный год 2 модуль",null,24,3,1,1,1520829000,2098,null,"stCommon","Реклама и связи с общественностью",{"$f":"MATCH(D460,Отчет!#REF!,0)","v":{"$error":"#REF!"}}]
[1580591771,7,"БРО153",1162404387,"Скворцова Анна Алексеевна","М151БРИСО050","Основы теории коммуникаций (Часть 1)",3,"Экзамен","2016/2017 учебный год 2 модуль",null,21,3,1,0,1520829000,2098,null,"stCommon","Реклама и связи с общественностью",{"$f":"MATCH(D461,Отчет!#REF!,0)","v":{"$error":"#REF!"}}]
[1580583157,8,"БРО151",1162404411,"Надирова Анна Зурабовна","М151БРИСО035","Основы теории коммуникаций (Часть 1)",3,"Экзамен","2016/2017 учебный год 2 модуль",null,24,3,1,0,1520829000,2098,null,"stCommon","Реклама и связи с общественностью",{"$f":"MATCH(D462,Отчет!#REF!,0)","v":{"$error":"#REF!"}}]
[1580586662,6,"БРО152",1162404435,"Захряпина Анастасия Алексеевна","М151БРИСО018","Основы теории коммуникаций (Часть 1)",3,"Экзамен","2016/2017 учебный год 2 модуль",null,18,3,1,0,1520829000,2098,null,"stCommon","Реклама и связи с общественностью",{"$f":"MATCH(D463,Отчет!#REF!,0)","v":{"$error":"#REF!"}}]
[1580588603,9,"БРО152",1162404463,"Радченко Ирина Дмитриевна","М151БРИСО044","Основы теории коммуникаций (Часть 1)",3,"Экзамен","2016/2017 учебный год 2 модуль",null,27,3,1,0,1520829000,2098,null,"stCommon","Реклама и связи с общественностью",{"$f":"MATCH(D464,Отчет!#REF!,0)","v":{"$error":"#REF!"}}]
[1580592401,7,"БРО153",1162404495,"Юрьева Мария Дмитриевна","М151БРИСО065","Основы теории коммуникаций (Часть 1)",3,"Экзамен","2016/2017 учебный год 2 модуль",null,21,3,1,0,1520829000,2098,null,"stCommon","Реклама и связи с общественностью",{"$f":"MATCH(D465,Отчет!#REF!,0)","v":{"$error":"#REF!"}}]
[1580588450,9,"БРО152",1162404529,"Радионова Анна Евгеньевна","М151БРИСО043","Основы теории коммуникаций (Часть 1)",3,"Экзамен","2016/2017 учебный год 2 модуль",null,27,3,1,1,1520829000,2098,null,"stCommon","Реклама и связи с общественностью",{"$f":"MATCH(D466,Отчет!#REF!,0)","v":{"$error":"#REF!"}}]
[1580592316,9,"БРО153",1162404559,"Щелкунов Игорь Владимирович","М151БРИСО064","Основы теории коммуникаций (Часть 1)",3,"Экзамен","2016/2017 учебный год 2 модуль",null,27,3,1,0,1520829000,2098,null,"stCommon","Реклама и связи с общественностью",{"$f":"MATCH(D467,Отчет!#REF!,0)","v":{"$error":"#REF!"}}]
[1580581579,6,"БРО151",1162404590,"Аккалаев Марат Русланович","М151БРИСО002","Основы теории коммуникаций (Часть 1)",3,"Экзамен","2016/2017 учебный год 2 модуль",null,18,3,1,0,1520829000,2098,null,"stCommon","Реклама и связи с общественностью",{"$f":"MATCH(D468,Отчет!#REF!,0)","v":{"$error":"#REF!"}}]
[1580590637,8,"БРО153",1162404615,"Дроздова Елизавета Владимировна","М151БРИСО016","Основы теории коммуникаций (Часть 1)",3,"Экзамен","2016/2017 учебный год 2 модуль",null,24,3,1,0,1520829000,2098,null,"stCommon","Реклама и связи с общественностью",{"$f":"MATCH(D469,Отчет!#REF!,0)","v":{"$error":"#REF!"}}]
[1580587963,8,"БРО152",1162404639,"Полякова Александра Дмитриевна","М151БРИСО041","Основы теории коммуникаций (Часть 1)",3,"Экзамен","2016/2017 учебный год 2 модуль",null,24,3,1,0,1520829000,2098,null,"stCommon","Реклама и связи с общественностью",{"$f":"MATCH(D470,Отчет!#REF!,0)","v":{"$error":"#REF!"}}]
[1580589427,7,"БРО152",1162404671,"Фролов Василий Александрович","М151БРИСО060","Основы теории коммуникаций (Часть 1)",3,"Экзамен","2016/2017 учебный год 2 модуль",null,21,3,1,0,1520829000,2098,null,"stCommon","Реклама и связи с общественностью",{"$f":"MATCH(D471,Отчет!#REF!,0)","v":{"$error":"#REF!"}}]
[1580583048,8,"БРО151",1162404699,"Милова Анастасия Андреевна","М151БРИСО033","Основы теории коммуникаций (Часть 1)",3,"Экзамен","2016/2017 учебный год 2 модуль",null,24,3,1,0,1520829000,2098,null,"stCommon","Реклама и связи с общественностью",{"$f":"MATCH(D472,Отчет!#REF!,0)","v":{"$error":"#REF!"}}]
[1580588724,4,"БРО152",1162404727,"Сак Евгения Леонидовна","М151БРИСО047","Основы теории коммуникаций (Часть 1)",3,"Экзамен","2016/2017 учебный год 2 модуль",null,12,3,1,0,1520829000,2098,null,"stCommon","Реклама и связи с общественностью",{"$f":"MATCH(D473,Отчет!#REF!,0)","v":{"$error":"#REF!"}}]
[1580587729,null,"БРО152",1162404759,"Нафталиева Яна Абрамовна","М151БРИСО036","Основы теории коммуникаций (Часть 1)",3,"Экзамен","2016/2017 учебный год 2 модуль",1,0,3,null,0,1520829000,2098,null,"stCommon","Реклама и связи с общественностью",{"$f":"MATCH(D474,Отчет!#REF!,0)","v":{"$error":"#REF!"}}]
[1580591516,6,"БРО153",1162404783,"Поляков Илья Станиславович","М151БРИСО040","Основы теории коммуникаций (Часть 1)",3,"Экзамен","2016/2017 учебный год 2 модуль",null,18,3,1,0,1520829000,2098,null,"stCommon","Реклама и связи с общественностью",{"$f":"MATCH(D475,Отчет!#REF!,0)","v":{"$error":"#REF!"}}]
[1580589282,7,"БРО152",1162404815,"Тихонина Мария Игоревна","М151БРИСО054","Основы теории коммуникаций (Часть 1)",3,"Экзамен","2016/2017 учебный год 2 модуль",null,21,3,1,0,1520829000,2098,null,"stCommon","Реклама и связи с общественностью",{"$f":"MATCH(D476,Отчет!#REF!,0)","v":{"$error":"#REF!"}}]
[1580582343,8,"БРО151",1162404843,"Даниель Александра Александровна","М151БРИСО014","Основы теории коммуникаций (Часть 1)",3,"Экзамен","2016/2017 учебный год 2 модуль",null,24,3,1,0,1520829000,2098,null,"stCommon","Реклама и связи с общественностью",{"$f":"MATCH(D477,Отчет!#REF!,0)","v":{"$error":"#REF!"}}]
[1580591355,7,"БРО153",1162404875,"Никоненко Анастасия Германовна","М151БРИСО038","Основы теории коммуникаций (Часть 1)",3,"Экзамен","2016/2017 учебный год 2 модуль",null,21,3,1,0,1520829000,2098,null,"stCommon","Реклама и связи с общественностью",{"$f":"MATCH(D478,Отчет!#REF!,0)","v":{"$error":"#REF!"}}]
[1580582957,9,"БРО151",1162402136,"Мазур Екатерина Сергеевна","М151БРИСО031","Основы теории коммуникаций (Часть 1)",3,"Экзамен","2016/2017 учебный год 2 модуль",null,27,3,1,1,1520829000,2098,null,"stCommon","Реклама и связи с общественностью",{"$f":"MATCH(D479,Отчет!#REF!,0)","v":{"$error":"#REF!"}}]
[1580588855,7,"БРО152",1162402160,"Серегин Геннадий Евгеньевич","М151БРИСО048","Основы теории коммуникаций (Часть 1)",3,"Экзамен","2016/2017 учебный год 2 модуль",null,21,3,1,1,1520829000,2098,null,"stCommon","Реклама и связи с общественностью",{"$f":"MATCH(D480,Отчет!#REF!,0)","v":{"$error":"#REF!"}}]
[1580591101,9,"БРО153",1162402188,"Курганова Диана Андреевна","М151БРИСО028","Основы теории коммуникаций (Часть 1)",3,"Экзамен","2016/2017 учебный год 2 модуль",null,27,3,1,1,1520829000,2098,null,"stCommon","Реклама и связи с общественностью",{"$f":"MATCH(D481,Отчет!#REF!,0)","v":{"$error":"#REF!"}}]
[1580590152,7,"БРО153",1162402220,"Горохова Елизавета Юрьевна","М151БРИСО011","Основы теории коммуникаций (Часть 1)",3,"Экзамен","2016/2017 учебный год 2 модуль",null,21,3,1,1,1520829000,2098,null,"stCommon","Реклама и связи с общественностью",{"$f":"MATCH(D482,Отчет!#REF!,0)","v":{"$error":"#REF!"}}]
[1580588066,9,"БРО152",1162402244,"Попова Диана Александровна","М151БРИСО042","Основы теории коммуникаций (Часть 1)",3,"Экзамен","2016/2017 учебный год 2 модуль",null,27,3,1,1,1520829000,2098,null,"stCommon","Реклама и связи с общественностью",{"$f":"MATCH(D483,Отчет!#REF!,0)","v":{"$error":"#REF!"}}]
[1580592234,8,"БРО153",1162402268,"Шельменкина Карина Сергеевна","М151БРИСО061","Основы теории коммуникаций (Часть 1)",3,"Экзамен","2016/2017 учебный год 2 модуль",null,24,3,1,1,1520829000,2098,null,"stCommon","Реклама и связи с общественностью",{"$f":"MATCH(D484,Отчет!#REF!,0)","v":{"$error":"#REF!"}}]
[1580581965,8,"БРО151",1162402300,"Барыкина Александра Сергеевна","М151БРИСО006","Основы теории коммуникаций (Часть 1)",3,"Экзамен","2016/2017 учебный год 2 модуль",null,24,3,1,1,1520829000,2098,null,"stCommon","Реклама и связи с общественностью",{"$f":"MATCH(D485,Отчет!#REF!,0)","v":{"$error":"#REF!"}}]
[1580582610,9,"БРО151",1162402324,"Казакова Виктория Владимировна","М151БРИСО019","Основы теории коммуникаций (Часть 1)",3,"Экзамен","2016/2017 учебный год 2 модуль",null,27,3,1,1,1520829000,2098,null,"stCommon","Реклама и связи с общественностью",{"$f":"MATCH(D486,Отчет!#REF!,0)","v":{"$error":"#REF!"}}]
[1580587241,9,"БРО152",1162402352,"Криницкая Анастасия Сергеевна","М151БРИСО027","Основы теории коммуникаций (Часть 1)",3,"Экзамен","2016/2017 учебный год 2 модуль",null,27,3,1,1,1520829000,2098,null,"stCommon","Реклама и связи с общественностью",{"$f":"MATCH(D487,Отчет!#REF!,0)","v":{"$error":"#REF!"}}]
[1580583678,8,"БРО151",1162402384,"Садова Анастасия Романовна","М151БРИСО046","Основы теории коммуникаций (Часть 1)",3,"Экзамен","2016/2017 учебный год 2 модуль",null,24,3,1,1,1520829000,2098,null,"stCommon","Реклама и связи с общественностью",{"$f":"MATCH(D488,Отчет!#REF!,0)","v":{"$error":"#REF!"}}]
[1580583541,9,"БРО151",1162402412,"Романовская Алина Андреевна","М151БРИСО045","Основы теории коммуникаций (Часть 1)",3,"Экзамен","2016/2017 учебный год 2 модуль",null,27,3,1,1,1520829000,2098,null,"stCommon","Реклама и связи с общественностью",{"$f":"MATCH(D489,Отчет!#REF!,0)","v":{"$error":"#REF!"}}]
[1580590870,6,"БРО153",1162402641,"Ковтун Юлия Алексеевна","М151БРИСО023","Основы теории коммуникаций (Часть 1)",3,"Экзамен","2016/2017 учебный год 2 модуль",null,18,3,1,1,1520829000,2098,null,"stCommon","Реклама и связи с общественностью",{"$f":"MATCH(D490,Отчет!#REF!,0)","v":{"$error":"#REF!"}}]
[1580592478,9,"БРО153",1162402673,"Язькова Елизавета Алексеевна","М151БРИСО066","Основы теории коммуникаций (Часть 1)",3,"Экзамен","2016/2017 учебный год 2 модуль",null,27,3,1,1,1520829000,2098,null,"stCommon","Реклама и связи с общественностью",{"$f":"MATCH(D491,Отчет!#REF!,0)","v":{"$error":"#REF!"}}]
[1580591272,9,"БРО153",1162404239,"Мошева Анастасия Олеговна","М151БРИСО034","Основы теории коммуникаций (Часть 1)",3,"Экзамен","2016/2017 учебный год 2 модуль",null,27,3,1,1,1520829000,2098,null,"stCommon","Реклама и связи с общественностью",{"$f":"MATCH(D492,Отчет!#REF!,0)","v":{"$error":"#REF!"}}]
[1580582710,8,"БРО151",1162404267,"Колганова Полина Олеговна","М151БРИСО024","Основы теории коммуникаций (Часть 1)",3,"Экзамен","2016/2017 учебный год 2 модуль",null,24,3,1,0,1520829000,2098,null,"stCommon","Реклама и связи с общественностью",{"$f":"MATCH(D493,Отчет!#REF!,0)","v":{"$error":"#REF!"}}]
[1580583248,8,"БРО151",1162404299,"Панарина Елизавета Сергеевна","М151БРИСО039","Основы теории коммуникаций (Часть 1)",3,"Экзамен","2016/2017 учебный год 2 модуль",null,24,3,1,1,1520829000,2098,null,"stCommon","Реклама и связи с общественностью",{"$f":"MATCH(D494,Отчет!#REF!,0)","v":{"$error":"#REF!"}}]
[1580592562,9,"БРО153",1162401104,"Янчева Анастасия Вадимовна","М151БРИСО067","Основы теории коммуникаций (Часть 1)",3,"Экзамен","2016/2017 учебный год 2 модуль",null,27,3,1,1,1520829000,2098,null,"stCommon","Реклама и связи с общественностью",{"$f":"MATCH(D495,Отчет!#REF!,0)","v":{"$error":"#REF!"}}]
[1580583874,7,"БРО151",1162401132,"Смирнова Полина Алексеевна","М151БРИСО052","Основы теории коммуникаций (Часть 1)",3,"Экзамен","2016/2017 учебный год 2 модуль",null,21,3,1,1,1520829000,2098,null,"stCommon","Реклама и связи с общественностью",{"$f":"MATCH(D496,Отчет!#REF!,0)","v":{"$error":"#REF!"}}]
[1580588993,null,"БРО152",1162401164,"Сизова Анна Геннадьевна","М151БРИСО049","Основы теории коммуникаций (Часть 1)",3,"Экзамен","2016/2017 учебный год 2 модуль",1,0,3,null,1,1520829000,2098,null,"stCommon","Реклама и связи с общественностью",{"$f":"MATCH(D497,Отчет!#REF!,0)","v":{"$error":"#REF!"}}]
[1580586023,9,"БРО152",1162401228,"Бешанова Елизавета Вячеславовна","М151БРИСО007","Основы теории коммуникаций (Часть 1)",3,"Экзамен","2016/2017 учебный год 2 модуль",null,27,3,1,1,1520829000,2098,null,"stCommon","Реклама и связи с общественностью",{"$f":"MATCH(D498,Отчет!#REF!,0)","v":{"$error":"#REF!"}}]
[1580587855,8,"БРО152",1162401260,"Никитина Валерия Дмитриевна","М151БРИСО037","Основы теории коммуникаций (Часть 1)",3,"Экзамен","2016/2017 учебный год 2 модуль",null,24,3,1,1,1520829000,2098,null,"stCommon","Реклама и связи с общественностью",{"$f":"MATCH(D499,Отчет!#REF!,0)","v":{"$error":"#REF!"}}]
[1580591178,8,"БРО153",1162401288,"Мельник Алексей Сергеевич","М151БРИСО032","Основы теории коммуникаций (Часть 1)",3,"Экзамен","2016/2017 учебный год 2 модуль",null,24,3,1,1,1520829000,2098,null,"stCommon","Реклама и связи с общественностью",{"$f":"MATCH(D500,Отчет!#REF!,0)","v":{"$error":"#REF!"}}]
[1580587425,8,"БРО152",1162401312,"Ленкуте Алина Максимовна","М151БРИСО029","Основы теории коммуникаций (Часть 1)",3,"Экзамен","2016/2017 учебный год 2 модуль",null,24,3,1,1,1520829000,2098,null,"stCommon","Реклама и связи с общественностью",{"$f":"MATCH(D501,Отчет!#REF!,0)","v":{"$error":"#REF!"}}]
[1580590947,7,"БРО153",1162401344,"Кравчук Кристина Александровна","М151БРИСО026","Основы теории коммуникаций (Часть 1)",3,"Экзамен","2016/2017 учебный год 2 модуль",null,21,3,1,1,1520829000,2098,null,"stCommon","Реклама и связи с общественностью",{"$f":"MATCH(D502,Отчет!#REF!,0)","v":{"$error":"#REF!"}}]
[1580583983,9,"БРО151",1162401376,"Солдатенкова Арина Витальевна","М151БРИСО053","Основы теории коммуникаций (Часть 1)",3,"Экзамен","2016/2017 учебный год 2 модуль",null,27,3,1,1,1520829000,2098,null,"stCommon","Реклама и связи с общественностью",{"$f":"MATCH(D503,Отчет!#REF!,0)","v":{"$error":"#REF!"}}]
[1580585678,8,"БРО152",1162401408,"Астурян Вячеслав Вячеславович","М151БРИСО004","Основы теории коммуникаций (Часть 1)",3,"Экзамен","2016/2017 учебный год 2 модуль",null,24,3,1,1,1520829000,2098,null,"stCommon","Реклама и связи с общественностью",{"$f":"MATCH(D504,Отчет!#REF!,0)","v":{"$error":"#REF!"}}]
[1580590416,8,"БРО153",1162401440,"Гришина Мария Сергеевна","М151БРИСО013","Основы теории коммуникаций (Часть 1)",3,"Экзамен","2016/2017 учебный год 2 модуль",null,24,3,1,1,1520829000,2098,null,"stCommon","Реклама и связи с общественностью",{"$f":"MATCH(D505,Отчет!#REF!,0)","v":{"$error":"#REF!"}}]
[1580592037,8,"БРО153",1162401597,"Толбухина Полина Дмитриевна","М151БРИСО056","Основы теории коммуникаций (Часть 1)",3,"Экзамен","2016/2017 учебный год 2 модуль",null,24,3,1,1,1520829000,2098,null,"stCommon","Реклама и связи с общественностью",{"$f":"MATCH(D506,Отчет!#REF!,0)","v":{"$error":"#REF!"}}]
[1580586302,8,"БРО152",1162401665,"Веряева Ксения Михайловна","М151БРИСО010","Основы теории коммуникаций (Часть 1)",3,"Экзамен","2016/2017 учебный год 2 модуль",null,24,3,1,1,1520829000,2098,null,"stCommon","Реклама и связи с общественностью",{"$f":"MATCH(D507,Отчет!#REF!,0)","v":{"$error":"#REF!"}}]
[1580589956,6,"БРО153",1162401697,"Бисовка Евгений Геннадьевич","М151БРИСО008","Основы теории коммуникаций (Часть 1)",3,"Экзамен","2016/2017 учебный год 2 модуль",null,18,3,1,1,1520829000,2098,null,"stCommon","Реклама и связи с общественностью",{"$f":"MATCH(D508,Отчет!#REF!,0)","v":{"$error":"#REF!"}}]
[1580586787,8,"БРО152",1162401762,"Калабаева Дарья Андреевна","М151БРИСО020","Основы теории коммуникаций (Часть 1)",3,"Экзамен","2016/2017 учебный год 2 модуль",null,24,3,1,1,1520829000,2098,null,"stCommon","Реклама и связи с общественностью",{"$f":"MATCH(D509,Отчет!#REF!,0)","v":{"$error":"#REF!"}}]
[1580586165,7,"БРО152",1162402048,"Богданова Владлена Сергеевна","М151БРИСО009","Основы теории коммуникаций (Часть 1)",3,"Экзамен","2016/2017 учебный год 2 модуль",null,21,3,1,1,1520829000,2098,null,"stCommon","Реклама и связи с общественностью",{"$f":"MATCH(D510,Отчет!#REF!,0)","v":{"$error":"#REF!"}}]
[1580584074,9,"БРО151",1162402075,"Ужегова Полина Александровна","М151БРИСО058","Основы теории коммуникаций (Часть 1)",3,"Экзамен","2016/2017 учебный год 2 модуль",null,27,3,1,1,1520829000,2098,null,"stCommon","Реклама и связи с общественностью",{"$f":"MATCH(D511,Отчет!#REF!,0)","v":{"$error":"#REF!"}}]
[1580591858,8,"БРО153",1162402110,"Сковородина Елизавета Сергеевна","М151БРИСО051","Основы теории коммуникаций (Часть 1)",3,"Экзамен","2016/2017 учебный год 2 модуль",null,24,3,1,1,1520829000,2098,null,"stCommon","Реклама и связи с общественностью",{"$f":"MATCH(D512,Отчет!#REF!,0)","v":{"$error":"#REF!"}}]
[1546142621,5,"БРО151",1517364590,"Луданова Евгения Александровна","М151БМИЭФ103","Основы теории организации и управление персоналом",5,"Экзамен","2016/2017 учебный год 2 модуль",null,25,5,1,0,1520574191,2098,null,"stChoosen","Реклама и связи с общественностью",{"$f":"MATCH(D513,Отчет!#REF!,0)","v":{"$error":"#REF!"}}]
[1546142629,6,"БРО153",1162401344,"Кравчук Кристина Александровна","М151БРИСО026","Основы теории организации и управление персоналом",5,"Экзамен","2016/2017 учебный год 2 модуль",null,30,5,1,1,1520574191,2098,null,"stChoosen","Реклама и связи с общественностью",{"$f":"MATCH(D514,Отчет!#REF!,0)","v":{"$error":"#REF!"}}]
[1546142637,5,"БРО151",1517365582,"Хохлова Наталия Алексеевна","М151БМИЭФ196","Основы теории организации и управление персоналом",5,"Экзамен","2016/2017 учебный год 2 модуль",null,25,5,1,0,1520574191,2098,null,"stChoosen","Реклама и связи с общественностью",{"$f":"MATCH(D515,Отчет!#REF!,0)","v":{"$error":"#REF!"}}]
[1666980864,5,"БРО153",1162401697,"Бисовка Евгений Геннадьевич","М151БРИСО008","Правовые основы бизнеса",5,"Экзамен","2016/2017 учебный год 2 модуль",null,25,5,1,1,1520575578,2098,null,"stChoosen","Реклама и связи с общественностью",{"$f":"MATCH(D516,Отчет!#REF!,0)","v":{"$error":"#REF!"}}]
[1546349803,9,"БРО153",1162402673,"Язькова Елизавета Алексеевна","М151БРИСО066","Правовые основы бизнеса",5,"Экзамен","2016/2017 учебный год 2 модуль",null,45,5,1,1,1520575578,2098,null,"stChoosen","Реклама и связи с общественностью",{"$f":"MATCH(D517,Отчет!#REF!,0)","v":{"$error":"#REF!"}}]
[1546142641,8,"БРО152",1162404529,"Радионова Анна Евгеньевна","М151БРИСО043","Правовые основы бизнеса",5,"Экзамен","2016/2017 учебный год 2 модуль",null,40,5,1,1,1520575578,2098,null,"stChoosen","Реклама и связи с общественностью",{"$f":"MATCH(D518,Отчет!#REF!,0)","v":{"$error":"#REF!"}}]
[1546142673,8,"БРО152",1162404671,"Фролов Василий Александрович","М151БРИСО060","Правовые основы бизнеса",5,"Экзамен","2016/2017 учебный год 2 модуль",null,40,5,1,0,1520575578,2098,null,"stChoosen","Реклама и связи с общественностью",{"$f":"MATCH(D519,Отчет!#REF!,0)","v":{"$error":"#REF!"}}]
[1546142657,3,"БРО152",1162404815,"Тихонина Мария Игоревна","М151БРИСО054","Правовые основы бизнеса",5,"Экзамен","2016/2017 учебный год 2 модуль",null,0,5,0,0,1520575578,2098,null,"stChoosen","Реклама и связи с общественностью",{"$f":"MATCH(D520,Отчет!#REF!,0)","v":{"$error":"#REF!"}}]
[1546142649,9,"БРО153",1162404995,"Кимлык Мария Андреевна","М151БРИСО022","Правовые основы бизнеса",5,"Экзамен","2016/2017 учебный год 2 модуль",null,45,5,1,1,1520575578,2098,null,"stChoosen","Реклама и связи с общественностью",{"$f":"MATCH(D521,Отчет!#REF!,0)","v":{"$error":"#REF!"}}]
[1546142665,7,"БРО152",1181086767,"Мухортова Дарья Александровна","М151БРИСО072","Правовые основы бизнеса",5,"Экзамен","2016/2017 учебный год 2 модуль",null,35,5,1,1,1520575578,2098,null,"stChoosen","Реклама и связи с общественностью",{"$f":"MATCH(D522,Отчет!#REF!,0)","v":{"$error":"#REF!"}}]
[1546142689,6,"БРО153",1187938514,"Романова Екатерина Сергеевна","М151БРИСО082","Правовые основы бизнеса",5,"Экзамен","2016/2017 учебный год 2 модуль",null,30,5,1,1,1520575578,2098,null,"stChoosen","Реклама и связи с общественностью",{"$f":"MATCH(D523,Отчет!#REF!,0)","v":{"$error":"#REF!"}}]
[1656192257,6,"БРО151",1656174061,"Рашилова Полина Викторовна","М151БЛУЦП091","Правовые основы бизнеса",5,"Экзамен","2016/2017 учебный год 2 модуль",null,30,5,1,0,1520575578,2098,"ikPlanned","stChoosen","Реклама и связи с общественностью",{"$f":"MATCH(D524,Отчет!#REF!,0)","v":{"$error":"#REF!"}}]
[1656197521,4,"БРО151",1656175499,"Молот Ксения Олеговна","М151БЛУЦП073","Психология личности и индивидуальных различий",5,"Экзамен","2016/2017 учебный год 2 модуль",null,20,5,1,0,1520573996,2098,"ikPlanned","stChoosen","Реклама и связи с общественностью",{"$f":"MATCH(D525,Отчет!#REF!,0)","v":{"$error":"#REF!"}}]
[1546142745,6,"БРО152",1322382992,"Авилова Виктория Борисовна","131236028","Психология личности и индивидуальных различий",5,"Экзамен","2016/2017 учебный год 2 модуль",null,30,5,1,0,1520573996,2098,null,"stChoosen","Реклама и связи с общественностью",{"$f":"MATCH(D526,Отчет!#REF!,0)","v":{"$error":"#REF!"}}]
[1546142753,8,"БРО153",1181086818,"Кунцевич Мария","М151БРИСО076","Психология личности и индивидуальных различий",5,"Экзамен","2016/2017 учебный год 2 модуль",null,40,5,1,1,1520573996,2098,null,"stChoosen","Реклама и связи с общественностью",{"$f":"MATCH(D527,Отчет!#REF!,0)","v":{"$error":"#REF!"}}]
[1546349783,9,"БРО151",1162402384,"Садова Анастасия Романовна","М151БРИСО046","Психология личности и индивидуальных различий",5,"Экзамен","2016/2017 учебный год 2 модуль",null,45,5,1,1,1520573996,2098,null,"stChoosen","Реклама и связи с общественностью",{"$f":"MATCH(D528,Отчет!#REF!,0)","v":{"$error":"#REF!"}}]
[1546142817,5,"БРО151",1474053891,"Лисина Юлия Андреевна","М151БРИСО086","Современная российская политика",5,"Экзамен","2016/2017 учебный год 2 модуль",null,25,5,1,0,1520574112,2098,null,"stChoosen","Реклама и связи с общественностью",{"$f":"MATCH(D529,Отчет!#REF!,0)","v":{"$error":"#REF!"}}]
[1546142825,7,"БРО153",1162401597,"Толбухина Полина Дмитриевна","М151БРИСО056","Современная российская политика",5,"Экзамен","2016/2017 учебный год 2 модуль",null,35,5,1,1,1520574112,2098,null,"stChoosen","Реклама и связи с общественностью",{"$f":"MATCH(D530,Отчет!#REF!,0)","v":{"$error":"#REF!"}}]
[1649861536,null,"БРО152",1649860854,"Лебедева Маргарита Станиславовна","12151236","Современная российская политика",5,"Экзамен","2016/2017 учебный год 2 модуль",0,0,5,null,0,1520574112,2098,"ikPlanned","stChoosen","Реклама и связи с общественностью",{"$f":"MATCH(D531,Отчет!#REF!,0)","v":{"$error":"#REF!"}}]
[1546142849,7,"БРО151",1162402075,"Ужегова Полина Александровна","М151БРИСО058","Современная российская политика",5,"Экзамен","2016/2017 учебный год 2 модуль",null,35,5,1,1,1520574112,2098,null,"stChoosen","Реклама и связи с общественностью",{"$f":"MATCH(D532,Отчет!#REF!,0)","v":{"$error":"#REF!"}}]
[1546142841,6,"БРО151",1162401132,"Смирнова Полина Алексеевна","М151БРИСО052","Современная российская политика",5,"Экзамен","2016/2017 учебный год 2 модуль",null,30,5,1,1,1520574112,2098,null,"stChoosen","Реклама и связи с общественностью",{"$f":"MATCH(D533,Отчет!#REF!,0)","v":{"$error":"#REF!"}}]
[1546142386,7,"БРО151",1181086750,"Даниленко Ярослав","М151БРИСО078","Современные информационные технологии",5,"Экзамен","2016/2017 учебный год 2 модуль",null,35,5,1,1,1520575830,2098,null,"stChoosen","Реклама и связи с общественностью",{"$f":"MATCH(D534,Отчет!#REF!,0)","v":{"$error":"#REF!"}}]
[1546142394,7,"БРО153",1162402641,"Ковтун Юлия Алексеевна","М151БРИСО023","Современные информационные технологии",5,"Экзамен","2016/2017 учебный год 2 модуль",null,35,5,1,1,1520575830,2098,null,"stChoosen","Реклама и связи с общественностью",{"$f":"MATCH(D535,Отчет!#REF!,0)","v":{"$error":"#REF!"}}]
[1667064797,7,"БРО151",1162402300,"Барыкина Александра Сергеевна","М151БРИСО006","Современный культурный процесс",5,"Экзамен","2016/2017 учебный год 2 модуль",null,35,5,1,1,1520574356,2098,null,"stChoosen","Реклама и связи с общественностью",{"$f":"MATCH(D536,Отчет!#REF!,0)","v":{"$error":"#REF!"}}]
[1546349791,9,"БРО152",1162401762,"Калабаева Дарья Андреевна","М151БРИСО020","Современный культурный процесс",5,"Экзамен","2016/2017 учебный год 2 модуль",null,45,5,1,1,1520574356,2098,null,"stChoosen","Реклама и связи с общественностью",{"$f":"MATCH(D537,Отчет!#REF!,0)","v":{"$error":"#REF!"}}]
[1667065396,7,"БРО151",1162401376,"Солдатенкова Арина Витальевна","М151БРИСО053","Современный культурный процесс",5,"Экзамен","2016/2017 учебный год 2 модуль",null,35,5,1,1,1520574356,2098,null,"stChoosen","Реклама и связи с общественностью",{"$f":"MATCH(D538,Отчет!#REF!,0)","v":{"$error":"#REF!"}}]
[1546142777,8,"БРО153",1162404875,"Никоненко Анастасия Германовна","М151БРИСО038","Современный культурный процесс",5,"Экзамен","2016/2017 учебный год 2 модуль",null,40,5,1,0,1520574356,2098,null,"stChoosen","Реклама и связи с общественностью",{"$f":"MATCH(D539,Отчет!#REF!,0)","v":{"$error":"#REF!"}}]
[1546142761,9,"БРО151",1162404843,"Даниель Александра Александровна","М151БРИСО014","Современный культурный процесс",5,"Экзамен","2016/2017 учебный год 2 модуль",null,45,5,1,0,1520574356,2098,null,"stChoosen","Реклама и связи с общественностью",{"$f":"MATCH(D540,Отчет!#REF!,0)","v":{"$error":"#REF!"}}]
[1546142785,7,"БРО152",1162404639,"Полякова Александра Дмитриевна","М151БРИСО041","Современный культурный процесс",5,"Экзамен","2016/2017 учебный год 2 модуль",null,35,5,1,0,1520574356,2098,null,"stChoosen","Реклама и связи с общественностью",{"$f":"MATCH(D541,Отчет!#REF!,0)","v":{"$error":"#REF!"}}]
[1546142809,6,"БРО152",1162404435,"Захряпина Анастасия Алексеевна","М151БРИСО018","Современный культурный процесс",5,"Экзамен","2016/2017 учебный год 2 модуль",null,30,5,1,0,1520574356,2098,null,"stChoosen","Реклама и связи с общественностью",{"$f":"MATCH(D542,Отчет!#REF!,0)","v":{"$error":"#REF!"}}]
[1546142793,8,"БРО153",1514792971,"Гридчина Нина Сергеевна","М161БРИСО001","Современный культурный процесс",5,"Экзамен","2016/2017 учебный год 2 модуль",null,40,5,1,0,1520574356,2098,null,"stChoosen","Реклама и связи с общественностью",{"$f":"MATCH(D543,Отчет!#REF!,0)","v":{"$error":"#REF!"}}]
[1674330255,6,"БРО151",1187793549,"Абдулхакимова Афина Шавкатовна","М151БРИСО084","Современный культурный процесс",5,"Экзамен","2016/2017 учебный год 2 модуль",null,30,5,1,0,1520574356,2098,null,"stChoosen","Реклама и связи с общественностью",{"$f":"MATCH(D544,Отчет!#REF!,0)","v":{"$error":"#REF!"}}]
[1667405955,4,"БРО153",1667389090,"Кармазинский Николай Андреевич","М161БРИСО394","Современный культурный процесс",5,"Экзамен","2016/2017 учебный год 2 модуль",null,20,5,1,0,1520574356,2098,"ikPlanned","stChoosen","Реклама и связи с общественностью",{"$f":"MATCH(D545,Отчет!#REF!,0)","v":{"$error":"#REF!"}}]
[1663382596,4,"БРО153",1662712925,"Каньшина Елизавета Сергеевна","13103024","Современный культурный процесс",5,"Экзамен","2016/2017 учебный год 2 модуль",null,20,5,1,0,1520574356,2098,"ikPlanned","stChoosen","Реклама и связи с общественностью",{"$f":"MATCH(D546,Отчет!#REF!,0)","v":{"$error":"#REF!"}}]
[1659806920,8,"БРО153",1656379817,"Коломиец Ольга Андреевна","М151БМНДЖ078","Современный культурный процесс",5,"Экзамен","2016/2017 учебный год 2 модуль",null,40,5,1,0,1520574356,2098,"ikPlanned","stChoosen","Реклама и связи с общественностью",{"$f":"MATCH(D547,Отчет!#REF!,0)","v":{"$error":"#REF!"}}]
[1546142801,5,"БРО151",1515445555,"Скворцова Елизавета Васильевна","М161БРИСО395","Современный культурный процесс",5,"Экзамен","2016/2017 учебный год 2 модуль",null,25,5,1,0,1520574356,2098,null,"stChoosen","Реклама и связи с общественностью",{"$f":"MATCH(D548,Отчет!#REF!,0)","v":{"$error":"#REF!"}}]
[1580586586,9,"БРО152",1517704476,"Жарикова Анастасия Владимировна","М151БМНДЖ057","Социология массовых коммуникаций",3,"Экзамен","2016/2017 учебный год 2 модуль",null,27,3,1,0,1520829000,2098,null,"stCommon","Реклама и связи с общественностью",{"$f":"MATCH(D549,Отчет!#REF!,0)","v":{"$error":"#REF!"}}]
[1580585492,2,"БРО152",1518721225,"Авдонина Дарья Романовна","М141БЖУРН001","Социология массовых коммуникаций",3,"Экзамен","2016/2017 учебный год 2 модуль",null,0,3,0,0,1520829000,2098,null,"stCommon","Реклама и связи с общественностью",{"$f":"MATCH(D550,Отчет!#REF!,0)","v":{"$error":"#REF!"}}]
[1580592693,7,"БРО153",1519084812,"Яснева Екатерина Андреевна","М161БРИСО003","Социология массовых коммуникаций",3,"Экзамен","2016/2017 учебный год 2 модуль",null,21,3,1,0,1520829000,2098,null,"stCommon","Реклама и связи с общественностью",{"$f":"MATCH(D551,Отчет!#REF!,0)","v":{"$error":"#REF!"}}]
[1580581761,null,"БРО151",1520873492,"Арчакова Александра Ивановна","М151БИНЯЗ013","Социология массовых коммуникаций",3,"Экзамен","2016/2017 учебный год 2 модуль",0,0,3,null,0,1520829000,2098,"ikPlanned","stCommon","Реклама и связи с общественностью",{"$f":"MATCH(D552,Отчет!#REF!,0)","v":{"$error":"#REF!"}}]
[1649567019,6,"БРО153",1649552778,"Редин Виталий Вадимович","13151222","Социология массовых коммуникаций",3,"Экзамен","2016/2017 учебный год 2 модуль",null,18,3,1,0,1520829000,2098,"ikPlanned","stCommon","Реклама и связи с общественностью",{"$f":"MATCH(D553,Отчет!#REF!,0)","v":{"$error":"#REF!"}}]
[1649669688,4,"БРО151",1649667663,"Селиверстова Анастасия Алексеевна","13151224","Социология массовых коммуникаций",3,"Экзамен","2016/2017 учебный год 2 модуль",null,12,3,1,0,1520829000,2098,"ikPlanned","stCommon","Реклама и связи с общественностью",{"$f":"MATCH(D554,Отчет!#REF!,0)","v":{"$error":"#REF!"}}]
[1649861492,null,"БРО152",1649860854,"Лебедева Маргарита Станиславовна","12151236","Социология массовых коммуникаций",3,"Экзамен","2016/2017 учебный год 2 модуль",0,0,3,null,0,1520829000,2098,"ikPlanned","stCommon","Реклама и связи с общественностью",{"$f":"MATCH(D555,Отчет!#REF!,0)","v":{"$error":"#REF!"}}]
[1652986308,7,"БРО152",1652970670,"Абрамов Александр Олегович","13151201","Социология массовых коммуникаций",3,"Экзамен","2016/2017 учебный год 2 модуль",null,21,3,1,0,1520829000,2098,"ikPlanned","stCommon","Реклама и связи с общественностью",{"$f":"MATCH(D556,Отчет!#REF!,0)","v":{"$error":"#REF!"}}]
[1653151220,4,"БРО152",1653150908,"Серебрякова Валерия Сергеевна","М141БЭКОН164","Социология массовых коммуникаций",3,"Экзамен","2016/2017 учебный год 2 модуль",null,12,3,1,0,1520829000,2098,"ikPassed","stCommon","Реклама и связи с общественностью",{"$f":"MATCH(D557,Отчет!#REF!,0)","v":{"$error":"#REF!"}}]
[1656185857,7,"БРО152",1656154991,"Чуб Степан Александрович","М151БМНДЖ166","Социология массовых коммуникаций",3,"Экзамен","2016/2017 учебный год 2 модуль",null,21,3,1,0,1520829000,2098,"ikPlanned","stCommon","Реклама и связи с общественностью",{"$f":"MATCH(D558,Отчет!#REF!,0)","v":{"$error":"#REF!"}}]
[1656192104,7,"БРО151",1656174061,"Рашилова Полина Викторовна","М151БЛУЦП091","Социология массовых коммуникаций",3,"Экзамен","2016/2017 учебный год 2 модуль",null,21,3,1,0,1520829000,2098,"ikPlanned","stCommon","Реклама и связи с общественностью",{"$f":"MATCH(D559,Отчет!#REF!,0)","v":{"$error":"#REF!"}}]
[1656197394,3,"БРО151",1656175499,"Молот Ксения Олеговна","М151БЛУЦП073","Социология массовых коммуникаций",3,"Экзамен","2016/2017 учебный год 2 модуль",null,0,3,0,0,1520829000,2098,"ikPlanned","stCommon","Реклама и связи с общественностью",{"$f":"MATCH(D560,Отчет!#REF!,0)","v":{"$error":"#REF!"}}]
[1659806601,9,"БРО153",1656379817,"Коломиец Ольга Андреевна","М151БМНДЖ078","Социология массовых коммуникаций",3,"Экзамен","2016/2017 учебный год 2 модуль",null,27,3,1,0,1520829000,2098,"ikPlanned","stCommon","Реклама и связи с общественностью",{"$f":"MATCH(D561,Отчет!#REF!,0)","v":{"$error":"#REF!"}}]
[1656792335,4,"БРО152",1656791552,"Суркин Константин Сергеевич","101094114","Социология массовых коммуникаций",3,"Экзамен","2016/2017 учебный год 2 модуль",null,12,3,1,0,1520829000,2098,"ikPassed","stCommon","Реклама и связи с общественностью",{"$f":"MATCH(D562,Отчет!#REF!,0)","v":{"$error":"#REF!"}}]
[1663382929,8,"БРО153",1662712925,"Каньшина Елизавета Сергеевна","13103024","Социология массовых коммуникаций",3,"Экзамен","2016/2017 учебный год 2 модуль",null,24,3,1,0,1520829000,2098,"ikPlanned","stCommon","Реклама и связи с общественностью",{"$f":"MATCH(D563,Отчет!#REF!,0)","v":{"$error":"#REF!"}}]
[1667406485,4,"БРО153",1667389090,"Кармазинский Николай Андреевич","М161БРИСО394","Социология массовых коммуникаций",3,"Экзамен","2016/2017 учебный год 2 модуль",null,12,3,1,0,1520829000,2098,"ikPlanned","stCommon","Реклама и связи с общественностью",{"$f":"MATCH(D564,Отчет!#REF!,0)","v":{"$error":"#REF!"}}]
[1580591465,4,"БРО153",1181080622,"Нугуспанова Индира","М151БРИСО075","Социология массовых коммуникаций",3,"Экзамен","2016/2017 учебный год 2 модуль",null,12,3,1,1,1520829000,2098,null,"stCommon","Реклама и связи с общественностью",{"$f":"MATCH(D565,Отчет!#REF!,0)","v":{"$error":"#REF!"}}]
[1580582187,6,"БРО151",1181080646,"Белякова Анастасия","М151БРИСО079","Социология массовых коммуникаций",3,"Экзамен","2016/2017 учебный год 2 модуль",null,18,3,1,1,1520829000,2098,null,"stCommon","Реклама и связи с общественностью",{"$f":"MATCH(D566,Отчет!#REF!,0)","v":{"$error":"#REF!"}}]
[1580589622,null,"БРО152",1181080670,"Чачков Алексей Алексеевич","М151БРИСО083","Социология массовых коммуникаций",3,"Экзамен","2016/2017 учебный год 2 модуль",1,0,3,null,1,1520829000,2098,null,"stCommon","Реклама и связи с общественностью",{"$f":"MATCH(D567,Отчет!#REF!,0)","v":{"$error":"#REF!"}}]
[1580582277,7,"БРО151",1181080708,"Ганиева Карина Туребековна","М151БРИСО081","Социология массовых коммуникаций",3,"Экзамен","2016/2017 учебный год 2 модуль",null,21,3,1,1,1520829000,2098,null,"stCommon","Реклама и связи с общественностью",{"$f":"MATCH(D568,Отчет!#REF!,0)","v":{"$error":"#REF!"}}]
[1580583463,8,"БРО151",1181086716,"Пономарева Елизавета","М151БРИСО077","Социология массовых коммуникаций",3,"Экзамен","2016/2017 учебный год 2 модуль",null,24,3,1,1,1520829000,2098,null,"stCommon","Реклама и связи с общественностью",{"$f":"MATCH(D569,Отчет!#REF!,0)","v":{"$error":"#REF!"}}]
[1580590582,8,"БРО153",1181086733,"Дремлюк Марья","М151БРИСО074","Социология массовых коммуникаций",3,"Экзамен","2016/2017 учебный год 2 модуль",null,24,3,1,1,1520829000,2098,null,"stCommon","Реклама и связи с общественностью",{"$f":"MATCH(D570,Отчет!#REF!,0)","v":{"$error":"#REF!"}}]
[1580582452,5,"БРО151",1181086750,"Даниленко Ярослав","М151БРИСО078","Социология массовых коммуникаций",3,"Экзамен","2016/2017 учебный год 2 модуль",null,15,3,1,1,1520829000,2098,null,"stCommon","Реклама и связи с общественностью",{"$f":"MATCH(D571,Отчет!#REF!,0)","v":{"$error":"#REF!"}}]
[1580587632,6,"БРО152",1181086767,"Мухортова Дарья Александровна","М151БРИСО072","Социология массовых коммуникаций",3,"Экзамен","2016/2017 учебный год 2 модуль",null,18,3,1,1,1520829000,2098,null,"stCommon","Реклама и связи с общественностью",{"$f":"MATCH(D572,Отчет!#REF!,0)","v":{"$error":"#REF!"}}]
[1580591040,7,"БРО153",1181086818,"Кунцевич Мария","М151БРИСО076","Социология массовых коммуникаций",3,"Экзамен","2016/2017 учебный год 2 модуль",null,21,3,1,1,1520829000,2098,null,"stCommon","Реклама и связи с общественностью",{"$f":"MATCH(D573,Отчет!#REF!,0)","v":{"$error":"#REF!"}}]
[1572906323,6,"БРО151",1187793549,"Абдулхакимова Афина Шавкатовна","М151БРИСО084","Социология массовых коммуникаций",3,"Экзамен","2016/2017 учебный год 2 модуль",null,18,3,1,0,1520829000,2098,null,"stCommon","Реклама и связи с общественностью",{"$f":"MATCH(D574,Отчет!#REF!,0)","v":{"$error":"#REF!"}}]
[1580591719,7,"БРО153",1187938514,"Романова Екатерина Сергеевна","М151БРИСО082","Социология массовых коммуникаций",3,"Экзамен","2016/2017 учебный год 2 модуль",null,21,3,1,1,1520829000,2098,null,"stCommon","Реклама и связи с общественностью",{"$f":"MATCH(D575,Отчет!#REF!,0)","v":{"$error":"#REF!"}}]
[1580586994,7,"БРО152",1187938540,"Ковалева Анастасия Романовна","М151БРИСО080","Социология массовых коммуникаций",3,"Экзамен","2016/2017 учебный год 2 модуль",null,21,3,1,1,1520829000,2098,null,"stCommon","Реклама и связи с общественностью",{"$f":"MATCH(D576,Отчет!#REF!,0)","v":{"$error":"#REF!"}}]
[1580582105,7,"БРО151",1192491796,"Бекназарова Комилла Сохибжоновна","М151БРИСО085","Социология массовых коммуникаций",3,"Экзамен","2016/2017 учебный год 2 модуль",null,21,3,1,1,1520829000,2098,null,"stCommon","Реклама и связи с общественностью",{"$f":"MATCH(D577,Отчет!#REF!,0)","v":{"$error":"#REF!"}}]
[1580585579,7,"БРО152",1322382992,"Авилова Виктория Борисовна","131236028","Социология массовых коммуникаций",3,"Экзамен","2016/2017 учебный год 2 модуль",null,21,3,1,0,1520829000,2098,null,"stCommon","Реклама и связи с общественностью",{"$f":"MATCH(D578,Отчет!#REF!,0)","v":{"$error":"#REF!"}}]
[1580586456,4,"БРО152",1396053703,"Громов Максим Сергеевич","М141БФИКЛ012","Социология массовых коммуникаций",3,"Экзамен","2016/2017 учебный год 2 модуль",null,12,3,1,0,1520829000,2098,null,"stCommon","Реклама и связи с общественностью",{"$f":"MATCH(D579,Отчет!#REF!,0)","v":{"$error":"#REF!"}}]
[1580582811,5,"БРО151",1474053891,"Лисина Юлия Андреевна","М151БРИСО086","Социология массовых коммуникаций",3,"Экзамен","2016/2017 учебный год 2 модуль",null,15,3,1,0,1520829000,2098,null,"stCommon","Реклама и связи с общественностью",{"$f":"MATCH(D580,Отчет!#REF!,0)","v":{"$error":"#REF!"}}]
[1580592171,5,"БРО153",1514787326,"Харисов Артур Раоланович","М151БЭКСТ107","Социология массовых коммуникаций",3,"Экзамен","2016/2017 учебный год 2 модуль",null,15,3,1,0,1520829000,2098,null,"stCommon","Реклама и связи с общественностью",{"$f":"MATCH(D581,Отчет!#REF!,0)","v":{"$error":"#REF!"}}]
[1580590365,9,"БРО153",1514792971,"Гридчина Нина Сергеевна","М161БРИСО001","Социология массовых коммуникаций",3,"Экзамен","2016/2017 учебный год 2 модуль",null,27,3,1,0,1520829000,2098,null,"stCommon","Реклама и связи с общественностью",{"$f":"MATCH(D582,Отчет!#REF!,0)","v":{"$error":"#REF!"}}]
[1580590739,7,"БРО153",1514839183,"Жаркова Дарья Андреевна","М151БСОЦЛ040","Социология массовых коммуникаций",3,"Экзамен","2016/2017 учебный год 2 модуль",null,21,3,1,0,1520829000,2098,null,"stCommon","Реклама и связи с общественностью",{"$f":"MATCH(D583,Отчет!#REF!,0)","v":{"$error":"#REF!"}}]
[1580583805,6,"БРО151",1515445555,"Скворцова Елизавета Васильевна","М161БРИСО395","Социология массовых коммуникаций",3,"Экзамен","2016/2017 учебный год 2 модуль",null,18,3,1,0,1520829000,2098,null,"stCommon","Реклама и связи с общественностью",{"$f":"MATCH(D584,Отчет!#REF!,0)","v":{"$error":"#REF!"}}]
[1580581831,5,"БРО151",1515481958,"Бажулич Кристина Джуровна","М151БИНЯЗ017","Социология массовых коммуникаций",3,"Экзамен","2016/2017 учебный год 2 модуль",null,15,3,1,0,1520829000,2098,null,"stCommon","Реклама и связи с общественностью",{"$f":"MATCH(D585,Отчет!#REF!,0)","v":{"$error":"#REF!"}}]
[1580584350,8,"БРО151",1516201234,"Чернышева Юлия Ивановна","М151БЛУЦП132","Социология массовых коммуникаций",3,"Экзамен","2016/2017 учебный год 2 модуль",null,24,3,1,0,1520829000,2098,null,"stCommon","Реклама и связи с общественностью",{"$f":"MATCH(D586,Отчет!#REF!,0)","v":{"$error":"#REF!"}}]
[1580582895,5,"БРО151",1517364590,"Луданова Евгения Александровна","М151БМИЭФ103","Социология массовых коммуникаций",3,"Экзамен","2016/2017 учебный год 2 модуль",null,15,3,1,0,1520829000,2098,null,"stCommon","Реклама и связи с общественностью",{"$f":"MATCH(D587,Отчет!#REF!,0)","v":{"$error":"#REF!"}}]
[1580584267,7,"БРО151",1517365582,"Хохлова Наталия Алексеевна","М151БМИЭФ196","Социология массовых коммуникаций",3,"Экзамен","2016/2017 учебный год 2 модуль",null,21,3,1,0,1520829000,2098,null,"stCommon","Реклама и связи с общественностью",{"$f":"MATCH(D588,Отчет!#REF!,0)","v":{"$error":"#REF!"}}]
[1580589693,6,"БРО152",1517430637,"Шеховцова Елизавета Дмитриевна","М151БИНЯЗ191","Социология массовых коммуникаций",3,"Экзамен","2016/2017 учебный год 2 модуль",null,18,3,1,0,1520829000,2098,null,"stCommon","Реклама и связи с общественностью",{"$f":"MATCH(D589,Отчет!#REF!,0)","v":{"$error":"#REF!"}}]
[1580590897,8,"БРО153",1162402641,"Ковтун Юлия Алексеевна","М151БРИСО023","Социология массовых коммуникаций",3,"Экзамен","2016/2017 учебный год 2 модуль",null,24,3,1,1,1520829000,2098,null,"stCommon","Реклама и связи с общественностью",{"$f":"MATCH(D590,Отчет!#REF!,0)","v":{"$error":"#REF!"}}]
[1580592503,8,"БРО153",1162402673,"Язькова Елизавета Алексеевна","М151БРИСО066","Социология массовых коммуникаций",3,"Экзамен","2016/2017 учебный год 2 модуль",null,24,3,1,1,1520829000,2098,null,"stCommon","Реклама и связи с общественностью",{"$f":"MATCH(D591,Отчет!#REF!,0)","v":{"$error":"#REF!"}}]
[1580591298,9,"БРО153",1162404239,"Мошева Анастасия Олеговна","М151БРИСО034","Социология массовых коммуникаций",3,"Экзамен","2016/2017 учебный год 2 модуль",null,27,3,1,1,1520829000,2098,null,"stCommon","Реклама и связи с общественностью",{"$f":"MATCH(D592,Отчет!#REF!,0)","v":{"$error":"#REF!"}}]
[1580582741,8,"БРО151",1162404267,"Колганова Полина Олеговна","М151БРИСО024","Социология массовых коммуникаций",3,"Экзамен","2016/2017 учебный год 2 модуль",null,24,3,1,0,1520829000,2098,null,"stCommon","Реклама и связи с общественностью",{"$f":"MATCH(D593,Отчет!#REF!,0)","v":{"$error":"#REF!"}}]
[1580583279,9,"БРО151",1162404299,"Панарина Елизавета Сергеевна","М151БРИСО039","Социология массовых коммуникаций",3,"Экзамен","2016/2017 учебный год 2 модуль",null,27,3,1,1,1520829000,2098,null,"stCommon","Реклама и связи с общественностью",{"$f":"MATCH(D594,Отчет!#REF!,0)","v":{"$error":"#REF!"}}]
[1580591793,7,"БРО153",1162404387,"Скворцова Анна Алексеевна","М151БРИСО050","Социология массовых коммуникаций",3,"Экзамен","2016/2017 учебный год 2 модуль",null,21,3,1,0,1520829000,2098,null,"stCommon","Реклама и связи с общественностью",{"$f":"MATCH(D595,Отчет!#REF!,0)","v":{"$error":"#REF!"}}]
[1580583189,8,"БРО151",1162404411,"Надирова Анна Зурабовна","М151БРИСО035","Социология массовых коммуникаций",3,"Экзамен","2016/2017 учебный год 2 модуль",null,24,3,1,0,1520829000,2098,null,"stCommon","Реклама и связи с общественностью",{"$f":"MATCH(D596,Отчет!#REF!,0)","v":{"$error":"#REF!"}}]
[1580586698,8,"БРО152",1162404435,"Захряпина Анастасия Алексеевна","М151БРИСО018","Социология массовых коммуникаций",3,"Экзамен","2016/2017 учебный год 2 модуль",null,24,3,1,0,1520829000,2098,null,"stCommon","Реклама и связи с общественностью",{"$f":"MATCH(D597,Отчет!#REF!,0)","v":{"$error":"#REF!"}}]
[1580588637,8,"БРО152",1162404463,"Радченко Ирина Дмитриевна","М151БРИСО044","Социология массовых коммуникаций",3,"Экзамен","2016/2017 учебный год 2 модуль",null,24,3,1,0,1520829000,2098,null,"stCommon","Реклама и связи с общественностью",{"$f":"MATCH(D598,Отчет!#REF!,0)","v":{"$error":"#REF!"}}]
[1580592427,7,"БРО153",1162404495,"Юрьева Мария Дмитриевна","М151БРИСО065","Социология массовых коммуникаций",3,"Экзамен","2016/2017 учебный год 2 модуль",null,21,3,1,0,1520829000,2098,null,"stCommon","Реклама и связи с общественностью",{"$f":"MATCH(D599,Отчет!#REF!,0)","v":{"$error":"#REF!"}}]
[1580588502,9,"БРО152",1162404529,"Радионова Анна Евгеньевна","М151БРИСО043","Социология массовых коммуникаций",3,"Экзамен","2016/2017 учебный год 2 модуль",null,27,3,1,1,1520829000,2098,null,"stCommon","Реклама и связи с общественностью",{"$f":"MATCH(D600,Отчет!#REF!,0)","v":{"$error":"#REF!"}}]
[1580592340,8,"БРО153",1162404559,"Щелкунов Игорь Владимирович","М151БРИСО064","Социология массовых коммуникаций",3,"Экзамен","2016/2017 учебный год 2 модуль",null,24,3,1,0,1520829000,2098,null,"stCommon","Реклама и связи с общественностью",{"$f":"MATCH(D601,Отчет!#REF!,0)","v":{"$error":"#REF!"}}]
[1580581602,6,"БРО151",1162404590,"Аккалаев Марат Русланович","М151БРИСО002","Социология массовых коммуникаций",3,"Экзамен","2016/2017 учебный год 2 модуль",null,18,3,1,0,1520829000,2098,null,"stCommon","Реклама и связи с общественностью",{"$f":"MATCH(D602,Отчет!#REF!,0)","v":{"$error":"#REF!"}}]
[1580590661,8,"БРО153",1162404615,"Дроздова Елизавета Владимировна","М151БРИСО016","Социология массовых коммуникаций",3,"Экзамен","2016/2017 учебный год 2 модуль",null,24,3,1,0,1520829000,2098,null,"stCommon","Реклама и связи с общественностью",{"$f":"MATCH(D603,Отчет!#REF!,0)","v":{"$error":"#REF!"}}]
[1580587999,7,"БРО152",1162404639,"Полякова Александра Дмитриевна","М151БРИСО041","Социология массовых коммуникаций",3,"Экзамен","2016/2017 учебный год 2 модуль",null,21,3,1,0,1520829000,2098,null,"stCommon","Реклама и связи с общественностью",{"$f":"MATCH(D604,Отчет!#REF!,0)","v":{"$error":"#REF!"}}]
[1580589450,7,"БРО152",1162404671,"Фролов Василий Александрович","М151БРИСО060","Социология массовых коммуникаций",3,"Экзамен","2016/2017 учебный год 2 модуль",null,21,3,1,0,1520829000,2098,null,"stCommon","Реклама и связи с общественностью",{"$f":"MATCH(D605,Отчет!#REF!,0)","v":{"$error":"#REF!"}}]
[1580583079,8,"БРО151",1162404699,"Милова Анастасия Андреевна","М151БРИСО033","Социология массовых коммуникаций",3,"Экзамен","2016/2017 учебный год 2 модуль",null,24,3,1,0,1520829000,2098,null,"stCommon","Реклама и связи с общественностью",{"$f":"MATCH(D606,Отчет!#REF!,0)","v":{"$error":"#REF!"}}]
[1580588762,7,"БРО152",1162404727,"Сак Евгения Леонидовна","М151БРИСО047","Социология массовых коммуникаций",3,"Экзамен","2016/2017 учебный год 2 модуль",null,21,3,1,0,1520829000,2098,null,"stCommon","Реклама и связи с общественностью",{"$f":"MATCH(D607,Отчет!#REF!,0)","v":{"$error":"#REF!"}}]
[1580587775,8,"БРО152",1162404759,"Нафталиева Яна Абрамовна","М151БРИСО036","Социология массовых коммуникаций",3,"Экзамен","2016/2017 учебный год 2 модуль",null,24,3,1,0,1520829000,2098,null,"stCommon","Реклама и связи с общественностью",{"$f":"MATCH(D608,Отчет!#REF!,0)","v":{"$error":"#REF!"}}]
[1580591548,6,"БРО153",1162404783,"Поляков Илья Станиславович","М151БРИСО040","Социология массовых коммуникаций",3,"Экзамен","2016/2017 учебный год 2 модуль",null,18,3,1,0,1520829000,2098,null,"stCommon","Реклама и связи с общественностью",{"$f":"MATCH(D609,Отчет!#REF!,0)","v":{"$error":"#REF!"}}]
[1580589304,3,"БРО152",1162404815,"Тихонина Мария Игоревна","М151БРИСО054","Социология массовых коммуникаций",3,"Экзамен","2016/2017 учебный год 2 модуль",null,0,3,0,0,1520829000,2098,null,"stCommon","Реклама и связи с общественностью",{"$f":"MATCH(D610,Отчет!#REF!,0)","v":{"$error":"#REF!"}}]
[1580582367,8,"БРО151",1162404843,"Даниель Александра Александровна","М151БРИСО014","Социология массовых коммуникаций",3,"Экзамен","2016/2017 учебный год 2 модуль",null,24,3,1,0,1520829000,2098,null,"stCommon","Реклама и связи с общественностью",{"$f":"MATCH(D611,Отчет!#REF!,0)","v":{"$error":"#REF!"}}]
[1580591382,8,"БРО153",1162404875,"Никоненко Анастасия Германовна","М151БРИСО038","Социология массовых коммуникаций",3,"Экзамен","2016/2017 учебный год 2 модуль",null,24,3,1,0,1520829000,2098,null,"stCommon","Реклама и связи с общественностью",{"$f":"MATCH(D612,Отчет!#REF!,0)","v":{"$error":"#REF!"}}]
[1580589379,8,"БРО152",1162404939,"Тузова Евгения Сергеевна","М151БРИСО057","Социология массовых коммуникаций",3,"Экзамен","2016/2017 учебный год 2 модуль",null,24,3,1,0,1520829000,2098,null,"stCommon","Реклама и связи с общественностью",{"$f":"MATCH(D613,Отчет!#REF!,0)","v":{"$error":"#REF!"}}]
[1580582544,8,"БРО151",1162404963,"Ермаков Иван Григорьевич","М151БРИСО017","Социология массовых коммуникаций",3,"Экзамен","2016/2017 учебный год 2 модуль",null,24,3,1,0,1520829000,2098,null,"stCommon","Реклама и связи с общественностью",{"$f":"MATCH(D614,Отчет!#REF!,0)","v":{"$error":"#REF!"}}]
[1580590813,9,"БРО153",1162404995,"Кимлык Мария Андреевна","М151БРИСО022","Социология массовых коммуникаций",3,"Экзамен","2016/2017 учебный год 2 модуль",null,27,3,1,1,1520829000,2098,null,"stCommon","Реклама и связи с общественностью",{"$f":"MATCH(D615,Отчет!#REF!,0)","v":{"$error":"#REF!"}}]
[1580584442,6,"БРО151",1162405311,"Шкляр Даниэль Семенович","М151БРИСО062","Социология массовых коммуникаций",3,"Экзамен","2016/2017 учебный год 2 модуль",null,18,3,1,0,1520829000,2098,null,"stCommon","Реклама и связи с общественностью",{"$f":"MATCH(D616,Отчет!#REF!,0)","v":{"$error":"#REF!"}}]
[1580590295,9,"БРО153",1162405372,"Гранина Дарья Константиновна","М151БРИСО012","Социология массовых коммуникаций",3,"Экзамен","2016/2017 учебный год 2 модуль",null,27,3,1,0,1520829000,2098,null,"stCommon","Реклама и связи с общественностью",{"$f":"MATCH(D617,Отчет!#REF!,0)","v":{"$error":"#REF!"}}]
[1580590071,8,"БРО153",1173924661,"Галкин Вячеслав Владимирович","М151БРИСО070","Социология массовых коммуникаций",3,"Экзамен","2016/2017 учебный год 2 модуль",null,24,3,1,0,1520829000,2098,null,"stCommon","Реклама и связи с общественностью",{"$f":"MATCH(D618,Отчет!#REF!,0)","v":{"$error":"#REF!"}}]
[1580592591,9,"БРО153",1162401104,"Янчева Анастасия Вадимовна","М151БРИСО067","Социология массовых коммуникаций",3,"Экзамен","2016/2017 учебный год 2 модуль",null,27,3,1,1,1520829000,2098,null,"stCommon","Реклама и связи с общественностью",{"$f":"MATCH(D619,Отчет!#REF!,0)","v":{"$error":"#REF!"}}]
[1580583933,9,"БРО151",1162401132,"Смирнова Полина Алексеевна","М151БРИСО052","Социология массовых коммуникаций",3,"Экзамен","2016/2017 учебный год 2 модуль",null,27,3,1,1,1520829000,2098,null,"stCommon","Реклама и связи с общественностью",{"$f":"MATCH(D620,Отчет!#REF!,0)","v":{"$error":"#REF!"}}]
[1580589040,7,"БРО152",1162401164,"Сизова Анна Геннадьевна","М151БРИСО049","Социология массовых коммуникаций",3,"Экзамен","2016/2017 учебный год 2 модуль",null,21,3,1,1,1520829000,2098,null,"stCommon","Реклама и связи с общественностью",{"$f":"MATCH(D621,Отчет!#REF!,0)","v":{"$error":"#REF!"}}]
[1580586083,9,"БРО152",1162401228,"Бешанова Елизавета Вячеславовна","М151БРИСО007","Социология массовых коммуникаций",3,"Экзамен","2016/2017 учебный год 2 модуль",null,27,3,1,1,1520829000,2098,null,"stCommon","Реклама и связи с общественностью",{"$f":"MATCH(D622,Отчет!#REF!,0)","v":{"$error":"#REF!"}}]
[1580587897,9,"БРО152",1162401260,"Никитина Валерия Дмитриевна","М151БРИСО037","Социология массовых коммуникаций",3,"Экзамен","2016/2017 учебный год 2 модуль",null,27,3,1,1,1520829000,2098,null,"stCommon","Реклама и связи с общественностью",{"$f":"MATCH(D623,Отчет!#REF!,0)","v":{"$error":"#REF!"}}]
[1580591206,9,"БРО153",1162401288,"Мельник Алексей Сергеевич","М151БРИСО032","Социология массовых коммуникаций",3,"Экзамен","2016/2017 учебный год 2 модуль",null,27,3,1,1,1520829000,2098,null,"stCommon","Реклама и связи с общественностью",{"$f":"MATCH(D624,Отчет!#REF!,0)","v":{"$error":"#REF!"}}]
[1580587479,10,"БРО152",1162401312,"Ленкуте Алина Максимовна","М151БРИСО029","Социология массовых коммуникаций",3,"Экзамен","2016/2017 учебный год 2 модуль",null,30,3,1,1,1520829000,2098,null,"stCommon","Реклама и связи с общественностью",{"$f":"MATCH(D625,Отчет!#REF!,0)","v":{"$error":"#REF!"}}]
[1580590969,7,"БРО153",1162401344,"Кравчук Кристина Александровна","М151БРИСО026","Социология массовых коммуникаций",3,"Экзамен","2016/2017 учебный год 2 модуль",null,21,3,1,1,1520829000,2098,null,"stCommon","Реклама и связи с общественностью",{"$f":"MATCH(D626,Отчет!#REF!,0)","v":{"$error":"#REF!"}}]
[1580584008,8,"БРО151",1162401376,"Солдатенкова Арина Витальевна","М151БРИСО053","Социология массовых коммуникаций",3,"Экзамен","2016/2017 учебный год 2 модуль",null,24,3,1,1,1520829000,2098,null,"stCommon","Реклама и связи с общественностью",{"$f":"MATCH(D627,Отчет!#REF!,0)","v":{"$error":"#REF!"}}]
[1580585732,7,"БРО152",1162401408,"Астурян Вячеслав Вячеславович","М151БРИСО004","Социология массовых коммуникаций",3,"Экзамен","2016/2017 учебный год 2 модуль",null,21,3,1,1,1520829000,2098,null,"stCommon","Реклама и связи с общественностью",{"$f":"MATCH(D628,Отчет!#REF!,0)","v":{"$error":"#REF!"}}]
[1580590440,8,"БРО153",1162401440,"Гришина Мария Сергеевна","М151БРИСО013","Социология массовых коммуникаций",3,"Экзамен","2016/2017 учебный год 2 модуль",null,24,3,1,1,1520829000,2098,null,"stCommon","Реклама и связи с общественностью",{"$f":"MATCH(D629,Отчет!#REF!,0)","v":{"$error":"#REF!"}}]
[1580592062,7,"БРО153",1162401597,"Толбухина Полина Дмитриевна","М151БРИСО056","Социология массовых коммуникаций",3,"Экзамен","2016/2017 учебный год 2 модуль",null,21,3,1,1,1520829000,2098,null,"stCommon","Реклама и связи с общественностью",{"$f":"MATCH(D630,Отчет!#REF!,0)","v":{"$error":"#REF!"}}]
[1580586338,8,"БРО152",1162401665,"Веряева Ксения Михайловна","М151БРИСО010","Социология массовых коммуникаций",3,"Экзамен","2016/2017 учебный год 2 модуль",null,24,3,1,1,1520829000,2098,null,"stCommon","Реклама и связи с общественностью",{"$f":"MATCH(D631,Отчет!#REF!,0)","v":{"$error":"#REF!"}}]
[1580589985,5,"БРО153",1162401697,"Бисовка Евгений Геннадьевич","М151БРИСО008","Социология массовых коммуникаций",3,"Экзамен","2016/2017 учебный год 2 модуль",null,15,3,1,1,1520829000,2098,null,"stCommon","Реклама и связи с общественностью",{"$f":"MATCH(D632,Отчет!#REF!,0)","v":{"$error":"#REF!"}}]
[1580586841,8,"БРО152",1162401762,"Калабаева Дарья Андреевна","М151БРИСО020","Социология массовых коммуникаций",3,"Экзамен","2016/2017 учебный год 2 модуль",null,24,3,1,1,1520829000,2098,null,"stCommon","Реклама и связи с общественностью",{"$f":"MATCH(D633,Отчет!#REF!,0)","v":{"$error":"#REF!"}}]
[1580586207,9,"БРО152",1162402048,"Богданова Владлена Сергеевна","М151БРИСО009","Социология массовых коммуникаций",3,"Экзамен","2016/2017 учебный год 2 модуль",null,27,3,1,1,1520829000,2098,null,"stCommon","Реклама и связи с общественностью",{"$f":"MATCH(D634,Отчет!#REF!,0)","v":{"$error":"#REF!"}}]
[1580584102,8,"БРО151",1162402075,"Ужегова Полина Александровна","М151БРИСО058","Социология массовых коммуникаций",3,"Экзамен","2016/2017 учебный год 2 модуль",null,24,3,1,1,1520829000,2098,null,"stCommon","Реклама и связи с общественностью",{"$f":"MATCH(D635,Отчет!#REF!,0)","v":{"$error":"#REF!"}}]
[1580591885,9,"БРО153",1162402110,"Сковородина Елизавета Сергеевна","М151БРИСО051","Социология массовых коммуникаций",3,"Экзамен","2016/2017 учебный год 2 модуль",null,27,3,1,1,1520829000,2098,null,"stCommon","Реклама и связи с общественностью",{"$f":"MATCH(D636,Отчет!#REF!,0)","v":{"$error":"#REF!"}}]
[1580582985,10,"БРО151",1162402136,"Мазур Екатерина Сергеевна","М151БРИСО031","Социология массовых коммуникаций",3,"Экзамен","2016/2017 учебный год 2 модуль",null,30,3,1,1,1520829000,2098,null,"stCommon","Реклама и связи с общественностью",{"$f":"MATCH(D637,Отчет!#REF!,0)","v":{"$error":"#REF!"}}]
[1580588898,8,"БРО152",1162402160,"Серегин Геннадий Евгеньевич","М151БРИСО048","Социология массовых коммуникаций",3,"Экзамен","2016/2017 учебный год 2 модуль",null,24,3,1,1,1520829000,2098,null,"stCommon","Реклама и связи с общественностью",{"$f":"MATCH(D638,Отчет!#REF!,0)","v":{"$error":"#REF!"}}]
[1580591123,8,"БРО153",1162402188,"Курганова Диана Андреевна","М151БРИСО028","Социология массовых коммуникаций",3,"Экзамен","2016/2017 учебный год 2 модуль",null,24,3,1,1,1520829000,2098,null,"stCommon","Реклама и связи с общественностью",{"$f":"MATCH(D639,Отчет!#REF!,0)","v":{"$error":"#REF!"}}]
[1580590200,8,"БРО153",1162402220,"Горохова Елизавета Юрьевна","М151БРИСО011","Социология массовых коммуникаций",3,"Экзамен","2016/2017 учебный год 2 модуль",null,24,3,1,1,1520829000,2098,null,"stCommon","Реклама и связи с общественностью",{"$f":"MATCH(D640,Отчет!#REF!,0)","v":{"$error":"#REF!"}}]
[1580588199,9,"БРО152",1162402244,"Попова Диана Александровна","М151БРИСО042","Социология массовых коммуникаций",3,"Экзамен","2016/2017 учебный год 2 модуль",null,27,3,1,1,1520829000,2098,null,"stCommon","Реклама и связи с общественностью",{"$f":"MATCH(D641,Отчет!#REF!,0)","v":{"$error":"#REF!"}}]
[1580592261,9,"БРО153",1162402268,"Шельменкина Карина Сергеевна","М151БРИСО061","Социология массовых коммуникаций",3,"Экзамен","2016/2017 учебный год 2 модуль",null,27,3,1,1,1520829000,2098,null,"stCommon","Реклама и связи с общественностью",{"$f":"MATCH(D642,Отчет!#REF!,0)","v":{"$error":"#REF!"}}]
[1580581990,8,"БРО151",1162402300,"Барыкина Александра Сергеевна","М151БРИСО006","Социология массовых коммуникаций",3,"Экзамен","2016/2017 учебный год 2 модуль",null,24,3,1,1,1520829000,2098,null,"stCommon","Реклама и связи с общественностью",{"$f":"MATCH(D643,Отчет!#REF!,0)","v":{"$error":"#REF!"}}]
[1580582641,9,"БРО151",1162402324,"Казакова Виктория Владимировна","М151БРИСО019","Социология массовых коммуникаций",3,"Экзамен","2016/2017 учебный год 2 модуль",null,27,3,1,1,1520829000,2098,null,"stCommon","Реклама и связи с общественностью",{"$f":"MATCH(D644,Отчет!#REF!,0)","v":{"$error":"#REF!"}}]
[1580587296,10,"БРО152",1162402352,"Криницкая Анастасия Сергеевна","М151БРИСО027","Социология массовых коммуникаций",3,"Экзамен","2016/2017 учебный год 2 модуль",null,30,3,1,1,1520829000,2098,null,"stCommon","Реклама и связи с общественностью",{"$f":"MATCH(D645,Отчет!#REF!,0)","v":{"$error":"#REF!"}}]
[1580583706,9,"БРО151",1162402384,"Садова Анастасия Романовна","М151БРИСО046","Социология массовых коммуникаций",3,"Экзамен","2016/2017 учебный год 2 модуль",null,27,3,1,1,1520829000,2098,null,"stCommon","Реклама и связи с общественностью",{"$f":"MATCH(D646,Отчет!#REF!,0)","v":{"$error":"#REF!"}}]
[1580583583,9,"БРО151",1162402412,"Романовская Алина Андреевна","М151БРИСО045","Социология массовых коммуникаций",3,"Экзамен","2016/2017 учебный год 2 модуль",null,27,3,1,1,1520829000,2098,null,"stCommon","Реклама и связи с общественностью",{"$f":"MATCH(D647,Отчет!#REF!,0)","v":{"$error":"#REF!"}}]
[1580591404,8,"БРО153",1162404875,"Никоненко Анастасия Германовна","М151БРИСО038","Теория государства и права",3,"Экзамен","2016/2017 учебный год 2 модуль",null,24,3,1,0,1520829000,2098,null,"stCommon","Реклама и связи с общественностью",{"$f":"MATCH(D648,Отчет!#REF!,0)","v":{"$error":"#REF!"}}]
[1580589395,null,"БРО152",1162404939,"Тузова Евгения Сергеевна","М151БРИСО057","Теория государства и права",3,"Экзамен","2016/2017 учебный год 2 модуль",1,0,3,null,0,1520829000,2098,null,"stCommon","Реклама и связи с общественностью",{"$f":"MATCH(D649,Отчет!#REF!,0)","v":{"$error":"#REF!"}}]
[1580582562,5,"БРО151",1162404963,"Ермаков Иван Григорьевич","М151БРИСО017","Теория государства и права",3,"Экзамен","2016/2017 учебный год 2 модуль",null,15,3,1,0,1520829000,2098,null,"stCommon","Реклама и связи с общественностью",{"$f":"MATCH(D650,Отчет!#REF!,0)","v":{"$error":"#REF!"}}]
[1580590829,8,"БРО153",1162404995,"Кимлык Мария Андреевна","М151БРИСО022","Теория государства и права",3,"Экзамен","2016/2017 учебный год 2 модуль",null,24,3,1,1,1520829000,2098,null,"stCommon","Реклама и связи с общественностью",{"$f":"MATCH(D651,Отчет!#REF!,0)","v":{"$error":"#REF!"}}]
[1580584463,4,"БРО151",1162405311,"Шкляр Даниэль Семенович","М151БРИСО062","Теория государства и права",3,"Экзамен","2016/2017 учебный год 2 модуль",null,12,3,1,0,1520829000,2098,null,"stCommon","Реклама и связи с общественностью",{"$f":"MATCH(D652,Отчет!#REF!,0)","v":{"$error":"#REF!"}}]
[1580590311,6,"БРО153",1162405372,"Гранина Дарья Константиновна","М151БРИСО012","Теория государства и права",3,"Экзамен","2016/2017 учебный год 2 модуль",null,18,3,1,0,1520829000,2098,null,"stCommon","Реклама и связи с общественностью",{"$f":"MATCH(D653,Отчет!#REF!,0)","v":{"$error":"#REF!"}}]
[1580590091,4,"БРО153",1173924661,"Галкин Вячеслав Владимирович","М151БРИСО070","Теория государства и права",3,"Экзамен","2016/2017 учебный год 2 модуль",null,12,3,1,0,1520829000,2098,null,"stCommon","Реклама и связи с общественностью",{"$f":"MATCH(D654,Отчет!#REF!,0)","v":{"$error":"#REF!"}}]
[1580592612,6,"БРО153",1162401104,"Янчева Анастасия Вадимовна","М151БРИСО067","Теория государства и права",3,"Экзамен","2016/2017 учебный год 2 модуль",null,18,3,1,1,1520829000,2098,null,"stCommon","Реклама и связи с общественностью",{"$f":"MATCH(D655,Отчет!#REF!,0)","v":{"$error":"#REF!"}}]
[1580583949,3,"БРО151",1162401132,"Смирнова Полина Алексеевна","М151БРИСО052","Теория государства и права",3,"Экзамен","2016/2017 учебный год 2 модуль",null,0,3,0,1,1520829000,2098,null,"stCommon","Реклама и связи с общественностью",{"$f":"MATCH(D656,Отчет!#REF!,0)","v":{"$error":"#REF!"}}]
[1580589080,null,"БРО152",1162401164,"Сизова Анна Геннадьевна","М151БРИСО049","Теория государства и права",3,"Экзамен","2016/2017 учебный год 2 модуль",1,0,3,null,1,1520829000,2098,null,"stCommon","Реклама и связи с общественностью",{"$f":"MATCH(D657,Отчет!#REF!,0)","v":{"$error":"#REF!"}}]
[1580586117,9,"БРО152",1162401228,"Бешанова Елизавета Вячеславовна","М151БРИСО007","Теория государства и права",3,"Экзамен","2016/2017 учебный год 2 модуль",null,27,3,1,1,1520829000,2098,null,"stCommon","Реклама и связи с общественностью",{"$f":"MATCH(D658,Отчет!#REF!,0)","v":{"$error":"#REF!"}}]
[1580587921,6,"БРО152",1162401260,"Никитина Валерия Дмитриевна","М151БРИСО037","Теория государства и права",3,"Экзамен","2016/2017 учебный год 2 модуль",null,18,3,1,1,1520829000,2098,null,"stCommon","Реклама и связи с общественностью",{"$f":"MATCH(D659,Отчет!#REF!,0)","v":{"$error":"#REF!"}}]
[1580591226,7,"БРО153",1162401288,"Мельник Алексей Сергеевич","М151БРИСО032","Теория государства и права",3,"Экзамен","2016/2017 учебный год 2 модуль",null,21,3,1,1,1520829000,2098,null,"stCommon","Реклама и связи с общественностью",{"$f":"MATCH(D660,Отчет!#REF!,0)","v":{"$error":"#REF!"}}]
[1580587514,7,"БРО152",1162401312,"Ленкуте Алина Максимовна","М151БРИСО029","Теория государства и права",3,"Экзамен","2016/2017 учебный год 2 модуль",null,21,3,1,1,1520829000,2098,null,"stCommon","Реклама и связи с общественностью",{"$f":"MATCH(D661,Отчет!#REF!,0)","v":{"$error":"#REF!"}}]
[1580590985,6,"БРО153",1162401344,"Кравчук Кристина Александровна","М151БРИСО026","Теория государства и права",3,"Экзамен","2016/2017 учебный год 2 модуль",null,18,3,1,1,1520829000,2098,null,"stCommon","Реклама и связи с общественностью",{"$f":"MATCH(D662,Отчет!#REF!,0)","v":{"$error":"#REF!"}}]
[1580584031,7,"БРО151",1162401376,"Солдатенкова Арина Витальевна","М151БРИСО053","Теория государства и права",3,"Экзамен","2016/2017 учебный год 2 модуль",null,21,3,1,1,1520829000,2098,null,"stCommon","Реклама и связи с общественностью",{"$f":"MATCH(D663,Отчет!#REF!,0)","v":{"$error":"#REF!"}}]
[1580585779,6,"БРО152",1162401408,"Астурян Вячеслав Вячеславович","М151БРИСО004","Теория государства и права",3,"Экзамен","2016/2017 учебный год 2 модуль",null,18,3,1,1,1520829000,2098,null,"stCommon","Реклама и связи с общественностью",{"$f":"MATCH(D664,Отчет!#REF!,0)","v":{"$error":"#REF!"}}]
[1580590456,5,"БРО153",1162401440,"Гришина Мария Сергеевна","М151БРИСО013","Теория государства и права",3,"Экзамен","2016/2017 учебный год 2 модуль",null,15,3,1,1,1520829000,2098,null,"stCommon","Реклама и связи с общественностью",{"$f":"MATCH(D665,Отчет!#REF!,0)","v":{"$error":"#REF!"}}]
[1580592085,6,"БРО153",1162401597,"Толбухина Полина Дмитриевна","М151БРИСО056","Теория государства и права",3,"Экзамен","2016/2017 учебный год 2 модуль",null,18,3,1,1,1520829000,2098,null,"stCommon","Реклама и связи с общественностью",{"$f":"MATCH(D666,Отчет!#REF!,0)","v":{"$error":"#REF!"}}]
[1580586370,6,"БРО152",1162401665,"Веряева Ксения Михайловна","М151БРИСО010","Теория государства и права",3,"Экзамен","2016/2017 учебный год 2 модуль",null,18,3,1,1,1520829000,2098,null,"stCommon","Реклама и связи с общественностью",{"$f":"MATCH(D667,Отчет!#REF!,0)","v":{"$error":"#REF!"}}]
[1580590004,6,"БРО153",1162401697,"Бисовка Евгений Геннадьевич","М151БРИСО008","Теория государства и права",3,"Экзамен","2016/2017 учебный год 2 модуль",null,18,3,1,1,1520829000,2098,null,"stCommon","Реклама и связи с общественностью",{"$f":"MATCH(D668,Отчет!#REF!,0)","v":{"$error":"#REF!"}}]
[1580586878,8,"БРО152",1162401762,"Калабаева Дарья Андреевна","М151БРИСО020","Теория государства и права",3,"Экзамен","2016/2017 учебный год 2 модуль",null,24,3,1,1,1520829000,2098,null,"stCommon","Реклама и связи с общественностью",{"$f":"MATCH(D669,Отчет!#REF!,0)","v":{"$error":"#REF!"}}]
[1580586235,8,"БРО152",1162402048,"Богданова Владлена Сергеевна","М151БРИСО009","Теория государства и права",3,"Экзамен","2016/2017 учебный год 2 модуль",null,24,3,1,1,1520829000,2098,null,"stCommon","Реклама и связи с общественностью",{"$f":"MATCH(D670,Отчет!#REF!,0)","v":{"$error":"#REF!"}}]
[1580584118,8,"БРО151",1162402075,"Ужегова Полина Александровна","М151БРИСО058","Теория государства и права",3,"Экзамен","2016/2017 учебный год 2 модуль",null,24,3,1,1,1520829000,2098,null,"stCommon","Реклама и связи с общественностью",{"$f":"MATCH(D671,Отчет!#REF!,0)","v":{"$error":"#REF!"}}]
[1580591905,8,"БРО153",1162402110,"Сковородина Елизавета Сергеевна","М151БРИСО051","Теория государства и права",3,"Экзамен","2016/2017 учебный год 2 модуль",null,24,3,1,1,1520829000,2098,null,"stCommon","Реклама и связи с общественностью",{"$f":"MATCH(D672,Отчет!#REF!,0)","v":{"$error":"#REF!"}}]
[1580583009,9,"БРО151",1162402136,"Мазур Екатерина Сергеевна","М151БРИСО031","Теория государства и права",3,"Экзамен","2016/2017 учебный год 2 модуль",null,27,3,1,1,1520829000,2098,null,"stCommon","Реклама и связи с общественностью",{"$f":"MATCH(D673,Отчет!#REF!,0)","v":{"$error":"#REF!"}}]
[1580588928,9,"БРО152",1162402160,"Серегин Геннадий Евгеньевич","М151БРИСО048","Теория государства и права",3,"Экзамен","2016/2017 учебный год 2 модуль",null,27,3,1,1,1520829000,2098,null,"stCommon","Реклама и связи с общественностью",{"$f":"MATCH(D674,Отчет!#REF!,0)","v":{"$error":"#REF!"}}]
[1580591139,7,"БРО153",1162402188,"Курганова Диана Андреевна","М151БРИСО028","Теория государства и права",3,"Экзамен","2016/2017 учебный год 2 модуль",null,21,3,1,1,1520829000,2098,null,"stCommon","Реклама и связи с общественностью",{"$f":"MATCH(D675,Отчет!#REF!,0)","v":{"$error":"#REF!"}}]
[1580590223,7,"БРО153",1162402220,"Горохова Елизавета Юрьевна","М151БРИСО011","Теория государства и права",3,"Экзамен","2016/2017 учебный год 2 модуль",null,21,3,1,1,1520829000,2098,null,"stCommon","Реклама и связи с общественностью",{"$f":"MATCH(D676,Отчет!#REF!,0)","v":{"$error":"#REF!"}}]
[1580588375,8,"БРО152",1162402244,"Попова Диана Александровна","М151БРИСО042","Теория государства и права",3,"Экзамен","2016/2017 учебный год 2 модуль",null,24,3,1,1,1520829000,2098,null,"stCommon","Реклама и связи с общественностью",{"$f":"MATCH(D677,Отчет!#REF!,0)","v":{"$error":"#REF!"}}]
[1580592284,6,"БРО153",1162402268,"Шельменкина Карина Сергеевна","М151БРИСО061","Теория государства и права",3,"Экзамен","2016/2017 учебный год 2 модуль",null,18,3,1,1,1520829000,2098,null,"stCommon","Реклама и связи с общественностью",{"$f":"MATCH(D678,Отчет!#REF!,0)","v":{"$error":"#REF!"}}]
[1580582023,3,"БРО151",1162402300,"Барыкина Александра Сергеевна","М151БРИСО006","Теория государства и права",3,"Экзамен","2016/2017 учебный год 2 модуль",null,0,3,0,1,1520829000,2098,null,"stCommon","Реклама и связи с общественностью",{"$f":"MATCH(D679,Отчет!#REF!,0)","v":{"$error":"#REF!"}}]
[1580582670,8,"БРО151",1162402324,"Казакова Виктория Владимировна","М151БРИСО019","Теория государства и права",3,"Экзамен","2016/2017 учебный год 2 модуль",null,24,3,1,1,1520829000,2098,null,"stCommon","Реклама и связи с общественностью",{"$f":"MATCH(D680,Отчет!#REF!,0)","v":{"$error":"#REF!"}}]
[1580587344,8,"БРО152",1162402352,"Криницкая Анастасия Сергеевна","М151БРИСО027","Теория государства и права",3,"Экзамен","2016/2017 учебный год 2 модуль",null,24,3,1,1,1520829000,2098,null,"stCommon","Реклама и связи с общественностью",{"$f":"MATCH(D681,Отчет!#REF!,0)","v":{"$error":"#REF!"}}]
[1580583725,8,"БРО151",1162402384,"Садова Анастасия Романовна","М151БРИСО046","Теория государства и права",3,"Экзамен","2016/2017 учебный год 2 модуль",null,24,3,1,1,1520829000,2098,null,"stCommon","Реклама и связи с общественностью",{"$f":"MATCH(D682,Отчет!#REF!,0)","v":{"$error":"#REF!"}}]
[1580586608,9,"БРО152",1517704476,"Жарикова Анастасия Владимировна","М151БМНДЖ057","Теория государства и права",3,"Экзамен","2016/2017 учебный год 2 модуль",null,27,3,1,0,1520829000,2098,null,"stCommon","Реклама и связи с общественностью",{"$f":"MATCH(D683,Отчет!#REF!,0)","v":{"$error":"#REF!"}}]
[1580585512,1,"БРО152",1518721225,"Авдонина Дарья Романовна","М141БЖУРН001","Теория государства и права",3,"Экзамен","2016/2017 учебный год 2 модуль",null,0,3,0,0,1520829000,2098,null,"stCommon","Реклама и связи с общественностью",{"$f":"MATCH(D684,Отчет!#REF!,0)","v":{"$error":"#REF!"}}]
[1580592721,6,"БРО153",1519084812,"Яснева Екатерина Андреевна","М161БРИСО003","Теория государства и права",3,"Экзамен","2016/2017 учебный год 2 модуль",null,18,3,1,0,1520829000,2098,null,"stCommon","Реклама и связи с общественностью",{"$f":"MATCH(D685,Отчет!#REF!,0)","v":{"$error":"#REF!"}}]
[1580581777,2,"БРО151",1520873492,"Арчакова Александра Ивановна","М151БИНЯЗ013","Теория государства и права",3,"Экзамен","2016/2017 учебный год 2 модуль",null,0,3,0,0,1520829000,2098,"ikPlanned","stCommon","Реклама и связи с общественностью",{"$f":"MATCH(D686,Отчет!#REF!,0)","v":{"$error":"#REF!"}}]
[1649567039,4,"БРО153",1649552778,"Редин Виталий Вадимович","13151222","Теория государства и права",3,"Экзамен","2016/2017 учебный год 2 модуль",null,12,3,1,0,1520829000,2098,"ikPlanned","stCommon","Реклама и связи с общественностью",{"$f":"MATCH(D687,Отчет!#REF!,0)","v":{"$error":"#REF!"}}]
[1649669725,4,"БРО151",1649667663,"Селиверстова Анастасия Алексеевна","13151224","Теория государства и права",3,"Экзамен","2016/2017 учебный год 2 модуль",null,12,3,1,0,1520829000,2098,"ikPassed","stCommon","Реклама и связи с общественностью",{"$f":"MATCH(D688,Отчет!#REF!,0)","v":{"$error":"#REF!"}}]
[1649861516,null,"БРО152",1649860854,"Лебедева Маргарита Станиславовна","12151236","Теория государства и права",3,"Экзамен","2016/2017 учебный год 2 модуль",0,0,3,null,0,1520829000,2098,"ikPlanned","stCommon","Реклама и связи с общественностью",{"$f":"MATCH(D689,Отчет!#REF!,0)","v":{"$error":"#REF!"}}]
[1652986330,5,"БРО152",1652970670,"Абрамов Александр Олегович","13151201","Теория государства и права",3,"Экзамен","2016/2017 учебный год 2 модуль",null,15,3,1,0,1520829000,2098,"ikPlanned","stCommon","Реклама и связи с общественностью",{"$f":"MATCH(D690,Отчет!#REF!,0)","v":{"$error":"#REF!"}}]
[1653151249,2,"БРО152",1653150908,"Серебрякова Валерия Сергеевна","М141БЭКОН164","Теория государства и права",3,"Экзамен","2016/2017 учебный год 2 модуль",null,0,3,0,0,1520829000,2098,"ikPlanned","stCommon","Реклама и связи с общественностью",{"$f":"MATCH(D691,Отчет!#REF!,0)","v":{"$error":"#REF!"}}]
[1656192157,10,"БРО151",1656174061,"Рашилова Полина Викторовна","М151БЛУЦП091","Теория государства и права",3,"Экзамен","2016/2017 учебный год 2 модуль",null,30,3,1,0,1520829000,2098,"ikPassed","stCommon","Реклама и связи с общественностью",{"$f":"MATCH(D692,Отчет!#REF!,0)","v":{"$error":"#REF!"}}]
[1656197434,9,"БРО151",1656175499,"Молот Ксения Олеговна","М151БЛУЦП073","Теория государства и права",3,"Экзамен","2016/2017 учебный год 2 модуль",null,27,3,1,0,1520829000,2098,"ikPassed","stCommon","Реклама и связи с общественностью",{"$f":"MATCH(D693,Отчет!#REF!,0)","v":{"$error":"#REF!"}}]
[1656792363,6,"БРО152",1656791552,"Суркин Константин Сергеевич","101094114","Теория государства и права",3,"Экзамен","2016/2017 учебный год 2 модуль",null,18,3,1,0,1520829000,2098,"ikPlanned","stCommon","Реклама и связи с общественностью",{"$f":"MATCH(D694,Отчет!#REF!,0)","v":{"$error":"#REF!"}}]
[1663382992,null,"БРО153",1662712925,"Каньшина Елизавета Сергеевна","13103024","Теория государства и права",3,"Экзамен","2016/2017 учебный год 2 модуль",1,0,3,null,0,1520829000,2098,"ikPlanned","stCommon","Реклама и связи с общественностью",{"$f":"MATCH(D695,Отчет!#REF!,0)","v":{"$error":"#REF!"}}]
[1667406535,3,"БРО153",1667389090,"Кармазинский Николай Андреевич","М161БРИСО394","Теория государства и права",3,"Экзамен","2016/2017 учебный год 2 модуль",null,0,3,0,0,1520829000,2098,"ikPlanned","stCommon","Реклама и связи с общественностью",{"$f":"MATCH(D696,Отчет!#REF!,0)","v":{"$error":"#REF!"}}]
[1580591481,5,"БРО153",1181080622,"Нугуспанова Индира","М151БРИСО075","Теория государства и права",3,"Экзамен","2016/2017 учебный год 2 модуль",null,15,3,1,1,1520829000,2098,null,"stCommon","Реклама и связи с общественностью",{"$f":"MATCH(D697,Отчет!#REF!,0)","v":{"$error":"#REF!"}}]
[1580582208,4,"БРО151",1181080646,"Белякова Анастасия","М151БРИСО079","Теория государства и права",3,"Экзамен","2016/2017 учебный год 2 модуль",null,12,3,1,1,1520829000,2098,null,"stCommon","Реклама и связи с общественностью",{"$f":"MATCH(D698,Отчет!#REF!,0)","v":{"$error":"#REF!"}}]
[1580589639,null,"БРО152",1181080670,"Чачков Алексей Алексеевич","М151БРИСО083","Теория государства и права",3,"Экзамен","2016/2017 учебный год 2 модуль",1,0,3,null,1,1520829000,2098,null,"stCommon","Реклама и связи с общественностью",{"$f":"MATCH(D699,Отчет!#REF!,0)","v":{"$error":"#REF!"}}]
[1580582297,3,"БРО151",1181080708,"Ганиева Карина Туребековна","М151БРИСО081","Теория государства и права",3,"Экзамен","2016/2017 учебный год 2 модуль",null,0,3,0,1,1520829000,2098,null,"stCommon","Реклама и связи с общественностью",{"$f":"MATCH(D700,Отчет!#REF!,0)","v":{"$error":"#REF!"}}]
[1580583488,7,"БРО151",1181086716,"Пономарева Елизавета","М151БРИСО077","Теория государства и права",3,"Экзамен","2016/2017 учебный год 2 модуль",null,21,3,1,1,1520829000,2098,null,"stCommon","Реклама и связи с общественностью",{"$f":"MATCH(D701,Отчет!#REF!,0)","v":{"$error":"#REF!"}}]
[1580590598,6,"БРО153",1181086733,"Дремлюк Марья","М151БРИСО074","Теория государства и права",3,"Экзамен","2016/2017 учебный год 2 модуль",null,18,3,1,1,1520829000,2098,null,"stCommon","Реклама и связи с общественностью",{"$f":"MATCH(D702,Отчет!#REF!,0)","v":{"$error":"#REF!"}}]
[1580582470,1,"БРО151",1181086750,"Даниленко Ярослав","М151БРИСО078","Теория государства и права",3,"Экзамен","2016/2017 учебный год 2 модуль",null,0,3,0,1,1520829000,2098,null,"stCommon","Реклама и связи с общественностью",{"$f":"MATCH(D703,Отчет!#REF!,0)","v":{"$error":"#REF!"}}]
[1580587664,4,"БРО152",1181086767,"Мухортова Дарья Александровна","М151БРИСО072","Теория государства и права",3,"Экзамен","2016/2017 учебный год 2 модуль",null,12,3,1,1,1520829000,2098,null,"stCommon","Реклама и связи с общественностью",{"$f":"MATCH(D704,Отчет!#REF!,0)","v":{"$error":"#REF!"}}]
[1580591063,6,"БРО153",1181086818,"Кунцевич Мария","М151БРИСО076","Теория государства и права",3,"Экзамен","2016/2017 учебный год 2 модуль",null,18,3,1,1,1520829000,2098,null,"stCommon","Реклама и связи с общественностью",{"$f":"MATCH(D705,Отчет!#REF!,0)","v":{"$error":"#REF!"}}]
[1572906342,3,"БРО151",1187793549,"Абдулхакимова Афина Шавкатовна","М151БРИСО084","Теория государства и права",3,"Экзамен","2016/2017 учебный год 2 модуль",null,0,3,0,0,1520829000,2098,null,"stCommon","Реклама и связи с общественностью",{"$f":"MATCH(D706,Отчет!#REF!,0)","v":{"$error":"#REF!"}}]
[1580591735,6,"БРО153",1187938514,"Романова Екатерина Сергеевна","М151БРИСО082","Теория государства и права",3,"Экзамен","2016/2017 учебный год 2 модуль",null,18,3,1,1,1520829000,2098,null,"stCommon","Реклама и связи с общественностью",{"$f":"MATCH(D707,Отчет!#REF!,0)","v":{"$error":"#REF!"}}]
[1580587020,6,"БРО152",1187938540,"Ковалева Анастасия Романовна","М151БРИСО080","Теория государства и права",3,"Экзамен","2016/2017 учебный год 2 модуль",null,18,3,1,1,1520829000,2098,null,"stCommon","Реклама и связи с общественностью",{"$f":"MATCH(D708,Отчет!#REF!,0)","v":{"$error":"#REF!"}}]
[1580582121,6,"БРО151",1192491796,"Бекназарова Комилла Сохибжоновна","М151БРИСО085","Теория государства и права",3,"Экзамен","2016/2017 учебный год 2 модуль",null,18,3,1,1,1520829000,2098,null,"stCommon","Реклама и связи с общественностью",{"$f":"MATCH(D709,Отчет!#REF!,0)","v":{"$error":"#REF!"}}]
[1580585608,4,"БРО152",1322382992,"Авилова Виктория Борисовна","131236028","Теория государства и права",3,"Экзамен","2016/2017 учебный год 2 модуль",null,12,3,1,0,1520829000,2098,null,"stCommon","Реклама и связи с общественностью",{"$f":"MATCH(D710,Отчет!#REF!,0)","v":{"$error":"#REF!"}}]
[1580586484,4,"БРО152",1396053703,"Громов Максим Сергеевич","М141БФИКЛ012","Теория государства и права",3,"Экзамен","2016/2017 учебный год 2 модуль",null,12,3,1,0,1520829000,2098,null,"stCommon","Реклама и связи с общественностью",{"$f":"MATCH(D711,Отчет!#REF!,0)","v":{"$error":"#REF!"}}]
[1580582829,null,"БРО151",1474053891,"Лисина Юлия Андреевна","М151БРИСО086","Теория государства и права",3,"Экзамен","2016/2017 учебный год 2 модуль",0,0,3,null,0,1520829000,2098,null,"stCommon","Реклама и связи с общественностью",{"$f":"MATCH(D712,Отчет!#REF!,0)","v":{"$error":"#REF!"}}]
[1580592190,3,"БРО153",1514787326,"Харисов Артур Раоланович","М151БЭКСТ107","Теория государства и права",3,"Экзамен","2016/2017 учебный год 2 модуль",null,0,3,0,0,1520829000,2098,null,"stCommon","Реклама и связи с общественностью",{"$f":"MATCH(D713,Отчет!#REF!,0)","v":{"$error":"#REF!"}}]
[1580590381,8,"БРО153",1514792971,"Гридчина Нина Сергеевна","М161БРИСО001","Теория государства и права",3,"Экзамен","2016/2017 учебный год 2 модуль",null,24,3,1,0,1520829000,2098,null,"stCommon","Реклама и связи с общественностью",{"$f":"MATCH(D714,Отчет!#REF!,0)","v":{"$error":"#REF!"}}]
[1580590759,6,"БРО153",1514839183,"Жаркова Дарья Андреевна","М151БСОЦЛ040","Теория государства и права",3,"Экзамен","2016/2017 учебный год 2 модуль",null,18,3,1,0,1520829000,2098,null,"stCommon","Реклама и связи с общественностью",{"$f":"MATCH(D715,Отчет!#REF!,0)","v":{"$error":"#REF!"}}]
[1580583827,6,"БРО151",1515445555,"Скворцова Елизавета Васильевна","М161БРИСО395","Теория государства и права",3,"Экзамен","2016/2017 учебный год 2 модуль",null,18,3,1,0,1520829000,2098,null,"stCommon","Реклама и связи с общественностью",{"$f":"MATCH(D716,Отчет!#REF!,0)","v":{"$error":"#REF!"}}]
[1580581847,6,"БРО151",1515481958,"Бажулич Кристина Джуровна","М151БИНЯЗ017","Теория государства и права",3,"Экзамен","2016/2017 учебный год 2 модуль",null,18,3,1,0,1520829000,2098,null,"stCommon","Реклама и связи с общественностью",{"$f":"MATCH(D717,Отчет!#REF!,0)","v":{"$error":"#REF!"}}]
[1580584371,7,"БРО151",1516201234,"Чернышева Юлия Ивановна","М151БЛУЦП132","Теория государства и права",3,"Экзамен","2016/2017 учебный год 2 модуль",null,21,3,1,0,1520829000,2098,null,"stCommon","Реклама и связи с общественностью",{"$f":"MATCH(D718,Отчет!#REF!,0)","v":{"$error":"#REF!"}}]
[1580582917,3,"БРО151",1517364590,"Луданова Евгения Александровна","М151БМИЭФ103","Теория государства и права",3,"Экзамен","2016/2017 учебный год 2 модуль",null,0,3,0,0,1520829000,2098,null,"stCommon","Реклама и связи с общественностью",{"$f":"MATCH(D719,Отчет!#REF!,0)","v":{"$error":"#REF!"}}]
[1580584285,5,"БРО151",1517365582,"Хохлова Наталия Алексеевна","М151БМИЭФ196","Теория государства и права",3,"Экзамен","2016/2017 учебный год 2 модуль",null,15,3,1,0,1520829000,2098,null,"stCommon","Реклама и связи с общественностью",{"$f":"MATCH(D720,Отчет!#REF!,0)","v":{"$error":"#REF!"}}]
[1580589709,5,"БРО152",1517430637,"Шеховцова Елизавета Дмитриевна","М151БИНЯЗ191","Теория государства и права",3,"Экзамен","2016/2017 учебный год 2 модуль",null,15,3,1,0,1520829000,2098,null,"stCommon","Реклама и связи с общественностью",{"$f":"MATCH(D721,Отчет!#REF!,0)","v":{"$error":"#REF!"}}]
[1580583617,6,"БРО151",1162402412,"Романовская Алина Андреевна","М151БРИСО045","Теория государства и права",3,"Экзамен","2016/2017 учебный год 2 модуль",null,18,3,1,1,1520829000,2098,null,"stCommon","Реклама и связи с общественностью",{"$f":"MATCH(D722,Отчет!#REF!,0)","v":{"$error":"#REF!"}}]
[1580590914,3,"БРО153",1162402641,"Ковтун Юлия Алексеевна","М151БРИСО023","Теория государства и права",3,"Экзамен","2016/2017 учебный год 2 модуль",null,0,3,0,1,1520829000,2098,null,"stCommon","Реклама и связи с общественностью",{"$f":"MATCH(D723,Отчет!#REF!,0)","v":{"$error":"#REF!"}}]
[1580592520,7,"БРО153",1162402673,"Язькова Елизавета Алексеевна","М151БРИСО066","Теория государства и права",3,"Экзамен","2016/2017 учебный год 2 модуль",null,21,3,1,1,1520829000,2098,null,"stCommon","Реклама и связи с общественностью",{"$f":"MATCH(D724,Отчет!#REF!,0)","v":{"$error":"#REF!"}}]
[1580591318,6,"БРО153",1162404239,"Мошева Анастасия Олеговна","М151БРИСО034","Теория государства и права",3,"Экзамен","2016/2017 учебный год 2 модуль",null,18,3,1,1,1520829000,2098,null,"stCommon","Реклама и связи с общественностью",{"$f":"MATCH(D725,Отчет!#REF!,0)","v":{"$error":"#REF!"}}]
[1580582757,7,"БРО151",1162404267,"Колганова Полина Олеговна","М151БРИСО024","Теория государства и права",3,"Экзамен","2016/2017 учебный год 2 модуль",null,21,3,1,0,1520829000,2098,null,"stCommon","Реклама и связи с общественностью",{"$f":"MATCH(D726,Отчет!#REF!,0)","v":{"$error":"#REF!"}}]
[1580583300,6,"БРО151",1162404299,"Панарина Елизавета Сергеевна","М151БРИСО039","Теория государства и права",3,"Экзамен","2016/2017 учебный год 2 модуль",null,18,3,1,1,1520829000,2098,null,"stCommon","Реклама и связи с общественностью",{"$f":"MATCH(D727,Отчет!#REF!,0)","v":{"$error":"#REF!"}}]
[1580591814,8,"БРО153",1162404387,"Скворцова Анна Алексеевна","М151БРИСО050","Теория государства и права",3,"Экзамен","2016/2017 учебный год 2 модуль",null,24,3,1,0,1520829000,2098,null,"stCommon","Реклама и связи с общественностью",{"$f":"MATCH(D728,Отчет!#REF!,0)","v":{"$error":"#REF!"}}]
[1580583210,5,"БРО151",1162404411,"Надирова Анна Зурабовна","М151БРИСО035","Теория государства и права",3,"Экзамен","2016/2017 учебный год 2 модуль",null,15,3,1,0,1520829000,2098,null,"stCommon","Реклама и связи с общественностью",{"$f":"MATCH(D729,Отчет!#REF!,0)","v":{"$error":"#REF!"}}]
[1580586729,4,"БРО152",1162404435,"Захряпина Анастасия Алексеевна","М151БРИСО018","Теория государства и права",3,"Экзамен","2016/2017 учебный год 2 модуль",null,12,3,1,0,1520829000,2098,null,"stCommon","Реклама и связи с общественностью",{"$f":"MATCH(D730,Отчет!#REF!,0)","v":{"$error":"#REF!"}}]
[1580588662,6,"БРО152",1162404463,"Радченко Ирина Дмитриевна","М151БРИСО044","Теория государства и права",3,"Экзамен","2016/2017 учебный год 2 модуль",null,18,3,1,0,1520829000,2098,null,"stCommon","Реклама и связи с общественностью",{"$f":"MATCH(D731,Отчет!#REF!,0)","v":{"$error":"#REF!"}}]
[1580592443,7,"БРО153",1162404495,"Юрьева Мария Дмитриевна","М151БРИСО065","Теория государства и права",3,"Экзамен","2016/2017 учебный год 2 модуль",null,21,3,1,0,1520829000,2098,null,"stCommon","Реклама и связи с общественностью",{"$f":"MATCH(D732,Отчет!#REF!,0)","v":{"$error":"#REF!"}}]
[1580588540,8,"БРО152",1162404529,"Радионова Анна Евгеньевна","М151БРИСО043","Теория государства и права",3,"Экзамен","2016/2017 учебный год 2 модуль",null,24,3,1,1,1520829000,2098,null,"stCommon","Реклама и связи с общественностью",{"$f":"MATCH(D733,Отчет!#REF!,0)","v":{"$error":"#REF!"}}]
[1580592359,7,"БРО153",1162404559,"Щелкунов Игорь Владимирович","М151БРИСО064","Теория государства и права",3,"Экзамен","2016/2017 учебный год 2 модуль",null,21,3,1,0,1520829000,2098,null,"stCommon","Реклама и связи с общественностью",{"$f":"MATCH(D734,Отчет!#REF!,0)","v":{"$error":"#REF!"}}]
[1580581624,6,"БРО151",1162404590,"Аккалаев Марат Русланович","М151БРИСО002","Теория государства и права",3,"Экзамен","2016/2017 учебный год 2 модуль",null,18,3,1,0,1520829000,2098,null,"stCommon","Реклама и связи с общественностью",{"$f":"MATCH(D735,Отчет!#REF!,0)","v":{"$error":"#REF!"}}]
[1580590679,7,"БРО153",1162404615,"Дроздова Елизавета Владимировна","М151БРИСО016","Теория государства и права",3,"Экзамен","2016/2017 учебный год 2 модуль",null,21,3,1,0,1520829000,2098,null,"stCommon","Реклама и связи с общественностью",{"$f":"MATCH(D736,Отчет!#REF!,0)","v":{"$error":"#REF!"}}]
[1580588023,7,"БРО152",1162404639,"Полякова Александра Дмитриевна","М151БРИСО041","Теория государства и права",3,"Экзамен","2016/2017 учебный год 2 модуль",null,21,3,1,0,1520829000,2098,null,"stCommon","Реклама и связи с общественностью",{"$f":"MATCH(D737,Отчет!#REF!,0)","v":{"$error":"#REF!"}}]
[1580589469,6,"БРО152",1162404671,"Фролов Василий Александрович","М151БРИСО060","Теория государства и права",3,"Экзамен","2016/2017 учебный год 2 модуль",null,18,3,1,0,1520829000,2098,null,"stCommon","Реклама и связи с общественностью",{"$f":"MATCH(D738,Отчет!#REF!,0)","v":{"$error":"#REF!"}}]
[1580583107,6,"БРО151",1162404699,"Милова Анастасия Андреевна","М151БРИСО033","Теория государства и права",3,"Экзамен","2016/2017 учебный год 2 модуль",null,18,3,1,0,1520829000,2098,null,"stCommon","Реклама и связи с общественностью",{"$f":"MATCH(D739,Отчет!#REF!,0)","v":{"$error":"#REF!"}}]
[1580588787,5,"БРО152",1162404727,"Сак Евгения Леонидовна","М151БРИСО047","Теория государства и права",3,"Экзамен","2016/2017 учебный год 2 модуль",null,15,3,1,0,1520829000,2098,null,"stCommon","Реклама и связи с общественностью",{"$f":"MATCH(D740,Отчет!#REF!,0)","v":{"$error":"#REF!"}}]
[1580587799,null,"БРО152",1162404759,"Нафталиева Яна Абрамовна","М151БРИСО036","Теория государства и права",3,"Экзамен","2016/2017 учебный год 2 модуль",1,0,3,null,0,1520829000,2098,null,"stCommon","Реклама и связи с общественностью",{"$f":"MATCH(D741,Отчет!#REF!,0)","v":{"$error":"#REF!"}}]
[1580591566,6,"БРО153",1162404783,"Поляков Илья Станиславович","М151БРИСО040","Теория государства и права",3,"Экзамен","2016/2017 учебный год 2 модуль",null,18,3,1,0,1520829000,2098,null,"stCommon","Реклама и связи с общественностью",{"$f":"MATCH(D742,Отчет!#REF!,0)","v":{"$error":"#REF!"}}]
[1580589320,3,"БРО152",1162404815,"Тихонина Мария Игоревна","М151БРИСО054","Теория государства и права",3,"Экзамен","2016/2017 учебный год 2 модуль",null,0,3,0,0,1520829000,2098,null,"stCommon","Реклама и связи с общественностью",{"$f":"MATCH(D743,Отчет!#REF!,0)","v":{"$error":"#REF!"}}]
[1580582388,7,"БРО151",1162404843,"Даниель Александра Александровна","М151БРИСО014","Теория государства и права",3,"Экзамен","2016/2017 учебный год 2 модуль",null,21,3,1,0,1520829000,2098,null,"stCommon","Реклама и связи с общественностью",{"$f":"MATCH(D744,Отчет!#REF!,0)","v":{"$error":"#REF!"}}]
[1659806646,8,"БРО153",1656379817,"Коломиец Ольга Андреевна","М151БМНДЖ078","Теория государства и права",4,"Экзамен","2016/2017 учебный год 2 модуль",null,32,3,1,0,1520829000,2098,"ikPassed","stCommon","Реклама и связи с общественностью",{"$f":"MATCH(D745,Отчет!#REF!,0)","v":{"$error":"#REF!"}}]
[1656185896,8,"БРО152",1656154991,"Чуб Степан Александрович","М151БМНДЖ166","Теория государства и права",4,"Экзамен","2016/2017 учебный год 2 модуль",null,32,3,1,0,1520829000,2098,"ikPassed","stCommon","Реклама и связи с общественностью",{"$f":"MATCH(D746,Отчет!#REF!,0)","v":{"$error":"#REF!"}}]
[1623532908,4,"БРО152",1396053703,"Громов Максим Сергеевич","М141БФИКЛ012","Философия",4,"Экзамен","2016/2017 учебный год 2 модуль",null,16,4,1,0,1520802210,2098,"ikFirst","stCommon","Реклама и связи с общественностью",{"$f":"MATCH(D747,Отчет!#REF!,0)","v":{"$error":"#REF!"}}]
[1623543157,7,"БРО153",1514787326,"Харисов Артур Раоланович","М151БЭКСТ107","Философия",4,"Экзамен","2016/2017 учебный год 2 модуль",null,28,4,1,0,1520802210,2098,"ikFirst","stCommon","Реклама и связи с общественностью",{"$f":"MATCH(D748,Отчет!#REF!,0)","v":{"$error":"#REF!"}}]
[1623541685,6,"БРО153",1514792971,"Гридчина Нина Сергеевна","М161БРИСО001","Философия",4,"Экзамен","2016/2017 учебный год 2 модуль",null,24,4,1,0,1520802210,2098,"ikFirst","stCommon","Реклама и связи с общественностью",{"$f":"MATCH(D749,Отчет!#REF!,0)","v":{"$error":"#REF!"}}]
[1623541183,6,"БРО151",1517365582,"Хохлова Наталия Алексеевна","М151БМИЭФ196","Философия",4,"Экзамен","2016/2017 учебный год 2 модуль",null,24,4,1,0,1520802210,2098,"ikFirst","stCommon","Реклама и связи с общественностью",{"$f":"MATCH(D750,Отчет!#REF!,0)","v":{"$error":"#REF!"}}]
[1623504736,7,"БРО151",1516201234,"Чернышева Юлия Ивановна","М151БЛУЦП132","Философия",4,"Экзамен","2016/2017 учебный год 2 модуль",null,28,4,1,0,1520802210,2098,"ikFirst","stCommon","Реклама и связи с общественностью",{"$f":"MATCH(D751,Отчет!#REF!,0)","v":{"$error":"#REF!"}}]
[1623540549,6,"БРО151",1517364590,"Луданова Евгения Александровна","М151БМИЭФ103","Философия",4,"Экзамен","2016/2017 учебный год 2 модуль",null,24,4,1,0,1520802210,2098,"ikFirst","stCommon","Реклама и связи с общественностью",{"$f":"MATCH(D752,Отчет!#REF!,0)","v":{"$error":"#REF!"}}]
[1623542518,7,"БРО153",1514839183,"Жаркова Дарья Андреевна","М151БСОЦЛ040","Философия",4,"Экзамен","2016/2017 учебный год 2 модуль",null,28,4,1,0,1520802210,2098,"ikFirst","stCommon","Реклама и связи с общественностью",{"$f":"MATCH(D753,Отчет!#REF!,0)","v":{"$error":"#REF!"}}]
[1656792311,8,"БРО152",1656791552,"Суркин Константин Сергеевич","101094114","Научно-исследовательский семинар",2,"Зачет","2016/2017 учебный год 2 модуль",null,16,2,1,0,1520829000,2098,"ikPassed","stCommon","Реклама и связи с общественностью",{"$f":"MATCH(D754,Отчет!#REF!,0)","v":{"$error":"#REF!"}}]
[1698430233,null,"БРО153",1162402641,"Ковтун Юлия Алексеевна","М151БРИСО023","Проект Международная научно-практическая конференция \"Психология бизнеса: теория и практика\"",2,"Зачет","2016/2017 учебный год 2 модуль",null,0,0,null,1,null,null,null,null,"Реклама и связи с общественностью",{"$f":"MATCH(D755,Отчет!#REF!,0)","v":{"$error":"#REF!"}}]
[1730487621,10,"БРО152",1656154991,"Чуб Степан Александрович","М151БМНДЖ166","Проект Осенняя школа бизнес-проектов-2016",4,"Зачет","2016/2017 учебный год 2 модуль",null,0,0,1,0,null,null,null,null,"Реклама и связи с общественностью",{"$f":"MATCH(D756,Отчет!#REF!,0)","v":{"$error":"#REF!"}}]
[1698429946,null,"БРО152",1656154991,"Чуб Степан Александрович","М151БМНДЖ166","Проект Профориентационная работа со школьниками в рамках «Факультетских дней»",2,"Зачет","2016/2017 учебный год 2 модуль",null,0,0,1,0,null,null,null,null,"Реклама и связи с общественностью",{"$f":"MATCH(D757,Отчет!#REF!,0)","v":{"$error":"#REF!"}}]
[1679214362,null,"БРО152",1517704476,"Жарикова Анастасия Владимировна","М151БМНДЖ057","Проект Школа мастеров",2,"Зачет","2016/2017 учебный год 2 модуль",null,0,0,1,0,null,null,null,null,"Реклама и связи с общественностью",{"$f":"MATCH(D758,Отчет!#REF!,0)","v":{"$error":"#REF!"}}]
[1762034887,6,"БРО153",1181080622,"Нугуспанова Индира","М151БРИСО075","Проект Ярмарка социальных квестов",0,"Зачет","2016/2017 учебный год 2 модуль",null,0,0,1,1,null,null,null,null,"Реклама и связи с общественностью",{"$f":"MATCH(D759,Отчет!#REF!,0)","v":{"$error":"#REF!"}}]
[1679214461,9,"БРО151",1162404699,"Милова Анастасия Андреевна","М151БРИСО033","Проект Ярмарка социальных квестов",2,"Зачет","2016/2017 учебный год 2 модуль",null,0,0,1,0,null,null,null,null,"Реклама и связи с общественностью",{"$f":"MATCH(D760,Отчет!#REF!,0)","v":{"$error":"#REF!"}}]
[1679214654,8,"БРО151",1162404843,"Даниель Александра Александровна","М151БРИСО014","Проект Ярмарка социальных квестов",2,"Зачет","2016/2017 учебный год 2 модуль",null,0,0,1,0,null,null,null,null,"Реклама и связи с общественностью",{"$f":"MATCH(D761,Отчет!#REF!,0)","v":{"$error":"#REF!"}}]
[1679214608,7,"БРО153",1173924661,"Галкин Вячеслав Владимирович","М151БРИСО070","Проект Ярмарка социальных квестов",2,"Зачет","2016/2017 учебный год 2 модуль",null,0,0,1,0,null,null,null,null,"Реклама и связи с общественностью",{"$f":"MATCH(D762,Отчет!#REF!,0)","v":{"$error":"#REF!"}}]
[1580582147,null,"БРО151",1181080646,"Белякова Анастасия","М151БРИСО079","Физическая культура",0,"Зачет","2016/2017 учебный год 2 модуль",null,0,0,1,1,1520829000,2098,null,"stCommon","Реклама и связи с общественностью",{"$f":"MATCH(D763,Отчет!#REF!,0)","v":{"$error":"#REF!"}}]
[1580589584,null,"БРО152",1181080670,"Чачков Алексей Алексеевич","М151БРИСО083","Физическая культура",0,"Зачет","2016/2017 учебный год 2 модуль",null,0,0,1,1,1520829000,2098,null,"stCommon","Реклама и связи с общественностью",{"$f":"MATCH(D764,Отчет!#REF!,0)","v":{"$error":"#REF!"}}]
[1580582239,null,"БРО151",1181080708,"Ганиева Карина Туребековна","М151БРИСО081","Физическая культура",0,"Зачет","2016/2017 учебный год 2 модуль",null,0,0,1,1,1520829000,2098,null,"stCommon","Реклама и связи с общественностью",{"$f":"MATCH(D765,Отчет!#REF!,0)","v":{"$error":"#REF!"}}]
[1580583353,null,"БРО151",1181086716,"Пономарева Елизавета","М151БРИСО077","Физическая культура",0,"Зачет","2016/2017 учебный год 2 модуль",null,0,0,1,1,1520829000,2098,null,"stCommon","Реклама и связи с общественностью",{"$f":"MATCH(D766,Отчет!#REF!,0)","v":{"$error":"#REF!"}}]
[1580590550,null,"БРО153",1181086733,"Дремлюк Марья","М151БРИСО074","Физическая культура",0,"Зачет","2016/2017 учебный год 2 модуль",null,0,0,1,1,1520829000,2098,null,"stCommon","Реклама и связи с общественностью",{"$f":"MATCH(D767,Отчет!#REF!,0)","v":{"$error":"#REF!"}}]
[1580582415,null,"БРО151",1181086750,"Даниленко Ярослав","М151БРИСО078","Физическая культура",0,"Зачет","2016/2017 учебный год 2 модуль",null,0,0,1,1,1520829000,2098,null,"stCommon","Реклама и связи с общественностью",{"$f":"MATCH(D768,Отчет!#REF!,0)","v":{"$error":"#REF!"}}]
[1580587555,null,"БРО152",1181086767,"Мухортова Дарья Александровна","М151БРИСО072","Физическая культура",0,"Зачет","2016/2017 учебный год 2 модуль",null,0,0,1,1,1520829000,2098,null,"stCommon","Реклама и связи с общественностью",{"$f":"MATCH(D769,Отчет!#REF!,0)","v":{"$error":"#REF!"}}]
[1580591007,null,"БРО153",1181086818,"Кунцевич Мария","М151БРИСО076","Физическая культура",0,"Зачет","2016/2017 учебный год 2 модуль",null,0,0,1,1,1520829000,2098,null,"stCommon","Реклама и связи с общественностью",{"$f":"MATCH(D770,Отчет!#REF!,0)","v":{"$error":"#REF!"}}]
[1572906261,null,"БРО151",1187793549,"Абдулхакимова Афина Шавкатовна","М151БРИСО084","Физическая культура",0,"Зачет","2016/2017 учебный год 2 модуль",null,0,0,1,0,1520829000,2098,null,"stCommon","Реклама и связи с общественностью",{"$f":"MATCH(D771,Отчет!#REF!,0)","v":{"$error":"#REF!"}}]
[1580591668,null,"БРО153",1187938514,"Романова Екатерина Сергеевна","М151БРИСО082","Физическая культура",0,"Зачет","2016/2017 учебный год 2 модуль",null,0,0,1,1,1520829000,2098,null,"stCommon","Реклама и связи с общественностью",{"$f":"MATCH(D772,Отчет!#REF!,0)","v":{"$error":"#REF!"}}]
[1580586927,null,"БРО152",1187938540,"Ковалева Анастасия Романовна","М151БРИСО080","Физическая культура",0,"Зачет","2016/2017 учебный год 2 модуль",null,0,0,1,1,1520829000,2098,null,"stCommon","Реклама и связи с общественностью",{"$f":"MATCH(D773,Отчет!#REF!,0)","v":{"$error":"#REF!"}}]
[1580582063,null,"БРО151",1192491796,"Бекназарова Комилла Сохибжоновна","М151БРИСО085","Физическая культура",0,"Зачет","2016/2017 учебный год 2 модуль",null,0,0,1,1,1520829000,2098,null,"stCommon","Реклама и связи с общественностью",{"$f":"MATCH(D774,Отчет!#REF!,0)","v":{"$error":"#REF!"}}]
[1580585538,null,"БРО152",1322382992,"Авилова Виктория Борисовна","131236028","Физическая культура",0,"Зачет","2016/2017 учебный год 2 модуль",null,0,0,1,0,1520829000,2098,null,"stCommon","Реклама и связи с общественностью",{"$f":"MATCH(D775,Отчет!#REF!,0)","v":{"$error":"#REF!"}}]
[1580586400,null,"БРО152",1396053703,"Громов Максим Сергеевич","М141БФИКЛ012","Физическая культура",0,"Зачет","2016/2017 учебный год 2 модуль",null,0,0,1,0,1520829000,2098,null,"stCommon","Реклама и связи с общественностью",{"$f":"MATCH(D776,Отчет!#REF!,0)","v":{"$error":"#REF!"}}]
[1580582779,null,"БРО151",1474053891,"Лисина Юлия Андреевна","М151БРИСО086","Физическая культура",0,"Зачет","2016/2017 учебный год 2 модуль",null,0,0,1,0,1520829000,2098,null,"stCommon","Реклама и связи с общественностью",{"$f":"MATCH(D777,Отчет!#REF!,0)","v":{"$error":"#REF!"}}]
[1623481409,null,"БРО151",1474053891,"Лисина Юлия Андреевна","М151БРИСО086","Физическая культура",0,"Зачет","2016/2017 учебный год 2 модуль",null,0,0,1,0,1520802210,2098,"ikFirst","stCommon","Реклама и связи с общественностью",{"$f":"MATCH(D778,Отчет!#REF!,0)","v":{"$error":"#REF!"}}]
[1580592117,null,"БРО153",1514787326,"Харисов Артур Раоланович","М151БЭКСТ107","Физическая культура",0,"Зачет","2016/2017 учебный год 2 модуль",null,0,0,1,0,1520829000,2098,null,"stCommon","Реклама и связи с общественностью",{"$f":"MATCH(D779,Отчет!#REF!,0)","v":{"$error":"#REF!"}}]
[1580590333,null,"БРО153",1514792971,"Гридчина Нина Сергеевна","М161БРИСО001","Физическая культура",0,"Зачет","2016/2017 учебный год 2 модуль",null,0,0,1,0,1520829000,2098,null,"stCommon","Реклама и связи с общественностью",{"$f":"MATCH(D780,Отчет!#REF!,0)","v":{"$error":"#REF!"}}]
[1580590701,null,"БРО153",1514839183,"Жаркова Дарья Андреевна","М151БСОЦЛ040","Физическая культура",0,"Зачет","2016/2017 учебный год 2 модуль",null,0,0,1,0,1520829000,2098,null,"stCommon","Реклама и связи с общественностью",{"$f":"MATCH(D781,Отчет!#REF!,0)","v":{"$error":"#REF!"}}]
[1580583762,null,"БРО151",1515445555,"Скворцова Елизавета Васильевна","М161БРИСО395","Физическая культура",0,"Зачет","2016/2017 учебный год 2 модуль",null,0,0,1,0,1520829000,2098,null,"stCommon","Реклама и связи с общественностью",{"$f":"MATCH(D782,Отчет!#REF!,0)","v":{"$error":"#REF!"}}]
[1580581799,null,"БРО151",1515481958,"Бажулич Кристина Джуровна","М151БИНЯЗ017","Физическая культура",0,"Зачет","2016/2017 учебный год 2 модуль",null,0,0,1,0,1520829000,2098,null,"stCommon","Реклама и связи с общественностью",{"$f":"MATCH(D783,Отчет!#REF!,0)","v":{"$error":"#REF!"}}]
[1580584308,null,"БРО151",1516201234,"Чернышева Юлия Ивановна","М151БЛУЦП132","Физическая культура",0,"Зачет","2016/2017 учебный год 2 модуль",null,0,0,1,0,1520829000,2098,null,"stCommon","Реклама и связи с общественностью",{"$f":"MATCH(D784,Отчет!#REF!,0)","v":{"$error":"#REF!"}}]
[1580582858,null,"БРО151",1517364590,"Луданова Евгения Александровна","М151БМИЭФ103","Физическая культура",0,"Зачет","2016/2017 учебный год 2 модуль",null,0,0,1,0,1520829000,2098,null,"stCommon","Реклама и связи с общественностью",{"$f":"MATCH(D785,Отчет!#REF!,0)","v":{"$error":"#REF!"}}]
[1580584222,null,"БРО151",1517365582,"Хохлова Наталия Алексеевна","М151БМИЭФ196","Физическая культура",0,"Зачет","2016/2017 учебный год 2 модуль",null,0,0,1,0,1520829000,2098,null,"stCommon","Реклама и связи с общественностью",{"$f":"MATCH(D786,Отчет!#REF!,0)","v":{"$error":"#REF!"}}]
[1580589661,null,"БРО152",1517430637,"Шеховцова Елизавета Дмитриевна","М151БИНЯЗ191","Физическая культура",0,"Зачет","2016/2017 учебный год 2 модуль",null,0,0,1,0,1520829000,2098,null,"stCommon","Реклама и связи с общественностью",{"$f":"MATCH(D787,Отчет!#REF!,0)","v":{"$error":"#REF!"}}]
[1580586520,null,"БРО152",1517704476,"Жарикова Анастасия Владимировна","М151БМНДЖ057","Физическая культура",0,"Зачет","2016/2017 учебный год 2 модуль",null,0,0,1,0,1520829000,2098,null,"stCommon","Реклама и связи с общественностью",{"$f":"MATCH(D788,Отчет!#REF!,0)","v":{"$error":"#REF!"}}]
[1580585453,null,"БРО152",1518721225,"Авдонина Дарья Романовна","М141БЖУРН001","Физическая культура",0,"Зачет","2016/2017 учебный год 2 модуль",null,0,0,1,0,1520829000,2098,null,"stCommon","Реклама и связи с общественностью",{"$f":"MATCH(D789,Отчет!#REF!,0)","v":{"$error":"#REF!"}}]
[1580592637,null,"БРО153",1519084812,"Яснева Екатерина Андреевна","М161БРИСО003","Физическая культура",0,"Зачет","2016/2017 учебный год 2 модуль",null,0,0,1,0,1520829000,2098,null,"stCommon","Реклама и связи с общественностью",{"$f":"MATCH(D790,Отчет!#REF!,0)","v":{"$error":"#REF!"}}]
[1580581729,null,"БРО151",1520873492,"Арчакова Александра Ивановна","М151БИНЯЗ013","Физическая культура",0,"Зачет","2016/2017 учебный год 2 модуль",null,0,0,1,0,1520829000,2098,null,"stCommon","Реклама и связи с общественностью",{"$f":"MATCH(D791,Отчет!#REF!,0)","v":{"$error":"#REF!"}}]
[1649566982,10,"БРО153",1649552778,"Редин Виталий Вадимович","13151222","Физическая культура",0,"Зачет","2016/2017 учебный год 2 модуль",null,0,0,1,0,1520829000,2098,"ikPassed","stCommon","Реклама и связи с общественностью",{"$f":"MATCH(D792,Отчет!#REF!,0)","v":{"$error":"#REF!"}}]
[1649669931,10,"БРО151",1649667663,"Селиверстова Анастасия Алексеевна","13151224","Физическая культура",0,"Зачет","2016/2017 учебный год 2 модуль",null,0,0,1,0,1520829000,2098,"ikPassed","stCommon","Реклама и связи с общественностью",{"$f":"MATCH(D793,Отчет!#REF!,0)","v":{"$error":"#REF!"}}]
[1649861452,10,"БРО152",1649860854,"Лебедева Маргарита Станиславовна","12151236","Физическая культура",0,"Зачет","2016/2017 учебный год 2 модуль",null,0,0,1,0,1520829000,2098,"ikExternalPassed","stCommon","Реклама и связи с общественностью",{"$f":"MATCH(D794,Отчет!#REF!,0)","v":{"$error":"#REF!"}}]
[1652986466,10,"БРО152",1652970670,"Абрамов Александр Олегович","13151201","Физическая культура",0,"Зачет","2016/2017 учебный год 2 модуль",null,0,0,1,0,1520829000,2098,"ikPassed","stCommon","Реклама и связи с общественностью",{"$f":"MATCH(D795,Отчет!#REF!,0)","v":{"$error":"#REF!"}}]
[1653151172,10,"БРО152",1653150908,"Серебрякова Валерия Сергеевна","М141БЭКОН164","Физическая культура",0,"Зачет","2016/2017 учебный год 2 модуль",null,0,0,1,0,1520829000,2098,"ikPassed","stCommon","Реклама и связи с общественностью",{"$f":"MATCH(D796,Отчет!#REF!,0)","v":{"$error":"#REF!"}}]
[1656185817,null,"БРО152",1656154991,"Чуб Степан Александрович","М151БМНДЖ166","Физическая культура",0,"Зачет","2016/2017 учебный год 2 модуль",null,0,0,1,0,1520829000,2098,"ikPlanned","stCommon","Реклама и связи с общественностью",{"$f":"MATCH(D797,Отчет!#REF!,0)","v":{"$error":"#REF!"}}]
[1656192265,null,"БРО151",1656174061,"Рашилова Полина Викторовна","М151БЛУЦП091","Физическая культура",0,"Зачет","2016/2017 учебный год 2 модуль",null,0,0,1,0,1520829000,2098,"ikPlanned","stCommon","Реклама и связи с общественностью",{"$f":"MATCH(D798,Отчет!#REF!,0)","v":{"$error":"#REF!"}}]
[1656197425,null,"БРО151",1656175499,"Молот Ксения Олеговна","М151БЛУЦП073","Физическая культура",0,"Зачет","2016/2017 учебный год 2 модуль",null,0,0,1,0,1520829000,2098,"ikPlanned","stCommon","Реклама и связи с общественностью",{"$f":"MATCH(D799,Отчет!#REF!,0)","v":{"$error":"#REF!"}}]
[1659806889,null,"БРО153",1656379817,"Коломиец Ольга Андреевна","М151БМНДЖ078","Физическая культура",0,"Зачет","2016/2017 учебный год 2 модуль",null,0,0,1,0,1520829000,2098,"ikPlanned","stCommon","Реклама и связи с общественностью",{"$f":"MATCH(D800,Отчет!#REF!,0)","v":{"$error":"#REF!"}}]
[1656792276,10,"БРО152",1656791552,"Суркин Константин Сергеевич","101094114","Физическая культура",0,"Зачет","2016/2017 учебный год 2 модуль",null,0,0,1,0,1520829000,2098,"ikPassed","stCommon","Реклама и связи с общественностью",{"$f":"MATCH(D801,Отчет!#REF!,0)","v":{"$error":"#REF!"}}]
[1663382789,null,"БРО153",1662712925,"Каньшина Елизавета Сергеевна","13103024","Физическая культура",0,"Зачет","2016/2017 учебный год 2 модуль",null,0,0,1,0,1520829000,2098,"ikPassed","stCommon","Реклама и связи с общественностью",{"$f":"MATCH(D802,Отчет!#REF!,0)","v":{"$error":"#REF!"}}]
[1667406375,null,"БРО153",1667389090,"Кармазинский Николай Андреевич","М161БРИСО394","Физическая культура",0,"Зачет","2016/2017 учебный год 2 модуль",null,0,0,1,0,1520829000,2098,"ikPlanned","stCommon","Реклама и связи с общественностью",{"$f":"MATCH(D803,Отчет!#REF!,0)","v":{"$error":"#REF!"}}]
[1580592548,null,"БРО153",1162401104,"Янчева Анастасия Вадимовна","М151БРИСО067","Физическая культура",0,"Зачет","2016/2017 учебный год 2 модуль",null,0,0,1,1,1520829000,2098,null,"stCommon","Реклама и связи с общественностью",{"$f":"MATCH(D804,Отчет!#REF!,0)","v":{"$error":"#REF!"}}]
[1580583860,null,"БРО151",1162401132,"Смирнова Полина Алексеевна","М151БРИСО052","Физическая культура",0,"Зачет","2016/2017 учебный год 2 модуль",null,0,0,1,1,1520829000,2098,null,"stCommon","Реклама и связи с общественностью",{"$f":"MATCH(D805,Отчет!#REF!,0)","v":{"$error":"#REF!"}}]
[1580588967,null,"БРО152",1162401164,"Сизова Анна Геннадьевна","М151БРИСО049","Физическая культура",0,"Зачет","2016/2017 учебный год 2 модуль",null,0,0,1,1,1520829000,2098,null,"stCommon","Реклама и связи с общественностью",{"$f":"MATCH(D806,Отчет!#REF!,0)","v":{"$error":"#REF!"}}]
[1580585998,null,"БРО152",1162401228,"Бешанова Елизавета Вячеславовна","М151БРИСО007","Физическая культура",0,"Зачет","2016/2017 учебный год 2 модуль",null,0,0,1,1,1520829000,2098,null,"stCommon","Реклама и связи с общественностью",{"$f":"MATCH(D807,Отчет!#REF!,0)","v":{"$error":"#REF!"}}]
[1580587833,null,"БРО152",1162401260,"Никитина Валерия Дмитриевна","М151БРИСО037","Физическая культура",0,"Зачет","2016/2017 учебный год 2 модуль",null,0,0,1,1,1520829000,2098,null,"stCommon","Реклама и связи с общественностью",{"$f":"MATCH(D808,Отчет!#REF!,0)","v":{"$error":"#REF!"}}]
[1580591166,null,"БРО153",1162401288,"Мельник Алексей Сергеевич","М151БРИСО032","Физическая культура",0,"Зачет","2016/2017 учебный год 2 модуль",null,0,0,1,1,1520829000,2098,null,"stCommon","Реклама и связи с общественностью",{"$f":"MATCH(D809,Отчет!#REF!,0)","v":{"$error":"#REF!"}}]
[1580587405,null,"БРО152",1162401312,"Ленкуте Алина Максимовна","М151БРИСО029","Физическая культура",0,"Зачет","2016/2017 учебный год 2 модуль",null,0,0,1,1,1520829000,2098,null,"stCommon","Реклама и связи с общественностью",{"$f":"MATCH(D810,Отчет!#REF!,0)","v":{"$error":"#REF!"}}]
[1580590937,null,"БРО153",1162401344,"Кравчук Кристина Александровна","М151БРИСО026","Физическая культура",0,"Зачет","2016/2017 учебный год 2 модуль",null,0,0,1,1,1520829000,2098,null,"stCommon","Реклама и связи с общественностью",{"$f":"MATCH(D811,Отчет!#REF!,0)","v":{"$error":"#REF!"}}]
[1580583971,null,"БРО151",1162401376,"Солдатенкова Арина Витальевна","М151БРИСО053","Физическая культура",0,"Зачет","2016/2017 учебный год 2 модуль",null,0,0,1,1,1520829000,2098,null,"stCommon","Реклама и связи с общественностью",{"$f":"MATCH(D812,Отчет!#REF!,0)","v":{"$error":"#REF!"}}]
[1580585648,null,"БРО152",1162401408,"Астурян Вячеслав Вячеславович","М151БРИСО004","Физическая культура",0,"Зачет","2016/2017 учебный год 2 модуль",null,0,0,1,1,1520829000,2098,null,"stCommon","Реклама и связи с общественностью",{"$f":"MATCH(D813,Отчет!#REF!,0)","v":{"$error":"#REF!"}}]
[1580590405,null,"БРО153",1162401440,"Гришина Мария Сергеевна","М151БРИСО013","Физическая культура",0,"Зачет","2016/2017 учебный год 2 модуль",null,0,0,1,1,1520829000,2098,null,"stCommon","Реклама и связи с общественностью",{"$f":"MATCH(D814,Отчет!#REF!,0)","v":{"$error":"#REF!"}}]
[1580592017,null,"БРО153",1162401597,"Толбухина Полина Дмитриевна","М151БРИСО056","Физическая культура",0,"Зачет","2016/2017 учебный год 2 модуль",null,0,0,1,1,1520829000,2098,null,"stCommon","Реклама и связи с общественностью",{"$f":"MATCH(D815,Отчет!#REF!,0)","v":{"$error":"#REF!"}}]
[1580586277,null,"БРО152",1162401665,"Веряева Ксения Михайловна","М151БРИСО010","Физическая культура",0,"Зачет","2016/2017 учебный год 2 модуль",null,0,0,1,1,1520829000,2098,null,"stCommon","Реклама и связи с общественностью",{"$f":"MATCH(D816,Отчет!#REF!,0)","v":{"$error":"#REF!"}}]
[1580589941,null,"БРО153",1162401697,"Бисовка Евгений Геннадьевич","М151БРИСО008","Физическая культура",0,"Зачет","2016/2017 учебный год 2 модуль",null,0,0,1,1,1520829000,2098,null,"stCommon","Реклама и связи с общественностью",{"$f":"MATCH(D817,Отчет!#REF!,0)","v":{"$error":"#REF!"}}]
[1580586769,null,"БРО152",1162401762,"Калабаева Дарья Андреевна","М151БРИСО020","Физическая культура",0,"Зачет","2016/2017 учебный год 2 модуль",null,0,0,1,1,1520829000,2098,null,"stCommon","Реклама и связи с общественностью",{"$f":"MATCH(D818,Отчет!#REF!,0)","v":{"$error":"#REF!"}}]
[1580586149,null,"БРО152",1162402048,"Богданова Владлена Сергеевна","М151БРИСО009","Физическая культура",0,"Зачет","2016/2017 учебный год 2 модуль",null,0,0,1,1,1520829000,2098,null,"stCommon","Реклама и связи с общественностью",{"$f":"MATCH(D819,Отчет!#REF!,0)","v":{"$error":"#REF!"}}]
[1580584064,null,"БРО151",1162402075,"Ужегова Полина Александровна","М151БРИСО058","Физическая культура",0,"Зачет","2016/2017 учебный год 2 модуль",null,0,0,1,1,1520829000,2098,null,"stCommon","Реклама и связи с общественностью",{"$f":"MATCH(D820,Отчет!#REF!,0)","v":{"$error":"#REF!"}}]
[1580591845,null,"БРО153",1162402110,"Сковородина Елизавета Сергеевна","М151БРИСО051","Физическая культура",0,"Зачет","2016/2017 учебный год 2 модуль",null,0,0,1,1,1520829000,2098,null,"stCommon","Реклама и связи с общественностью",{"$f":"MATCH(D821,Отчет!#REF!,0)","v":{"$error":"#REF!"}}]
[1580582946,null,"БРО151",1162402136,"Мазур Екатерина Сергеевна","М151БРИСО031","Физическая культура",0,"Зачет","2016/2017 учебный год 2 модуль",null,0,0,1,1,1520829000,2098,null,"stCommon","Реклама и связи с общественностью",{"$f":"MATCH(D822,Отчет!#REF!,0)","v":{"$error":"#REF!"}}]
[1580588834,null,"БРО152",1162402160,"Серегин Геннадий Евгеньевич","М151БРИСО048","Физическая культура",0,"Зачет","2016/2017 учебный год 2 модуль",null,0,0,1,1,1520829000,2098,null,"stCommon","Реклама и связи с общественностью",{"$f":"MATCH(D823,Отчет!#REF!,0)","v":{"$error":"#REF!"}}]
[1580591091,null,"БРО153",1162402188,"Курганова Диана Андреевна","М151БРИСО028","Физическая культура",0,"Зачет","2016/2017 учебный год 2 модуль",null,0,0,1,1,1520829000,2098,null,"stCommon","Реклама и связи с общественностью",{"$f":"MATCH(D824,Отчет!#REF!,0)","v":{"$error":"#REF!"}}]
[1580590127,null,"БРО153",1162402220,"Горохова Елизавета Юрьевна","М151БРИСО011","Физическая культура",0,"Зачет","2016/2017 учебный год 2 модуль",null,0,0,1,1,1520829000,2098,null,"stCommon","Реклама и связи с общественностью",{"$f":"MATCH(D825,Отчет!#REF!,0)","v":{"$error":"#REF!"}}]
[1580588052,null,"БРО152",1162402244,"Попова Диана Александровна","М151БРИСО042","Физическая культура",0,"Зачет","2016/2017 учебный год 2 модуль",null,0,0,1,1,1520829000,2098,null,"stCommon","Реклама и связи с общественностью",{"$f":"MATCH(D826,Отчет!#REF!,0)","v":{"$error":"#REF!"}}]
[1580592216,null,"БРО153",1162402268,"Шельменкина Карина Сергеевна","М151БРИСО061","Физическая культура",0,"Зачет","2016/2017 учебный год 2 модуль",null,0,0,1,1,1520829000,2098,null,"stCommon","Реклама и связи с общественностью",{"$f":"MATCH(D827,Отчет!#REF!,0)","v":{"$error":"#REF!"}}]
[1580581941,null,"БРО151",1162402300,"Барыкина Александра Сергеевна","М151БРИСО006","Физическая культура",0,"Зачет","2016/2017 учебный год 2 модуль",null,0,0,1,1,1520829000,2098,null,"stCommon","Реклама и связи с общественностью",{"$f":"MATCH(D828,Отчет!#REF!,0)","v":{"$error":"#REF!"}}]
[1580582592,null,"БРО151",1162402324,"Казакова Виктория Владимировна","М151БРИСО019","Физическая культура",0,"Зачет","2016/2017 учебный год 2 модуль",null,0,0,1,1,1520829000,2098,null,"stCommon","Реклама и связи с общественностью",{"$f":"MATCH(D829,Отчет!#REF!,0)","v":{"$error":"#REF!"}}]
[1580587217,null,"БРО152",1162402352,"Криницкая Анастасия Сергеевна","М151БРИСО027","Физическая культура",0,"Зачет","2016/2017 учебный год 2 модуль",null,0,0,1,1,1520829000,2098,null,"stCommon","Реклама и связи с общественностью",{"$f":"MATCH(D830,Отчет!#REF!,0)","v":{"$error":"#REF!"}}]
[1580583660,null,"БРО151",1162402384,"Садова Анастасия Романовна","М151БРИСО046","Физическая культура",0,"Зачет","2016/2017 учебный год 2 модуль",null,0,0,1,1,1520829000,2098,null,"stCommon","Реклама и связи с общественностью",{"$f":"MATCH(D831,Отчет!#REF!,0)","v":{"$error":"#REF!"}}]
[1580583523,null,"БРО151",1162402412,"Романовская Алина Андреевна","М151БРИСО045","Физическая культура",0,"Зачет","2016/2017 учебный год 2 модуль",null,0,0,1,1,1520829000,2098,null,"stCommon","Реклама и связи с общественностью",{"$f":"MATCH(D832,Отчет!#REF!,0)","v":{"$error":"#REF!"}}]
[1580590859,null,"БРО153",1162402641,"Ковтун Юлия Алексеевна","М151БРИСО023","Физическая культура",0,"Зачет","2016/2017 учебный год 2 модуль",null,0,0,1,1,1520829000,2098,null,"stCommon","Реклама и связи с общественностью",{"$f":"MATCH(D833,Отчет!#REF!,0)","v":{"$error":"#REF!"}}]
[1580592467,null,"БРО153",1162402673,"Язькова Елизавета Алексеевна","М151БРИСО066","Физическая культура",0,"Зачет","2016/2017 учебный год 2 модуль",null,0,0,1,1,1520829000,2098,null,"stCommon","Реклама и связи с общественностью",{"$f":"MATCH(D834,Отчет!#REF!,0)","v":{"$error":"#REF!"}}]
[1580591259,null,"БРО153",1162404239,"Мошева Анастасия Олеговна","М151БРИСО034","Физическая культура",0,"Зачет","2016/2017 учебный год 2 модуль",null,0,0,1,1,1520829000,2098,null,"stCommon","Реклама и связи с общественностью",{"$f":"MATCH(D835,Отчет!#REF!,0)","v":{"$error":"#REF!"}}]
[1580582697,null,"БРО151",1162404267,"Колганова Полина Олеговна","М151БРИСО024","Физическая культура",0,"Зачет","2016/2017 учебный год 2 модуль",null,0,0,1,0,1520829000,2098,null,"stCommon","Реклама и связи с общественностью",{"$f":"MATCH(D836,Отчет!#REF!,0)","v":{"$error":"#REF!"}}]
[1580583235,null,"БРО151",1162404299,"Панарина Елизавета Сергеевна","М151БРИСО039","Физическая культура",0,"Зачет","2016/2017 учебный год 2 модуль",null,0,0,1,1,1520829000,2098,null,"stCommon","Реклама и связи с общественностью",{"$f":"MATCH(D837,Отчет!#REF!,0)","v":{"$error":"#REF!"}}]
[1580591759,null,"БРО153",1162404387,"Скворцова Анна Алексеевна","М151БРИСО050","Физическая культура",0,"Зачет","2016/2017 учебный год 2 модуль",null,0,0,1,0,1520829000,2098,null,"stCommon","Реклама и связи с общественностью",{"$f":"MATCH(D838,Отчет!#REF!,0)","v":{"$error":"#REF!"}}]
[1580583142,null,"БРО151",1162404411,"Надирова Анна Зурабовна","М151БРИСО035","Физическая культура",0,"Зачет","2016/2017 учебный год 2 модуль",null,0,0,1,0,1520829000,2098,null,"stCommon","Реклама и связи с общественностью",{"$f":"MATCH(D839,Отчет!#REF!,0)","v":{"$error":"#REF!"}}]
[1580586644,null,"БРО152",1162404435,"Захряпина Анастасия Алексеевна","М151БРИСО018","Физическая культура",0,"Зачет","2016/2017 учебный год 2 модуль",null,0,0,1,0,1520829000,2098,null,"stCommon","Реклама и связи с общественностью",{"$f":"MATCH(D840,Отчет!#REF!,0)","v":{"$error":"#REF!"}}]
[1580588577,null,"БРО152",1162404463,"Радченко Ирина Дмитриевна","М151БРИСО044","Физическая культура",0,"Зачет","2016/2017 учебный год 2 модуль",null,0,0,1,0,1520829000,2098,null,"stCommon","Реклама и связи с общественностью",{"$f":"MATCH(D841,Отчет!#REF!,0)","v":{"$error":"#REF!"}}]
[1580592391,null,"БРО153",1162404495,"Юрьева Мария Дмитриевна","М151БРИСО065","Физическая культура",0,"Зачет","2016/2017 учебный год 2 модуль",null,0,0,1,0,1520829000,2098,null,"stCommon","Реклама и связи с общественностью",{"$f":"MATCH(D842,Отчет!#REF!,0)","v":{"$error":"#REF!"}}]
[1580588423,null,"БРО152",1162404529,"Радионова Анна Евгеньевна","М151БРИСО043","Физическая культура",0,"Зачет","2016/2017 учебный год 2 модуль",null,0,0,1,1,1520829000,2098,null,"stCommon","Реклама и связи с общественностью",{"$f":"MATCH(D843,Отчет!#REF!,0)","v":{"$error":"#REF!"}}]
[1580592306,null,"БРО153",1162404559,"Щелкунов Игорь Владимирович","М151БРИСО064","Физическая культура",0,"Зачет","2016/2017 учебный год 2 модуль",null,0,0,1,0,1520829000,2098,null,"stCommon","Реклама и связи с общественностью",{"$f":"MATCH(D844,Отчет!#REF!,0)","v":{"$error":"#REF!"}}]
[1580581567,null,"БРО151",1162404590,"Аккалаев Марат Русланович","М151БРИСО002","Физическая культура",0,"Зачет","2016/2017 учебный год 2 модуль",null,0,0,1,0,1520829000,2098,null,"stCommon","Реклама и связи с общественностью",{"$f":"MATCH(D845,Отчет!#REF!,0)","v":{"$error":"#REF!"}}]
[1580590623,null,"БРО153",1162404615,"Дроздова Елизавета Владимировна","М151БРИСО016","Физическая культура",0,"Зачет","2016/2017 учебный год 2 модуль",null,0,0,1,0,1520829000,2098,null,"stCommon","Реклама и связи с общественностью",{"$f":"MATCH(D846,Отчет!#REF!,0)","v":{"$error":"#REF!"}}]
[1580587949,null,"БРО152",1162404639,"Полякова Александра Дмитриевна","М151БРИСО041","Физическая культура",0,"Зачет","2016/2017 учебный год 2 модуль",null,0,0,1,0,1520829000,2098,null,"stCommon","Реклама и связи с общественностью",{"$f":"MATCH(D847,Отчет!#REF!,0)","v":{"$error":"#REF!"}}]
[1580589417,null,"БРО152",1162404671,"Фролов Василий Александрович","М151БРИСО060","Физическая культура",0,"Зачет","2016/2017 учебный год 2 модуль",null,0,0,1,0,1520829000,2098,null,"stCommon","Реклама и связи с общественностью",{"$f":"MATCH(D848,Отчет!#REF!,0)","v":{"$error":"#REF!"}}]
[1580583037,null,"БРО151",1162404699,"Милова Анастасия Андреевна","М151БРИСО033","Физическая культура",0,"Зачет","2016/2017 учебный год 2 модуль",null,0,0,1,0,1520829000,2098,null,"stCommon","Реклама и связи с общественностью",{"$f":"MATCH(D849,Отчет!#REF!,0)","v":{"$error":"#REF!"}}]
[1580588705,null,"БРО152",1162404727,"Сак Евгения Леонидовна","М151БРИСО047","Физическая культура",0,"Зачет","2016/2017 учебный год 2 модуль",null,0,0,1,0,1520829000,2098,null,"stCommon","Реклама и связи с общественностью",{"$f":"MATCH(D850,Отчет!#REF!,0)","v":{"$error":"#REF!"}}]
[1580587709,null,"БРО152",1162404759,"Нафталиева Яна Абрамовна","М151БРИСО036","Физическая культура",0,"Зачет","2016/2017 учебный год 2 модуль",null,0,0,1,0,1520829000,2098,null,"stCommon","Реклама и связи с общественностью",{"$f":"MATCH(D851,Отчет!#REF!,0)","v":{"$error":"#REF!"}}]
[1580591504,null,"БРО153",1162404783,"Поляков Илья Станиславович","М151БРИСО040","Физическая культура",0,"Зачет","2016/2017 учебный год 2 модуль",null,0,0,1,0,1520829000,2098,null,"stCommon","Реклама и связи с общественностью",{"$f":"MATCH(D852,Отчет!#REF!,0)","v":{"$error":"#REF!"}}]
[1580589272,null,"БРО152",1162404815,"Тихонина Мария Игоревна","М151БРИСО054","Физическая культура",0,"Зачет","2016/2017 учебный год 2 модуль",null,0,0,1,0,1520829000,2098,null,"stCommon","Реклама и связи с общественностью",{"$f":"MATCH(D853,Отчет!#REF!,0)","v":{"$error":"#REF!"}}]
[1580582325,null,"БРО151",1162404843,"Даниель Александра Александровна","М151БРИСО014","Физическая культура",0,"Зачет","2016/2017 учебный год 2 модуль",null,0,0,1,0,1520829000,2098,null,"stCommon","Реклама и связи с общественностью",{"$f":"MATCH(D854,Отчет!#REF!,0)","v":{"$error":"#REF!"}}]
[1580591342,null,"БРО153",1162404875,"Никоненко Анастасия Германовна","М151БРИСО038","Физическая культура",0,"Зачет","2016/2017 учебный год 2 модуль",null,0,0,1,0,1520829000,2098,null,"stCommon","Реклама и связи с общественностью",{"$f":"MATCH(D855,Отчет!#REF!,0)","v":{"$error":"#REF!"}}]
[1580589342,null,"БРО152",1162404939,"Тузова Евгения Сергеевна","М151БРИСО057","Физическая культура",0,"Зачет","2016/2017 учебный год 2 модуль",null,0,0,1,0,1520829000,2098,null,"stCommon","Реклама и связи с общественностью",{"$f":"MATCH(D856,Отчет!#REF!,0)","v":{"$error":"#REF!"}}]
[1580582495,null,"БРО151",1162404963,"Ермаков Иван Григорьевич","М151БРИСО017","Физическая культура",0,"Зачет","2016/2017 учебный год 2 модуль",null,0,0,1,0,1520829000,2098,null,"stCommon","Реклама и связи с общественностью",{"$f":"MATCH(D857,Отчет!#REF!,0)","v":{"$error":"#REF!"}}]
[1580590781,null,"БРО153",1162404995,"Кимлык Мария Андреевна","М151БРИСО022","Физическая культура",0,"Зачет","2016/2017 учебный год 2 модуль",null,0,0,1,1,1520829000,2098,null,"stCommon","Реклама и связи с общественностью",{"$f":"MATCH(D858,Отчет!#REF!,0)","v":{"$error":"#REF!"}}]
[1580584403,null,"БРО151",1162405311,"Шкляр Даниэль Семенович","М151БРИСО062","Физическая культура",0,"Зачет","2016/2017 учебный год 2 модуль",null,0,0,1,0,1520829000,2098,null,"stCommon","Реклама и связи с общественностью",{"$f":"MATCH(D859,Отчет!#REF!,0)","v":{"$error":"#REF!"}}]
[1580590261,null,"БРО153",1162405372,"Гранина Дарья Константиновна","М151БРИСО012","Физическая культура",0,"Зачет","2016/2017 учебный год 2 модуль",null,0,0,1,0,1520829000,2098,null,"stCommon","Реклама и связи с общественностью",{"$f":"MATCH(D860,Отчет!#REF!,0)","v":{"$error":"#REF!"}}]
[1580590030,null,"БРО153",1173924661,"Галкин Вячеслав Владимирович","М151БРИСО070","Физическая культура",0,"Зачет","2016/2017 учебный год 2 модуль",null,0,0,1,0,1520829000,2098,null,"stCommon","Реклама и связи с общественностью",{"$f":"MATCH(D861,Отчет!#REF!,0)","v":{"$error":"#REF!"}}]
[1580591429,null,"БРО153",1181080622,"Нугуспанова Индира","М151БРИСО075","Физическая культура",0,"Зачет","2016/2017 учебный год 2 модуль",null,0,0,1,1,1520829000,2098,null,"stCommon","Реклама и связи с общественностью",{"$f":"MATCH(D862,Отчет!#REF!,0)","v":{"$error":"#REF!"}}]